Workbook

Sheet Instructions
E3: LEED v4.1 Residential: Single Family
E4: Step 1.
E5: Ensure this project is registered in LEED Online.
E7: Step 2.
E8: Enable macros
E9: Note: This workbook is for use with Excel for Mac 2011 and Excel 2007 or later.
E11: Step 3.
E12: Unit of measure
E14: Step 4.
E15: Project rating system | F15: LEED BD+C: Homes v4.1 - LEED v4
E17: Project rating system | F17: LEED v4.1 Residential: Single Family
E19: Project type
E21: Market Classification
E23: Total homes in submittal
E25: Construction type
E27: Subdivision/Development Name
E29: Project team leader name
E31: Project team leader organization name
E33: Builder (if different than team leader org)
E35: Project team leader Email address
E37: Provider Organization name
E39: Green rater
E41: Green rater
E43: Energy Rater
E45: Provider QAD
E47: Mid-construction visit date(s)
F48: ex: 1/1/2015, 2/27/2015
E49: Date final visit completed
F50: ex: 3/31/2016
E52: Step 5.
E53: The following information must be consistent with project details in LEED Online:
E55: Individual Project Information
E56: Project ID #
E57: Project name
E58: Project address
E59: City
E60: State
E61: Country
E62: Zip Code
E63: Building type
E64: Number of stories
E65: Number of bedrooms
E66: =CONCATENATE("Adjusted conditioned floor area used for LEED (see comment) ",IF(I85=2,"(sq m)","(sq ft)")) -> Adjusted conditioned floor area used for LEED (see comment) (sq ft)
E67: =CONCATENATE("Conditioned floor area removed from the total due to the ENERGY STAR basement exclusion, where applicable ",IF(I85=2,"(sq m)","(sq ft)")) -> Conditioned floor area removed from the total due to the ENERGY STAR basement exclusion, where applicable (sq ft)
E68: =CONCATENATE("Total conditioned floor area ",IF(I85=2,"(sq m)","(sq ft)")) -> Total conditioned floor area (sq ft) | F68: =IF(F66="","",F66+F67) -> 
E69: Batch Project Information
E70: Registration Set ID #
E71: Batch/development name
E72: Country
E73: Building type
E74: Note: Go to the appropriate batch tab to document individual project IDs and address information.
C77: Additional Resources
C78: - Resources & Tools section of the Homes Guide to Certification (http://www.usgbc.org/cert-guide/homes#tools)
C79: - For changes made to this version of the Workbook, see the Form Updates section of the Addenda Database (https://www.usgbc.org/leedaddenda/5000080)
G82: v05
G83: Copyright © 2012
G84: U.S. Green Building Council | I84: UOM | J84: RS
G85: All Rights Reserved | I85: =IF(F12="SI units",2,1) -> 1 | J85: =IF(F15="LEED BD+C: Multifamily Midrise v4 - LEED v4",2,1) -> 1
G86: Updated 6/18/2020 | I86: IP = 1; SI = 2 | J86: H = 1; M = 2
I88: Nominal Pipe Size (in) | J88: no Circ Loop (ft) | K88: Circ Loop (ft) | L88: EA H pts | M88: EA M pts
I89: 0.25 | J89: 50 | K89: 16 | L89: 0 | M89: 0
I90: 0.3125 | J90: 50 | K90: 16 | L90: 1 | M90: 1
I91: 0.375 | J91: 50 | K91: 16 | L91: 2 | M91: 2
I92: 0.5 | J92: 43 | K92: 16 | L92: 3 | M92: 3
I93: 0.625 | J93: 32 | K93: 12 | L93: 4 | M93: 4
I94: 0.75 | J94: 21 | K94: 8 | L94: 5 | M94: 5
I95: 0.875 | J95: 16 | K95: 6 | L95: 6 | M95: 6
I96: 1 | J96: 13 | K96: 5 | L96: 7 | M96: 7
I97: 1.25 | J97: 8 | K97: 3 | L97: 8 | M97: 8
I98: 1.5 | J98: 6 | K98: 2 | L98: 9 | M98: 9
I99: 2 or larger | J99: 4 | K99: 1 | L99: 10 | M99: 10
I100: Nominal Pipe Size (mm) | J100: no Circ Loop (m) | K100: Circ Loop (m) | L100: 11 | M100: 11
I101: 6 | J101: 15 | K101: 5 | L101: 12 | M101: 12
I102: 8 | J102: 15 | K102: 5 | L102: 13 | M102: 13
I103: 9 | J103: 15 | K103: 5 | L103: 14 | M103: 14
I104: 13 | J104: 13 | K104: 5 | L104: 15 | M104: 15
I105: 16 | J105: 10 | K105: 4 | L105: 16 | M105: 16
I106: 19 | J106: 6 | K106: 2 | L106: 17 | M106: 17
I107: 22 | J107: 5 | K107: 2 | L107: 18 | M107: 18
I108: 25 | J108: 4 | K108: 2 | L108: 19 | M108: 19
I109: 32 | J109: 2 | K109: 1 | L109: 20 | M109: 20 | Y109: =(F58&", "&F59&", "&F60&" "&F62&", "&F61) -> , , ,
I110: 38 | J110: 2 | K110: 1 | L110: 21 | M110: 21
I111: 50 or larger | J111: 1 | K111: 0.3 | L111: 22 | M111: 22
L112: 23 | M112: 23
I113: MR drop-down | L113: 24 | M113: 24
I114: At least 25% reclaimed | L114: 25 | M114: 25
I115: At least 25% postconsumer or 50% preconsumer recycled content | L115: 26 | M115: 26
I116: FSC Certified wood | L116: 27 | M116: 27
I117: Sustainable Agriculture Standard | L117: 28 | M117: 28
I118: Concrete with at least 30% fly ash/slag and 50% recycled content aggregate OR 90% recycled content aggregate | L118: 29 | M118: 29
I119: Extended producer responsibility | M119: 30
I120: Drywall | L120: MRc2 H pts | M120: MR M pts
I121: For synthetic, 95% recycled content (pre-, post-, or combination) | L121: 0 | M121: 0
I122: For non-synthetic, 10% post-consumer recycled content | L122: 0.5 | M122: 0.5
L123: 1 | M123: 1
I124: % reduction | J124: pts | L124: 1.5 | M124: 1.5
I125: 0.01 | J125: 1 | L125: 2 | M125: 2
I126: 0.02 | J126: 2 | L126: 2.5 | M126: 2.5
I127: 0.03 | J127: 3 | L127: 3 | M127: 3
I128: 0.04 | J128: 4 | L128: 3.5 | M128: 3.5
I129: 0.05 | J129: 5 | L129: 4 | M129: 4
I130: 0.06 | J130: 6 | M130: 4.5
I131: 0.07 | J131: 7 | M131: 5
I132: 0.08 | J132: 8 | L132: EQc4 H pts | M132: EQ M pts
I133: 0.09 | J133: 9 | L133: 0 | M133: 0
I134: 0.1 | J134: 10 | L134: 1 | M134: 1
I135: 0.12 | J135: 11 | M135: 2
I136: 0.14 | J136: 12 | M136: 3
I137: 0.16 | J137: 13
I138: 0.18 | J138: 14
I139: 0.2 | J139: 15
I140: 0.22 | J140: 16
I141: 0.24 | J141: 17
I142: 0.26 | J142: 18
I143: 0.28 | J143: 19
I144: 0.3 | J144: 20
I145: 0.32 | J145: 21
I146: 0.34 | J146: 22
I147: 0.37 | J147: 23
I148: 0.4 | J148: 24
I149: 0.5 | J149: 25
I150: 0.6 | J150: 26
I151: 0.7 | J151: 27
I152: 0.8 | J152: 28
I153: 0.9 | J153: 29
I154: HERS | J154: pts
I155: 70 | J155: 5
I156: 69 | J156: 6
I157: 68 | J157: 7
I158: 67 | J158: 8
I159: 66 | J159: 9
I160: 65 | J160: 10
I161: 64 | J161: 11
I162: 63 | J162: 12
I163: 62 | J163: 13
I164: 60 | J164: 14
I165: 58 | J165: 15
I166: 56 | J166: 16
I167: 54 | J167: 17
I168: 52 | J168: 18
I169: 50 | J169: 19
I170: 45 | J170: 20
I171: 40 | J171: 21
I172: 35 | J172: 22
I173: 30 | J173: 23
I174: 25 | J174: 24
I175: 20 | J175: 25
I176: 15 | J176: 26
I177: 10 | J177: 27
I178: 5 | J178: 28
I179: 0 | J179: 29

Sheet Scorecard (Homes)
B2: LEED v4.1 Residential: Single Family
B3: =CONCATENATE(IF(Type="Batch",Instructions!F71,Instructions!F57)," Scorecard"," (ID: ",IF(Type="Batch",Instructions!F70,Instructions!F56),")") -> Scorecard (ID: )
B4: Project Address | C4: =CONCATENATE(IF(Type="Batch",Instructions!F72,Instructions!Y109)) -> , , ,
B5: =IF(Instructions!F19="Batch","***Please see 'Batch - Single Family' tab for address information","") -> 
B6: Note: The information on this tab is READ-ONLY. To edit this information, see the Credit Category tabs.
C8: Integrative Process | E8: Preliminary Y | F8: =IP!F3 -> 0 | G8: M | H8: =IP!H3 -> 0 | I8: Verified | J8: =IP!J3 -> 0
C10: IPc | D10: Integrative Process | F10: =IP!$F$7 -> 0 | H10: =IP!$H$7 -> 0 | J10: =IF(IP!$J$7=0,"",IP!$J$7) -> 
C12: Location and Transportation | E12: Preliminary Y | F12: =LT!F3 -> 0 | G12: M | H12: =LT!H3 -> 0 | I12: Verified | J12: =LT!J3 -> 0
C14: LTp | D14: Floodplain Avoidance | F14: Required | J14: =IF(LT!$J$7="Y","Verified","Not Verified") -> Not Verified
C15: Performance Path
C16: LTc | D16: LEED for Neighborhood Development | F16: =LT!$F$19 -> 0 | H16: =LT!$H$19 -> 0 | J16: =IF(LT!$J$19=0,"",LT!$J$19) ->  | L16: =IF(AND(J16<>"",SUM(J18:J21)>0),"Warning: The project cannot receive points under the Performance Path if also receiving points under the Prescriptive Path.","") -> 
C17: Prescriptive Path
C18: LTc | D18: Site Selection | F18: =LT!$F$32 -> 0 | H18: =LT!$H$32 -> 0 | J18: =IF(LT!$J$32=0,"",LT!$J$32) -> 
C19: LTc | D19: Compact Development | F19: =LT!$F$111 -> 0 | H19: =LT!$H$111 -> 0 | J19: =IF(LT!$J$111=0,"",LT!$J$111) -> 
C20: LTc | D20: Community Resources | F20: =LT!$F$122 -> 0 | H20: =LT!$H$122 -> 0 | J20: =IF(LT!$J$122=0,"",LT!$J$122) -> 
C21: LTc | D21: Access to Transit | F21: =LT!$F$130 -> 0 | H21: =LT!$H$130 -> 0 | J21: =IF(LT!$J$130=0,"",LT!$J$130) -> 
C23: Sustainable Sites | E23: Preliminary Y | F23: =SS!F3 -> 0 | G23: M | H23: =SS!H3 -> 0 | I23: Verified | J23: =SS!J3 -> 0
C25: SSp | D25: Construction Activity Pollution Prevention | F25: Required | J25: =IF(SS!$J$7="Y","Verified","Not Verified") -> Not Verified
C26: SSp | D26: No Invasive Plants | F26: Required | J26: =IF(SS!#REF!="Y","Verified","Not Verified") -> 
C27: SSc | D27: Heat Island Reduction | F27: =SS!$F$34 -> 0 | H27: =SS!$H$34 -> 0 | J27: =IF(SS!$J$34=0,"",SS!$J$34) -> 
C28: SSc | D28: Rainwater Management | F28: =SS!$F$66 -> 0 | H28: =SS!$H$66 -> 0 | J28: =IF(SS!$J$66=0,"",SS!$J$66) -> 
C29: SSc | D29: Nontoxic Pest Control | F29: =SS!$F$122 -> 0 | H29: =SS!$H$122 -> 0 | J29: =IF(SS!$J$122=0,"",SS!$J$122) -> 
C31: Water Efficiency | E31: Preliminary Y | F31: =WE!F3 -> 0 | G31: M | H31: =WE!H3 -> 0 | I31: Verified | J31: =WE!J3 -> 0
C33: WEp | D33: Water Use | F33: Required | J33: =IF(WE!$J$7="Y","Verified","Not Verified") -> Not Verified
C34: WEp | D34: Water Metering | F34: Required | J34: =IF(WE!$J$23="Y","Verified","Not Verified") -> Not Verified
C35: Performance Path
C36: WEc | D36: Total Water Use | F36: =WE!$F$32 -> 0 | H36: =WE!$H$32 -> 0 | J36: =IF(WE!$J$32=0,"",WE!$J$32) ->  | L36: =IF(AND(J36<>"",SUM(J38:J39)>0),"Warning: The project cannot receive points under the Performance Path if also receiving points under the Prescriptive Path.","") -> 
C37: Prescriptive Path
C38: WEc | D38: Indoor Water Use | F38: =WE!$F$43 -> 0 | H38: =WE!$H$43 -> 0 | J38: =IF(WE!$J$43=0,"",WE!$J$43) -> 
C39: WEc | D39: Outdoor Water Use | F39: =WE!$F$65 -> 0 | H39: =WE!$H$65 -> 0 | J39: =IF(WE!$J$65=0,"",WE!$J$65) -> 
C41: Energy and Atmosphere | E41: Preliminary Y | F41: =EA!F3 -> 0 | G41: M | H41: =EA!H3 -> 0 | I41: Verified | J41: =EA!J3 -> 0
C43: EAp | D43: Minimum Energy Performance | F43: Required | J43: =IF(EA!$J$7="Y","Verified","Not Verified") -> Not Verified
C44: EAp | D44: Energy Metering | F44: Required | J44: =IF(EA!$J$30="Y","Verified","Not Verified") -> Not Verified
C45: EAp | D45: Education of the Homeowner, Tenant or Building Manager | F45: Required | J45: =IF(EA!$J$39="Y","Verified","Not Verified") -> Not Verified
C46: Performance Path
C47: EAc | D47: Annual Energy Use | F47: =EA!$F$48 -> 0 | H47: =EA!$H$48 -> 0 | J47: =IF(EA!$J$48=0,"",EA!$J$48) -> 
C48: Performance and Prescriptive Paths
C49: EAc | D49: Efficient Hot Water Distribution System | F49: =EA!$F$86 -> 0 | H49: =EA!$H$86 -> 0 | J49: =IF(EA!$J$86=0,"",EA!$J$86) -> 
C50: EAc | D50: Advanced Utility Tracking | F50: =EA!#REF! ->  | H50: =EA!#REF! ->  | J50: =IF(EA!#REF!=0,"",EA!#REF!) -> 
C51: EAc | D51: Active Solar-Ready Design | F51: =EA!#REF! ->  | H51: =EA!#REF! ->  | J51: =IF(EA!#REF!=0,"",EA!#REF!) -> 
C52: EAc | D52: HVAC Start-Up Credentialing | F52: =EA!$F$166 -> 0 | H52: =EA!$H$166 -> 0 | J52: =IF(EA!$J$166=0,"",EA!$J$166) -> 
C53: Prescriptive Path
C54: EAp | D54: Home Size | F54: =IF(EA!#REF!=0,"Required",EA!#REF!) ->  | H54: =IF(F54="Required","",EA!#REF!) ->  | J54: =IF(EAp4V=0,"Not Verified",EAp4V) -> 
C55: EAc | D55: Building Orientation for Passive Solar | F55: =EA!#REF! ->  | H55: =EA!#REF! ->  | J55: =IF(EA!#REF!=0,"",EA!#REF!) -> 
C56: EAc | D56: Air Infiltration | F56: =EA!#REF! ->  | H56: =EA!#REF! ->  | J56: =IF(EA!#REF!=0,"",EA!#REF!) -> 
C57: EAc | D57: Envelope Insulation | F57: =EA!#REF! ->  | H57: =EA!#REF! ->  | J57: =IF(EA!#REF!=0,"",EA!#REF!) -> 
C58: EAc | D58: Windows | F58: =EA!#REF! ->  | H58: =EA!#REF! ->  | J58: =IF(EA!#REF!=0,"",EA!#REF!) -> 
C59: EAc | D59: Space Heating & Cooling Equipment | F59: =EA!#REF! ->  | H59: =EA!#REF! ->  | J59: =IF(EA!#REF!=0,"",EA!#REF!) -> 
C60: EAc | D60: Refrigerant Management | F60: =EA!$F$178 -> 0 | H60: =EA!$H$178 -> 0 | J60: =IF(EA!$J$178=0,"",EA!$J$178) -> 
C61: EAc | D61: Heating & Cooling Distribution Systems | F61: =EA!#REF! ->  | H61: =EA!#REF! ->  | J61: =IF(EA!#REF!=0,"",EA!#REF!) -> 
C62: EAc | D62: Efficient Domestic Hot Water Equipment | F62: =EA!#REF! ->  | H62: =EA!#REF! ->  | J62: =IF(EA!#REF!=0,"",EA!#REF!) -> 
C63: EAc | D63: Lighting | F63: =EA!#REF! ->  | H63: =EA!#REF! ->  | J63: =IF(EA!#REF!=0,"",EA!#REF!) -> 
C64: EAc | D64: High-Efficiency Appliances | F64: =EA!#REF! ->  | H64: =EA!#REF! ->  | J64: =IF(EA!#REF!=0,"",EA!#REF!) -> 
C65: EAc | D65: Renewable Energy | F65: =EA!#REF! ->  | H65: =EA!#REF! ->  | J65: =IF(EA!#REF!=0,"",EA!#REF!) -> 
C67: Materials and Resources | E67: Preliminary Y | F67: =MR!F3 -> 0 | G67: M | H67: =MR!H3 -> 0 | I67: Verified | J67: =MR!J3 -> 0
C69: MRp | D69: Certified Tropical Wood | F69: Required | J69: =IF(MR!$J$7="Y","Verified","Not Verified") -> Not Verified
C70: MRp | D70: Durability Management | F70: Required | J70: =IF(MR!$J$14="Y","Verified","Not Verified") -> Not Verified
C71: MRc | D71: Durability Management Verification | F71: =MR!$F$39 -> 0 | H71: =MR!$H$39 -> 0 | J71: =IF(MR!$J$39=0,"",MR!$J$39) -> 
C72: MRc | D72: Environmentally Preferable Products | F72: =MR!$F$66 -> 0 | H72: =MR!$H$66 -> 0 | J72: =IF(MR!$J$66=0,"",MR!$J$66) -> 
C73: MRc | D73: Construction Waste Management | F73: =MR!$F$118 -> 0 | H73: =MR!$H$118 -> 0 | J73: =IF(MR!$J$118=0,"",MR!$J$118) -> 
C74: MRc | D74: Material-Efficient Framing | F74: =MR!$F$151 -> 0 | H74: =MR!$H$151 -> 0 | J74: =IF(MR!$J$151=0,"",MR!$J$151) -> 
C76: Indoor Environmental Quality | E76: Preliminary Y | F76: =EQ!F3 -> 0 | G76: M | H76: =EQ!H3 -> 0 | I76: Verified | J76: =EQ!J3 -> 0
C78: EQp | D78: Ventilation | F78: Required | J78: =IF(EQ!$J$7="Y","Verified","Not Verified") -> Not Verified
C79: EQp | D79: Combustion Venting | F79: Required | J79: =IF(EQ!$J$32="Y","Verified","Not Verified") -> Not Verified
C80: EQp | D80: Garage Pollutant Protection | F80: Required | J80: =IF(EQ!$J$53="Y","Verified","Not Verified") -> Not Verified
C81: EQp | D81: Radon-Resistant Construction | F81: Required | J81: =IF(EQ!$J$73="Y","Verified","Not Verified") -> Not Verified
C82: EQp | D82: Air Filtering | F82: Required | J82: =IF(EQ!$J$109="Y","Verified","Not Verified") -> Not Verified
C83: EQp | D83: Environmental Tobacco Smoke | F83: Required | J83: =IF(EQ!#REF!="Y","Verified","Not Verified") -> 
C84: EQp | D84: Compartmentalization | F84: Required | J84: =IF(EQ!$J$119="Y","Verified","Not Verified") -> Not Verified
C85: EQc | D85: Enhanced Ventilation | F85: =EQ!$F$135 -> 0 | H85: =EQ!$H$135 -> 0 | J85: =IF(EQ!$J$135=0,"",EQ!$J$135) -> 
C86: EQc | D86: Contaminant Control | F86: =EQ!$F$160 -> 0 | H86: =EQ!$H$160 -> 0 | J86: =IF(EQ!$J$160=0,"",EQ!$J$160) -> 
C87: EQc | D87: Balancing of Heating and Cooling Distribution Systems | F87: =EQ!$F$256 -> 0 | H87: =EQ!$H$256 -> 0 | J87: =IF(EQ!$J$256=0,"",EQ!$J$256) -> 
C88: EQc | D88: Enhanced Compartmentalization | F88: =EQ!#REF! ->  | H88: =EQ!#REF! ->  | J88: =IF(EQ!#REF!=0,"",EQ!#REF!) -> 
C89: EQc | D89: Combustion Venting | F89: =EQ!#REF! ->  | H89: =EQ!#REF! ->  | J89: =IF(EQ!#REF!=0,"",EQ!#REF!) -> 
C90: EQc | D90: Enhanced Garage Pollutant Protection | F90: =EQ!#REF! ->  | H90: =EQ!#REF! ->  | J90: =IF(EQ!#REF!=0,"",EQ!#REF!) -> 
C91: EQc | D91: Low-Emitting Products | F91: =EQ!$F$337 -> 0 | H91: =EQ!$H$337 -> 0 | J91: =IF(EQ!$J$337=0,"",EQ!$J$337) -> 
C93: Innovation | E93: Preliminary Y | F93: =IN!F3 -> 0 | G93: M | H93: =IN!H3 -> 0 | I93: Verified | J93: =IN!J3 -> 0
C95: INp | D95: Preliminary Rating | F95: Required | J95: =IF(IN!$J$7="Y","Verified","Not Verified") -> Not Verified
C96: INc | D96: Innovation | F96: =IN!$F$15 -> 0 | H96: =IN!$H$15 -> 0 | J96: =IF(IN!$J$15=0,"",IN!$J$15) -> 
C97: INc | D97: LEED Accredited Professional | F97: =IN!$F$49 -> 0 | H97: =IN!$H$49 -> 0 | J97: =IF(IN!$J$49=0,"",IN!$J$49) -> 
C99: Regional Priority | E99: Preliminary Y | F99: =RP!F3 -> 0 | G99: M | H99: =RP!H3 -> 0 | I99: Verified | J99: =RP!J3 -> 0
C101: RPc | D101: Regional Priority | F101: =RP!$F$7 -> 0 | H101: =RP!$H$7 -> 0 | J101: =IF(RP!$J$7=0,"",RP!$J$7) -> 
B103: Total | E103: Preliminary Y | F103: =SUM(F99,F93,F76,F67,F41,F31,F23,F12,F8) -> 0 | G103: M | H103: =SUM(H99,H93,H76,H67,H41,H31,H23,H12,H8) -> 0 | I103: Verified | J103: =SUM(J99,J93,J76,J67,J41,J31,J23,J12,J8) -> 0
B104: Certification Thresholds Certified: 40-49, Silver: 50-59, Gold: 60-79, Platinum: 80-110

Sheet Scorecard (Midrise) (hidden)
B2: LEED BD+C: Multifamily Midrise v4 - LEED v4
B3: =CONCATENATE(IF(Type="Batch",Instructions!F71,Instructions!F57)," Scorecard") -> Scorecard
B4: Location: | C4: =CONCATENATE(IF(Type="Batch",Instructions!F72,Instructions!Y109)) -> , , ,
B5: Note: The information on this tab is READ-ONLY. To edit this information, see the Credit Category tabs.
C7: Integrative Process | E7: Preliminary Y | F7: =IP!F3 -> 0 | G7: M | H7: =IP!H3 -> 0 | I7: Verified | J7: =IP!J3 -> 0
C9: IPc | D9: Integrative Process | F9: =IP!$F$7 -> 0 | H9: =IP!$H$7 -> 0 | J9: =IF(IP!$J$7=0,"",IP!$J$7) -> 
C11: Location and Transportation | E11: Preliminary Y | F11: =LT!F3 -> 0 | G11: M | H11: =LT!H3 -> 0 | I11: Verified | J11: =LT!J3 -> 0
C13: LTp | D13: Floodplain Avoidance | F13: Required | J13: =IF(LT!$J$7="Y","Verified","Not Verified") -> Not Verified
C14: Performance Path
C15: LTc | D15: LEED for Neighborhood Development | F15: =LT!$F$19 -> 0 | H15: =LT!$H$19 -> 0 | J15: =IF(LT!$J$19=0,"",LT!$J$19) ->  | L15: =IF(AND(J15<>"",SUM(J17:J20)>0),"Warning: The project cannot receive points under the Performance Path if also receiving points under the Prescriptive Path.","") -> 
C16: Prescriptive Path
C17: LTc | D17: Site Selection | F17: =LT!$F$32 -> 0 | H17: =LT!$H$32 -> 0 | J17: =IF(LT!$J$32=0,"",LT!$J$32) -> 
C18: LTc | D18: Compact Development | F18: =LT!$F$111 -> 0 | H18: =LT!$H$111 -> 0 | J18: =IF(LT!$J$111=0,"",LT!$J$111) -> 
C19: LTc | D19: Community Resources | F19: =LT!$F$122 -> 0 | H19: =LT!$H$122 -> 0 | J19: =IF(LT!$J$122=0,"",LT!$J$122) -> 
C20: LTc | D20: Access to Transit | F20: =LT!$F$130 -> 0 | H20: =LT!$H$130 -> 0 | J20: =IF(LT!$J$130=0,"",LT!$J$130) -> 
C22: Sustainable Sites | E22: Preliminary Y | F22: =SS!F3 -> 0 | G22: M | H22: =SS!H3 -> 0 | I22: Verified | J22: =SS!J3 -> 0
C24: SSp | D24: Construction Activity Pollution Prevention | F24: Required | J24: =IF(SS!$J$7="Y","Verified","Not Verified") -> Not Verified
C25: SSp | D25: No Invasive Plants | F25: Required | J25: =IF(SS!#REF!="Y","Verified","Not Verified") -> 
C26: SSc | D26: Heat Island Reduction | F26: =SS!$F$34 -> 0 | H26: =SS!$H$34 -> 0 | J26: =IF(SS!$J$34=0,"",SS!$J$34) -> 
C27: SSc | D27: Rainwater Management | F27: =SS!$F$66 -> 0 | H27: =SS!$H$66 -> 0 | J27: =IF(SS!$J$66=0,"",SS!$J$66) -> 
C28: SSc | D28: Nontoxic Pest Control | F28: =SS!$F$122 -> 0 | H28: =SS!$H$122 -> 0 | J28: =IF(SS!$J$122=0,"",SS!$J$122) -> 
C30: Water Efficiency | E30: Preliminary Y | F30: =WE!F3 -> 0 | G30: M | H30: =WE!H3 -> 0 | I30: Verified | J30: =WE!J3 -> 0
C32: WEp | D32: Water Metering | F32: Required | J32: =IF(WE!$J$23="Y","Verified","Not Verified") -> Not Verified
C33: Performance Path
C34: WEc | D34: Total Water Use | F34: =WE!$F$32 -> 0 | H34: =WE!$H$32 -> 0 | J34: =IF(WE!$J$32=0,"",WE!$J$32) ->  | L34: =IF(AND(J34<>"",SUM(J36:J37)>0),"Warning: The project cannot receive points under the Performance Path if also receiving points under the Prescriptive Path.","") -> 
C35: Prescriptive Path
C36: WEc | D36: Indoor Water Use | F36: =WE!$F$43 -> 0 | H36: =WE!$H$43 -> 0 | J36: =IF(WE!$J$43=0,"",WE!$J$43) -> 
C37: WEc | D37: Outdoor Water Use | F37: =WE!$F$65 -> 0 | H37: =WE!$H$65 -> 0 | J37: =IF(WE!$J$65=0,"",WE!$J$65) -> 
C39: Energy and Atmosphere | E39: Preliminary Y | F39: =EA!F3 -> 0 | G39: M | H39: =EA!H3 -> 0 | I39: Verified | J39: =EA!J3 -> 0
C41: EAp | D41: Minimum Energy Performance | F41: Required | J41: =IF(EA!$J$7="Y","Verified","Not Verified") -> Not Verified
C42: EAp | D42: Energy Metering | F42: Required | J42: =IF(EA!$J$30="Y","Verified","Not Verified") -> Not Verified
C43: EAp | D43: Education of the Homeowner, Tenant or Building Manager | F43: Required | J43: =IF(EA!$J$39="Y","Verified","Not Verified") -> Not Verified
C44: EAc | D44: Annual Energy Use | F44: =EAc1_M_Y ->  | H44: =EAc1_M_M ->  | J44: =IF(EAc1_M_V=0,"",EAc1_M_V) -> 
C45: EAc | D45: Efficient Hot Water Distribution System | F45: =EA!$F$86 -> 0 | H45: =EA!$H$86 -> 0 | J45: =IF(EA!$J$86=0,"",EA!$J$86) -> 
C46: EAc | D46: Advanced Utility Tracking | F46: =EA!#REF! ->  | H46: =EA!#REF! ->  | J46: =IF(EA!#REF!=0,"",EA!#REF!) -> 
C48: Materials and Resources | E48: Preliminary Y | F48: =MR!F3 -> 0 | G48: M | H48: =MR!H3 -> 0 | I48: Verified | J48: =MR!J3 -> 0
C50: MRp | D50: Certified Tropical Wood | F50: Required | J50: =IF(MR!$J$7="Y","Verified","Not Verified") -> Not Verified
C51: MRp | D51: Durability Management | F51: Required | J51: =IF(MR!$J$14="Y","Verified","Not Verified") -> Not Verified
C52: MRc | D52: Durability Management Verification | F52: =MR!$F$39 -> 0 | H52: =MR!$H$39 -> 0 | J52: =IF(MR!$J$39=0,"",MR!$J$39) -> 
C53: MRc | D53: Environmentally Preferable Products | F53: =MR!$F$66 -> 0 | H53: =MR!$H$66 -> 0 | J53: =IF(MR!$J$66=0,"",MR!$J$66) -> 
C54: MRc | D54: Construction Waste Management | F54: =MR!$F$118 -> 0 | H54: =MR!$H$118 -> 0 | J54: =IF(MR!$J$118=0,"",MR!$J$118) -> 
C56: Indoor Environmental Quality | E56: Preliminary Y | F56: =EQ!F3 -> 0 | G56: M | H56: =EQ!H3 -> 0 | I56: Verified | J56: =EQ!J3 -> 0
C58: EQp | D58: Ventilation | F58: Required | J58: =IF(EQ!$J$7="Y","Verified","Not Verified") -> Not Verified
C59: EQp | D59: Combustion Venting | F59: Required | J59: =IF(EQ!$J$32="Y","Verified","Not Verified") -> Not Verified
C60: EQp | D60: Garage Pollutant Protection | F60: Required | J60: =IF(EQ!$J$53="Y","Verified","Not Verified") -> Not Verified
C61: EQp | D61: Radon-Resistant Construction | F61: Required | J61: =IF(EQ!$J$73="Y","Verified","Not Verified") -> Not Verified
C62: EQp | D62: Air Filtering | F62: Required | J62: =IF(EQ!$J$109="Y","Verified","Not Verified") -> Not Verified
C63: EQp | D63: Environmental Tobacco Smoke | F63: Required | J63: =IF(EQ!#REF!="Y","Verified","Not Verified") -> 
C64: EQp | D64: Compartmentalization | F64: Required | J64: =IF(EQ!$J$119="Y","Verified","Not Verified") -> Not Verified
C65: EQc | D65: Enhanced Ventilation | F65: =EQ!$F$135 -> 0 | H65: =EQ!$H$135 -> 0 | J65: =IF(EQ!$J$135=0,"",EQ!$J$135) -> 
C66: EQc | D66: Contaminant Control | F66: =EQ!$F$160 -> 0 | H66: =EQ!$H$160 -> 0 | J66: =IF(EQ!$J$160=0,"",EQ!$J$160) -> 
C67: EQc | D67: Balancing of Heating and Cooling Distribution Systems | F67: =EQ!$F$256 -> 0 | H67: =EQ!$H$256 -> 0 | J67: =IF(EQ!$J$256=0,"",EQ!$J$256) -> 
C68: EQc | D68: Enhanced Compartmentalization | F68: =EQ!#REF! ->  | H68: =EQ!#REF! ->  | J68: =IF(EQ!#REF!=0,"",EQ!#REF!) -> 
C69: EQc | D69: Combustion Venting | F69: =EQ!#REF! ->  | H69: =EQ!#REF! ->  | J69: =IF(EQ!#REF!=0,"",EQ!#REF!) -> 
C70: EQc | D70: Enhanced Garage Pollutant Protection | F70: =EQ!#REF! ->  | H70: =EQ!#REF! ->  | J70: =IF(EQ!#REF!=0,"",EQ!#REF!) -> 
C71: EQc | D71: Low-Emitting Products | F71: =EQ!$F$337 -> 0 | H71: =EQ!$H$337 -> 0 | J71: =IF(EQ!$J$337=0,"",EQ!$J$337) -> 
C72: EQc | D72: No Environmental Tobacco Smoke | F72: =EQ!#REF! ->  | H72: =EQ!#REF! ->  | J72: =IF(EQ!#REF!=0,"",EQ!#REF!) -> 
C74: Innovation | E74: Preliminary Y | F74: =IN!F3 -> 0 | G74: M | H74: =IN!H3 -> 0 | I74: Verified | J74: =IN!J3 -> 0
C76: INp | D76: Preliminary Rating | F76: Required | J76: =IF(IN!$J$7="Y","Verified","Not Verified") -> Not Verified
C77: INc | D77: Innovation | F77: =IN!$F$15 -> 0 | H77: =IN!$H$15 -> 0 | J77: =IF(IN!$J$15=0,"",IN!$J$15) -> 
C78: INc | D78: LEED Accredited Professional | F78: =IN!$F$49 -> 0 | H78: =IN!$H$49 -> 0 | J78: =IF(IN!$J$49=0,"",IN!$J$49) -> 
C80: Regional Priority | E80: Preliminary Y | F80: =RP!F3 -> 0 | G80: M | H80: =RP!H3 -> 0 | I80: Verified | J80: =RP!J3 -> 0
C82: RPc | D82: Regional Priority | F82: =RP!$F$7 -> 0 | H82: =RP!$H$7 -> 0 | J82: =IF(RP!$J$7=0,"",RP!$J$7) -> 
B84: Point Floors
B86: The project earned at least 8 points total in Location and Transportation and Energy and Atmosphere | J86: =IF(J11+J39>=8,"Yes","No") -> No
B88: The project earned at least 3 points in Water Efficiency | J88: =IF(J30>=3,"Yes","No") -> No
B90: The project earned at least 3 points in Indoor Environmental Quality | J90: =IF(J56>=3,"Yes","No") -> No
B92: Total | E92: Preliminary Y | F92: =SUM(F80,F74,F56,F48,F39,F30,F22,F11,F7) -> 0 | G92: M | H92: =SUM(H80,H74,H56,H48,H39,H30,H22,H11,H7) -> 0 | I92: Verified | J92: =SUM(J80,J74,J56,J48,J39,J30,J22,J11,J7) -> 0
B93: Certification Thresholds Certified: 40-49, Silver: 50-59, Gold: 60-79, Platinum: 80-110

Sheet Batch - Multifamily (hidden)
B2: Certification Submittal for Batches of Multifamily Buildings
B3: =CONCATENATE("Batch Registration Set ID #",Instructions!F70) -> Batch Registration Set ID #
B4: =CONCATENATE("Building type: ",Instructions!F73) -> Building type:
B7: The following is a list of homes to be submitted for certification as a batch. As per LEED for Homes guidelines, every building in this batch submittal will meet or exceed the performance requirements for every prerequisite and credit awarded on the project checklist.
B8: Total number of buildings | G8: =COUNTA(C15:C22) -> 0
B9: Total number of units | G9: =SUM(F15:F22) -> 0
B10: =CONCATENATE("Total conditioned floor area",IF(Instructions!$I$85=1," (sq ft)"," (sq m)")) -> Total conditioned floor area (sq ft) | G10: =SUM(G15:G22) -> 0
B12: Note: The General Information section must be consistent with project details in LEED Online.
B13: General Information | I13: Home Size Adjustment | J13: Energy Performance | L13: EA Credit Annual Energy Use
C14: Project ID | D14: Street Address or Lot Number | E14: Project City | F14: Total Number of Units | G14: =CONCATENATE("Total Conditioned Floor Area",IF(Instructions!$I$85=1," (sq ft)"," (sq m)")) -> Total Conditioned Floor Area (sq ft) | H14: Total Number of Bedrooms | I14: =IF(RatingSystem=1,"Home Size Adjustment (if applicable)","Home Size Adjustment") -> Home Size Adjustment (if applicable) | J14: =IF(RatingSystem=1,"HERS or % Improvement over LEED Reference Home","% Energy Cost Savings") -> HERS or % Improvement over LEED Reference Home | K14: EA Points | L14: Total Score (EA points + HSA points)
A15: =IF(C15>0,0,0) -> 0 | B15: =B14+1 -> 1 | L15: =SUM(I15+K15) -> 0
A16: 0 | B16: 2 | L16: =SUM(I16+K16) -> 0
A17: 0 | B17: 3 | L17: 0
A18: 0 | B18: 4 | L18: 0
A19: 0 | B19: 5 | L19: 0
A20: 0 | B20: 6 | L20: =SUM(I20+K20) -> 0
A21: A
A23: A

Sheet Multifamily HSA (hidden)
B2: Multifamily Home Size Adjuster
B5: This approach can be used to determine an overall home size adjuster for multifamily buildings. Input the number of units and the average square footage for units with the corresponding bedroom number. For example, if the building has three 2-bedroom units that are 1300 sq ft, 1400 sq ft, and 1500 sq ft, insert "3" in cell G9 and "1400" in cell H9. Please leave zeroes or blanks where appropriate. This approach can also be used to determine an overall home size adjuster for a complex with multiple residential buildings. If a project includes multiple residential buildings, add all the buildings together like it’s a single-mega structure. For example, if building A has four 2-bedroom units and building B has six 2-bedroom units, insert “10” in cell G9. Average the square footage for all units in the complex with the corresponding bedroom quantity.
B7: Building ID | C7: 0 Bedrooms | E7: 1 Bedroom | G7: 2 Bedrooms | I7: 3 Bedrooms | K7: 4 Bedrooms | M7: 5 Bedrooms | O7: 6 Bedrooms
C8: Number of Units | D8: =CONCATENATE("Average Floor Area ",IF(Instructions!$I$85=1," (sq ft)"," (sq m)")) -> Average Floor Area (sq ft) | E8: Number of Units | F8: =CONCATENATE("Average Floor Area ",IF(Instructions!$I$85=1," (sq ft)"," (sq m)")) -> Average Floor Area (sq ft) | G8: Number of Units | H8: =CONCATENATE("Average Floor Area ",IF(Instructions!$I$85=1," (sq ft)"," (sq m)")) -> Average Floor Area (sq ft) | I8: Number of Units | J8: =CONCATENATE("Average Floor Area ",IF(Instructions!$I$85=1," (sq ft)"," (sq m)")) -> Average Floor Area (sq ft) | K8: Number of Units | L8: =CONCATENATE("Average Floor Area ",IF(Instructions!$I$85=1," (sq ft)"," (sq m)")) -> Average Floor Area (sq ft) | M8: Number of Units | N8: =CONCATENATE("Average Floor Area ",IF(Instructions!$I$85=1," (sq ft)"," (sq m)")) -> Average Floor Area (sq ft) | O8: Number of Units | P8: =CONCATENATE("Average Floor Area ",IF(Instructions!$I$85=1," (sq ft)"," (sq m)")) -> Average Floor Area (sq ft)
B10: Home size adjustment | C10: =IF(D9>0,IF(Instructions!$I$85=1,1-(D9/1000),1-(D9/93)),0) -> 0 | E10: =IF(F9>0,IF(Instructions!$I$85=1,1-(F9/1000),1-(F9/93)),0) -> 0 | G10: =IF(H9>0,IF(Instructions!$I$85=1,1-(H9/1600),1-(H9/148)),0) -> 0 | I10: =IF(J9>0,IF(Instructions!$I$85=1,1-(J9/2200),1-(J9/204)),0) -> 0 | K10: =IF(L9>0,IF(Instructions!$I$85=1,1-(L9/2800),1-(L9/260)),0) -> 0 | M10: =IF(N9>0,IF(Instructions!$I$85=1,1-(N9/3400),1-(N9/315)),0) -> 0 | O10: =IF(P9>0,IF(Instructions!$I$85=1,1-(P9/4000),1-(P9/427)),0) -> 0
B11: Point adjustment | C11: =C10/0.04 -> 0 | E11: =E10/0.04 -> 0 | G11: =G10/0.04 -> 0 | I11: =I10/0.04 -> 0 | K11: =K10/0.04 -> 0 | M11: =M10/0.04 -> 0 | O11: =O10/0.04 -> 0
B12: Total number of units | P12: =SUM(M9,K9,I9,G9,E9,C9, O9) -> 0
B13: Average adjustment | P13: =IF(P12=0,0.0001,(C11*C9+E11*E9+G11*G9+I11*I9+K11*K9+M11*M9+O11*O9)/P12) -> 0.0001
B14: Average home size point adjustment | P14: =ROUNDDOWN(P13,0)+IF(P13-ROUNDDOWN(P13,0)>=0.75,1,IF(P13-ROUNDDOWN(P13,0)>=0.25,0.5,IF(P13-ROUNDDOWN(P13,0)>=-0.25,0,IF(P13-ROUNDDOWN(P13,0)>=-0.75,-0.5,-1)))) -> 0

Sheet Batch - Single Family
B2: Certification Submittal for Batches of Single Family Homes
B3: =CONCATENATE("Batch Registration Set ID #",Instructions!F70) -> Batch Registration Set ID #
B4: =CONCATENATE("Building type: ",Instructions!F73) -> Building type:
B7: The following is a list of homes to be submitted for certification as a batch. As per LEED for Homes guidelines, every home in this batch submittal will meet or exceed the performance requirements for every prerequisite and credit awarded on the project checklist.
B8: Total number of homes | G8: =COUNTA(C16:C26) -> 0
B9: Total EA points for LEED Energy Budget Option | G9: =MIN(K16:K26) -> 0
B10: Total EA points for achieving HERS Index Rating | G10: =MIN(P16:P26) -> 0
B11: Total EA points for HERS points below ENERGY STAR HERS Index Target (SAF Adjusted) | G11: =MIN(R16:R26) -> 0
B13: Note: The General Information section must be consistent with project details in LEED Online. All general information must be provided for each home in the batch.
B14: General Information | H14: Option 1: LEED Energy Budget | L14: Option 2: HERS Index (SAF Adjusted)
C15: Project ID | D15: Street Address or Lot Number | E15: Project City | F15: =CONCATENATE("Conditioned floor area (see comment) ",IF(Instructions!$I$85=1," (sq ft)"," (sq m)")) -> Conditioned floor area (see comment) (sq ft) | G15: Number of bedrooms (see comment) | H15: LEED Reference | I15: As Designed | J15: Annual Energy Reduction (%) | K15: EA Points | L15: HERS Index Rating | M15: ENERGY STAR HERS Index Target (SAF Adjusted) | N15: Size Adjustment Factor (SAF) from the ENERGY STAR for Homes Report | O15: HERS Index (SAF Adjusted) | P15: Points for achieving HERS Index Rating | Q15: HERS Index points below ENERGY STAR HERS Index Target (SAF Adjusted) | R15: Points for HERS points below ENERGY STAR HERS Index Target (SAF Adjusted)
A16: =IF(C16>0,0,0) -> 0 | B16: =B15+1 -> 1 | J16: =IFERROR(FLOOR(1-I16/H16,0.01),"") ->  | K16: =IF(OR(H16="",I16=""),"",IFERROR(VLOOKUP(J16,'EA Lowrise'!H:I,2),"")) ->  | O16: =IF(L16="","",IFERROR(ROUND(L16/N16,0),0)) ->  | P16: =IF(OR(L16="",M16=""),"",IF(M16<0,36,(IFERROR(VLOOKUP(O16,'EA Lowrise'!N:O,2,FALSE),0)))) ->  | Q16: =IFERROR(M16-O16,"") ->  | R16: =IF(OR(L16="",M16=""),"",IFERROR(VLOOKUP(Q16,'EA Lowrise'!$K$1:$L$1500,2,FALSE),0)) -> 
A17: 0 | B17: =B16+1 -> 2 | J17: =IFERROR(FLOOR(1-I17/H17,0.01),"") ->  | K17: =IF(OR(H17="",I17=""),"",IFERROR(VLOOKUP(J17,'EA Lowrise'!H:I,2),"")) ->  | O17: =IF(L17="","",IFERROR(ROUND(L17/N17,0),0)) ->  | P17: =IF(OR(L17="",M17=""),"",IF(M17<0,36,(IFERROR(VLOOKUP(O17,'EA Lowrise'!N:O,2,FALSE),0)))) ->  | Q17: =IFERROR(M17-O17,"") ->  | R17: =IF(OR(L17="",M17=""),"",IFERROR(VLOOKUP(Q17,'EA Lowrise'!$K$1:$L$1500,2,FALSE),0)) -> 
A18: 0 | B18: 3 | K18: =IF(OR(H18="",I18=""),"",IFERROR(VLOOKUP(J18,'EA Lowrise'!H:I,2),"")) ->  | P18: =IF(OR(L18="",M18=""),"",IF(M18<0,36,(IFERROR(VLOOKUP(O18,'EA Lowrise'!N:O,2,FALSE),0)))) ->  | R18: =IF(OR(L18="",M18=""),"",IFERROR(VLOOKUP(Q18,'EA Lowrise'!$K$1:$L$1500,2,FALSE),0)) -> 
A19: 0 | B19: 4 | K19: =IF(OR(H19="",I19=""),"",IFERROR(VLOOKUP(J19,'EA Lowrise'!H:I,2),"")) ->  | P19: =IF(OR(L19="",M19=""),"",IF(M19<0,36,(IFERROR(VLOOKUP(O19,'EA Lowrise'!N:O,2,FALSE),0)))) ->  | R19: =IF(OR(L19="",M19=""),"",IFERROR(VLOOKUP(Q19,'EA Lowrise'!$K$1:$L$1500,2,FALSE),0)) -> 
A20: 0 | B20: 5 | K20: =IF(OR(H20="",I20=""),"",IFERROR(VLOOKUP(J20,'EA Lowrise'!H:I,2),"")) ->  | P20: =IF(OR(L20="",M20=""),"",IF(M20<0,36,(IFERROR(VLOOKUP(O20,'EA Lowrise'!N:O,2,FALSE),0)))) ->  | R20: =IF(OR(L20="",M20=""),"",IFERROR(VLOOKUP(Q20,'EA Lowrise'!$K$1:$L$1500,2,FALSE),0)) -> 
A21: =IF(C21>0,0,0) -> 0 | B21: 6 | K21: =IF(OR(H21="",I21=""),"",IFERROR(VLOOKUP(J21,'EA Lowrise'!H:I,2),"")) ->  | P21: =IF(OR(L21="",M21=""),"",IF(M21<0,36,(IFERROR(VLOOKUP(O21,'EA Lowrise'!N:O,2,FALSE),0)))) ->  | R21: =IF(OR(L21="",M21=""),"",IFERROR(VLOOKUP(Q21,'EA Lowrise'!$K$1:$L$1500,2,FALSE),0)) -> 
A22: =IF(C22>0,0,0) -> 0 | B22: 7 | K22: =IF(OR(H22="",I22=""),"",IFERROR(VLOOKUP(J22,'EA Lowrise'!H:I,2),"")) ->  | P22: =IF(OR(L22="",M22=""),"",IF(M22<0,36,(IFERROR(VLOOKUP(O22,'EA Lowrise'!N:O,2,FALSE),0)))) ->  | R22: =IF(OR(L22="",M22=""),"",IFERROR(VLOOKUP(Q22,'EA Lowrise'!$K$1:$L$1500,2,FALSE),0)) -> 
A23: =IF(C23>0,0,0) -> 0 | B23: 8 | K23: =IF(OR(H23="",I23=""),"",IFERROR(VLOOKUP(J23,'EA Lowrise'!H:I,2),"")) ->  | P23: =IF(OR(L23="",M23=""),"",IF(M23<0,36,(IFERROR(VLOOKUP(O23,'EA Lowrise'!N:O,2,FALSE),0)))) ->  | R23: =IF(OR(L23="",M23=""),"",IFERROR(VLOOKUP(Q23,'EA Lowrise'!$K$1:$L$1500,2,FALSE),0)) -> 
A24: 0 | B24: 9 | K24: =IF(OR(H24="",I24=""),"",IFERROR(VLOOKUP(J24,'EA Lowrise'!H:I,2),"")) ->  | P24: =IF(OR(L24="",M24=""),"",IF(M24<0,36,(IFERROR(VLOOKUP(O24,'EA Lowrise'!N:O,2,FALSE),0)))) ->  | R24: =IF(OR(L24="",M24=""),"",IFERROR(VLOOKUP(Q24,'EA Lowrise'!$K$1:$L$1500,2,FALSE),0)) -> 
A25: 0 | B25: 10 | K25: =IF(OR(H25="",I25=""),"",IFERROR(VLOOKUP(J25,'EA Lowrise'!H:I,2),"")) ->  | P25: =IF(OR(L25="",M25=""),"",IF(M25<0,36,(IFERROR(VLOOKUP(O25,'EA Lowrise'!N:O,2,FALSE),0)))) ->  | R25: =IF(OR(L25="",M25=""),"",IFERROR(VLOOKUP(Q25,'EA Lowrise'!$K$1:$L$1500,2,FALSE),0)) -> 
A28: A

Sheet IP
B1: Integrative Process | L1: Notes | M1: Verified (initials) | N1: Date Verified | O1: QAD Notes | P1: Verification Measure | Q1: QAD Notes
E3: Preliminary Y | F3: =F7 -> 0 | G3: Maybe | H3: =H7 -> 0 | I3: Verified | J3: =J7 -> 0
A5: IPc1 | B5: =L5 -> IP Credit Integrative Process | K5: HM | L5: IP Credit Integrative Process
K6: HM
B7: Up to 2 points | E7: Preliminary Y | F7: =IF(SUM(F11,F33,F42)>2,2,SUM(F11,F33,F42)) -> 0 | G7: M | H7: =IF(SUM(H11,H33,H42)>2,2,SUM(H11,H33,H42)) -> 0 | I7: Verified | J7: =IF(SUM(J11,J33,J42)>2,2,SUM(J11,J33,J42)) -> 0 | K7: HM | M7: Responsible Party
B8: Exemplary Performance: Achieve all three options | K8: HM
K9: HM
K10: HM
C11: Option 1. Integrative Project Team (1 point) | E11: Y | G11: M | I11: V | K11: HM | L11: =C11 -> Option 1. Integrative Project Team (1 point)
K12: HM
K13: HM
C14: (Select one) | D14: Team members include capabilities in at least three of the following skill sets: architecture or residential building design; mechanical or energy engineering; building science or performance testing; green building or sustainable design; and civil engineering, landscape architecture, habitat restoration, or land-use planning. | K14: HM | P14: Verify listed people are members of project team.
K15: HM
K16: HM
K17: HM
K18: HM
K19: HM
K20: HM
C21: (Select one) | D21: All team members referenced above were involved in at least three of the following phases of the design and construction process: conceptual or schematic design; LEED planning; preliminary design; energy and envelope systems analysis or design; design development; final design, working drawings or specifications; and construction. | K21: HM | P21: Verify meeting dates are for at least three phases of design and construction process.
K22: HM
K23: HM
K24: HM
K25: HM
K26: HM
K27: HM
K28: HM
C29: (Select one) | D29: Meetings were conducted with the project team at least monthly to review project status, introduce new team members to project goals, discuss problems, formulate solutions, review responsibilities, and identify next steps. | K29: HM
K30: HM
K31: HM
C32: AND/OR | K32: HM
C33: Option 2. Design Charrette (1 point) | E33: Y | G33: M | I33: V | K33: HM | L33: =C33 -> Option 2. Design Charrette (1 point)
K34: HM
K35: HM
C36: (Select one) | D36: A full-day workshop (or two half-day workshops) was conducted with the project team, as defined in Option 1, no later than the design development phase. | K36: HM | P36: Participate in design charrette or verify charrette date, location, participants, and duration.
K37: HM
D38: Date(s) | K38: HM
D39: Duration | K39: HM
K40: HM
C41: AND/OR | K41: HM
C42: Option 3. Installation Contractor Training (1 point) | E42: Y | G42: M | I42: V | K42: HM | L42: =C42 -> Option 3. Installation Contractor Training (1 point)
K43: HM
K44: HM
C45: (Select one) | D45: At least eight hours of training on the green aspects of the project and how the installation contractors can contribute to achieving each LEED for Homes prerequisite and attempted credit was conducted before construction but after installation contractors have been hired for the project. | K45: HM | P45: Conduct trades training or verify training date, location, participants, and duration.
K46: HM
D47: Date(s) | K47: HM
D48: Duration | K48: HM
D49: Trainer | K49: HM

Sheet LT
B1: Location and Transportation | L1: Notes | M1: Verified (initials) | N1: Date Verified | O1: QAD Notes | P1: Verification Measure | Q1: QAD Notes
E3: Preliminary Y | F3: =IF(LT!$F$19=10,10,SUM(F32,F111,F122,F130)) -> 0 | G3: Maybe | H3: =IF(H19=10,10,SUM(H19,H32,H111,H122,H130)) -> 0 | I3: Verified | J3: =IF(J19=10,10,SUM(J19,J32,J111,J122,J130)) -> 0
A5: LTp1 | B5: =L5 -> LT Prerequisite Floodplain Avoidance | K5: HM | L5: LT Prerequisite Floodplain Avoidance
K6: HM
B7: Required | F7: Required | I7: Verified | J7: N | K7: HM | M7: Responsible Party
K8: HM
K9: HM
C10: Select one of the following: | K10: HM
C11: (Select one) | D11: The project is not built on land within a flood hazard area. | K11: HM | P11: Verify that floodplain map is for actual location of building and the building is above floodplain.
K12: HM
C13: (Select one) | D13: The project is built on land within a flood hazard area and in accordance with flood provisions. | K13: HM | P13: Verify that building meets local flood provisions.
K14: HM
C15: (Select one) | D15: The project is built on land within a flood hazard area and is a previously developed building and hardscape. | K15: HM | P15: Verify that building was previously developed.
K16: HM
A17: LTc1 | B17: =L17 -> LT Credit LEED for Neighborhood Development | K17: HM | L17: LT Credit LEED for Neighborhood Development
K18: HM
B19: 10 points | E19: Preliminary Y | G19: M | H19: 0 | I19: Verified | J19: 0 | K19: HM | M19: Responsible Party
K20: HM
K21: HM
E22: Name of LEED for Neighborhood Development project | K22: HM | P22: Verify that the project is located within the certified LEED ND project boundary.
K23: HM
E24: LEED ND project ID number | K24: HM
K25: HM
E26: Rating system and version | K26: HM
K27: HM
E28: LEED ND certification date | K28: HM
K29: HM
A30: LTc2 | B30: =L30 -> LT Credit Site Selection | K30: HM | L30: LT Credit Site Selection
K31: HM
B32: Up to 6 points | E32: Preliminary Y | F32: =IF(SUM(F36,F62,F71,F79,F85,F98,F104)>6,6,SUM(F36,F62,F71,F79,F85,F98,F104)) -> 0 | G32: M | H32: =IF(SUM(H36,H62,H71,H79,H85,H98,H104)>6,6,SUM(H36,H62,H71,H79,H85,H98,H104)) -> 0 | I32: Verified | J32: =IF(SUM(J36,J62,J71,J79,J85,J98,J104)>6,6,SUM(J36,J62,J71,J79,J85,J98,J104)) -> 0 | K32: HM | M32: Responsible Party
B33: Exemplary Performance: Earn more than the maximum 6 points | K33: HM
K34: HM
K35: HM
C36: Option 1. Sensitive Land Protection (3-4 points) | E36: Y | F36: =IF(F39>0,F39,F47) -> 0 | G36: M | H36: =IF(H39>0,H39,H47) -> 0 | I36: V | J36: =IF(J39>0,J39,J47) -> 0 | K36: HM | L36: =C36 -> Option 1. Sensitive Land Protection (3-4 points)
K37: HM
K38: HM
C39: Path 1. Previously Developed (4 points) | E39: Y | G39: M | I39: V | K39: HM | L39: =C39 -> Path 1. Previously Developed (4 points)
K40: HM
K41: HM
D42: =CONCATENATE("Total buildable land area",IF(Instructions!$I$85=1," (acre or sq ft)"," (hectare or sq m)")) -> Total buildable land area (acre or sq ft) | K42: HM | P42: Verify historical documents, maps, or comparable evidence of previous development; OR conduct on-site verification of existing infrastructure (e.g. foundation footings).
D43: =CONCATENATE("Previously developed buildable land area",IF(Instructions!$I$85=1," (acre or sq ft)"," (hectare or sq m)")) -> Previously developed buildable land area (acre or sq ft) | K43: HM
C44: =IFERROR(C43/C42,0) -> 0 | D44: Percentage of lot previously developed (%) | K44: HM
K45: HM
C46: OR | K46: HM
C47: Path 2. Avoidance of Sensitive Land (3 points) | E47: Y | G47: M | I47: V | K47: HM | L47: =C47 -> Path 2. Avoidance of Sensitive Land (3 points)
K48: HM
K49: HM
C50: Locate the development footprint on land that does not meet the following criteria for sensitive land: | K50: HM
C51: (Select one) | D51: Prime farmland. | K51: HM | P51: Verify that soil data map or supporting documentation that demonstrates development is not on qualifying farmland is for actual location of development.
K52: HM
C53: (Select one) | D53: Floodplains. | K53: HM | P53: Visually verify that development is not next to parkland or verify documentation the developed land was not parkland or, if parkland, was traded for land to public landowner.
K54: HM
C55: (Select one) | D55: Habitat. | K55: HM | P55: Verify that floodplain map is for actual location of building and that building is above floodplain.
K56: HM
C57: (Select one) | D57: Water bodies. | K57: HM | P57: Verify that documentation demonstrating project is not on land identified as habitat is for actual location of building.
K58: HM
C59: (Select one) | D59: Wetlands. | K59: HM | P59: Visually verify that development is not within 100 ft (30 m) of water bodies.
K60: HM
C61: AND/OR | K61: HM
C62: Option 2. Infill Development (2 points) | E62: Y | G62: M | I62: V | K62: HM | L62: =C62 -> Option 2. Infill Development (2 points)
K63: HM
K64: HM
D65: Percent of land within a 1/2 mile (800 meters) from the project boundary that is previously developed | K65: HM | P65: Verify map and calculations that development within 1/2 mile (800 meters) of project boundary is previously developed.
K66: HM
C67: Alternatively, for projects within city limits of towns with populations less than 20,000 | K67: HM | L67: =C67 -> Alternatively, for projects within city limits of towns with populations less than 20,000
D68: Percent of land adjacent to the project boundary that is previously developed | K68: HM | P68: Verify on-site that at least 75% of lot borders previously developed land.
K69: HM
C70: AND/OR | K70: HM
C71: Option 3. Open Space (1 point) | E71: Y | G71: M | I71: V | K71: HM | L71: =C71 -> Option 3. Open Space (1 point)
K72: HM
K73: HM
C74: Select one of the following: | K74: HM
C75: (Select one) | D75: Built within 1/2 mile (800 meters) of open space that is at least 3/4 acres (0.3 hectares) | K75: HM | P75: Conduct on-site certification or verify maps and calculations of publicly accessible open space of at least 3/4 acre (0.3 hectares) within 1/2 mile (800 meters) of home.
C76: (Select one) | D76: Create publically available open space on the project site | K76: HM
K77: HM
C78: AND/OR | K78: HM
C79: Option 4. Street Network (1 point) | E79: Y | G79: M | I79: V | K79: HM | L79: =C79 -> Option 4. Street Network (1 point)
K80: HM
K81: HM
D82: =CONCATENATE("Qualifying intersection density (intersections per",IF(Instructions!$I$85=1," square mile)"," square kilometer)")) -> Qualifying intersection density (intersections per square mile) | K82: HM | P82: Verify that documentation is for actual location of development and that required intersection density has been met.
K83: HM
C84: AND/OR | K84: HM
C85: Option 5. Bicycle Network and Storage (1 point) | E85: Y | G85: M | I85: V | K85: HM | L85: =C85 -> Option 5. Bicycle Network and Storage (1 point)
K86: HM
K87: HM
C88: Bicycle Network | K88: HM | L88: =C88 -> Bicycle Network
C89: Select one of the following. The project has a functional entry and/or bicycle storage within 200 yd (180 m) of a bicycle network that connects to: | K89: HM
C90: (Select one) | D90: At least 10 uses | K90: HM | P90: Verify documentation that qualifying resources are on bicycle network.
C91: (Select one) | D91: A school or employment center | K91: HM
C92: (Select one) | D92: A bus rapid transit stops, rail stations, and/or ferry terminals | K92: HM
K93: HM
C94: Bicycle Storage for Single Family Homes | K94: HM | L94: =C94 -> Bicycle Storage for Single Family Homes
C95: (Select one) | D95: The project is a single family home with garage, or has secure and covered bicycle storage. | K95: HM | P95: Verify that adequate bicycle storage is installed on site.
C97: AND/OR
C98: Option 6. Existing Infrastructure (1 point) | E98: Y | G98: M | I98: V | L98: =C98 -> Option 6. Existing Infrastructure (1 point)
K99: HM
K100: HM
C101: (Select one) | D101: Lot is within 1/2 mile of existing water service and sewer service lines | P101: Verify that lot is within 1/2 mile of existing water service and swer service lines.
C103: AND/OR
C104: Option 7. Sidewalks (1 point) | E104: Y | G104: M | I104: V | L104: =C104 -> Option 7. Sidewalks (1 point)
K105: HM
K106: HM
C107: (Select one) | D107: Lot has qualifying sidewalks | P107: Verify that lot has qualifying sidewalks
K108: HM
A109: LTc3 | B109: =L109 -> LT Credit Compact Development | K109: HM | L109: LT Credit Compact Development
K110: HM
B111: 1 point | E111: Preliminary Y | F111: 0 | G111: M | H111: 0 | I111: Verified | J111: 0 | K111: HM | M111: Responsible Party
B112: Exemplary Performance: 12 DU/acre (30 DU/hectare) | K112: HM
K113: HM
K114: HM
D115: =CONCATENATE("Total project boundary area",IF(Instructions!$I$85=1," (acre)"," (hectare)")) -> Total project boundary area (acre)
D116: =CONCATENATE("Buildable land area",IF(Instructions!$I$85=1," (acre)"," (hectare)")) -> Buildable land area (acre) | K116: HM | P116: Verify calculations of average housing density.
D117: Number of dwelling units | K117: HM
C118: =IFERROR(C117/C116,0) -> 0 | D118: =CONCATENATE(IF(Instructions!$I$85=1,"DU/acre","DU/hectare")," of buildable land") -> DU/acre of buildable land | K118: HM
K119: HM
A120: LTc4 | B120: =L120 -> LT Credit Community Resources | K120: HM | L120: LT Credit Community Resources
K121: HM
B122: 1 point | E122: Preliminary Y | F122: 0 | G122: M | H122: 0 | I122: Verified | J122: 0 | K122: HM | M122: Responsible Party
B123: Exemplary Performance: ≥ 7 uses | K123: HM
K124: HM
K125: HM
D126: Number of community resources within a 1/2 mile (800 meters) walking distance | K126: HM | P126: Verify that community resources qualify and are within walking distance.
K127: HM
A128: LTc5 | B128: =L128 -> LT Credit Access to Transit | K128: HM | L128: LT Credit Access to Transit
K129: HM
B130: Up to 2 points | E130: Preliminary Y | F130: 0 | G130: M | H130: 0 | I130: Verified | J130: 0 | K130: HM | M130: Responsible Party
B131: Exemplary Performance: For multiple transit types, 144 weekday trips and 108 weekend trips | K131: HM
K132: HM
K133: HM
C134: For projects with one or more transit types (bus, streetcar, rail, or ferry) | K134: HM | L134: =C134 -> For projects with one or more transit types (bus, streetcar, rail, or ferry)
D135: Number of weekday trips | K135: HM | P135: Verify transit schedules, transit stop locations, and calculations of transit rides within 1/4 mile (400 meter) or 1/2 mile (800 meter) of building.
D136: Number weekend day trips | K136: HM
K137: HM

Sheet SS
B1: Sustainable Sites | L1: Notes | M1: Verified (initials) | N1: Date Verified | O1: QAD Notes | P1: Verification Measure | Q1: QAD Notes
E3: Preliminary Y | F3: =SUM(F34,F66,F122) -> 0 | G3: Maybe | H3: =SUM(H34,H66,H122) -> 0 | I3: Verified | J3: =SUM(J34,J66,J122) -> 0
A5: SSp1 | B5: =L5 -> SS Prerequisite Construction Activity Pollution Prevention | K5: HM | L5: SS Prerequisite Construction Activity Pollution Prevention
K6: HM
B7: Required | F7: Required | I7: Verified | J7: N | K7: HM | M7: Responsible Party
K8: HM
K9: HM
C10: Confirm all of the following measures were implemented on the project, as applicable: | K10: HM
C11: (Select one) | D11: Stockpiled and protected disturbed topsoil from erosion. | K11: HM | P11: Conduct on-site verification that applicable erosion and pollution control measure is installed.
K12: HM
C13: (Select one) | D13: Controlled the path and velocity of runoff with silt fencing or comparable measures. | K13: HM
K14: HM
C15: (Select one) | D15: Protected on-site storm sewer inlets, streams, and lakes with straw bales, silt fencing, silt sacks, rock filters, or comparable measures. | K15: HM
K16: HM
C17: (Select one) | D17: Provided swales to divert surface water from hillsides. | K17: HM
K18: HM
C19: (Select one) | D19: Used tiers, erosion blankets, compost blankets, filter socks, berms, or comparable measures to stabilize soils in any area with a slope of 15% (6.6:1) or more that was disturbed during construction. | K19: HM
K20: HM
K21: HM
C22: (Select one) | D22: Prevented air pollution from dust and particulate matter. | K22: HM
K23: HM
C24: OR | K24: HM | L24: =C24 -> OR
C25: Select one of the following: | K25: HM
C26: (Select one) | D26: The project team created an implemented an Erosion and Sedimentation Control (ESC) plan that conforms to the requirements of the 2017 U.S. Environmental Protection Agency (EPA) Construction General Permit (CGP). | K26: HM | P26: Conduct on-site verification that applicable erosion and pollution control measure is installed.
K27: HM
K28: HM
C29: (Select one) | D29: The project team created an implemented an Erosion and Sedimentation Control (ESC) plan that conforms to local standards and codes, which are as or more stringent than the 2017 U.S. Environmental Protection Agency (EPA) Construction General Permit (CGP). | K29: HM | P29: Conduct on-site verification that applicable erosion and pollution control measure is installed.
K30: HM
K31: HM
A32: SSc1 | B32: =L32 -> SS Credit Heat Island Reduction | K32: HM | L32: SS Credit Heat Island Reduction
K33: HM
B34: 1 point | E34: Preliminary Y | F34: =IF(SUM(F38,F58)>1,1,SUM(F38,F58)) -> 0 | G34: M | H34: =IF(SUM(H38,H58)>1,1,SUM(H38,H58)) -> 0 | I34: Verified | J34: =IF(SUM(J38,J58)>1,1,SUM(J38,J58)) -> 0 | K34: HM | M34: Responsible Party
B35: Exemplary Performance: Meet a 75% threshold for Option 1.
K36: HM
K37: HM
C38: Option 1. Nonroof and Roof (1 point) | E38: Y | G38: M | I38: V | K38: HM | L38: =C38 -> Option 1. Nonroof and Roof (1 point)
K39: HM
K40: HM
C41: Hardscapes
C42: =SUM(C43:C46) -> 0 | D42: =CONCATENATE("Total hardscape area (driveways, walkways, patios, etc.)",IF(Instructions!$I$85=1," (sq ft)"," (sq m)")) -> Total hardscape area (driveways, walkways, patios, etc.) (sq ft)
D43: =CONCATENATE("Area of shaded hardscapes",IF(Instructions!$I$85=1," (sq ft)"," (sq m)")) -> Area of shaded hardscapes (sq ft) | K43: HM
D44: =CONCATENATE("Area of unshaded paving materials with an initial SR value of at least 0.33",IF(Instructions!$I$85=1," (sq ft)"," (sq m)")) -> Area of unshaded paving materials with an initial SR value of at least 0.33 (sq ft)
D45: =CONCATENATE("Area of unshaded vegetation in open pavers",IF(Instructions!$I$85=1," (sq ft)"," (sq m)")) -> Area of unshaded vegetation in open pavers (sq ft)
D46: =CONCATENATE("Remaining hardscape area (not earning credit)",IF(Instructions!$I$85=1," (sq ft)"," (sq m)")) -> Remaining hardscape area (not earning credit) (sq ft) | K46: HM
C48: Roof
C49: =SUM(C50:C52) -> 0 | D49: =CONCATENATE("Total roof area",IF(Instructions!$I$85=1," (sq ft)"," (sq m)")) -> Total roof area (sq ft) | K49: HM | P49: Verify calculations or estimates related to shaded and/or nonabsorptive areas and conduct on-site verification of shade trees or other plantings and nonabsorptive products.
D50: =CONCATENATE("Area of qualified roof products, see Table 1 in the rating system for SRI requirements",IF(Instructions!$I$85=1," (sq ft)"," (sq m)")) -> Area of qualified roof products, see Table 1 in the rating system for SRI requirements (sq ft) | K50: HM | P50: Verify calculations or estimates related to shaded and/or nonabsorptive areas and conduct on-site verification of shade trees or other plantings and nonabsorptive products.
D51: =CONCATENATE("Area of vegetated roof",IF(Instructions!$I$85=1," (sq ft)"," (sq m)")) -> Area of vegetated roof (sq ft) | K51: HM
D52: =CONCATENATE("Remaining roof area (not earning credit)",IF(Instructions!$I$85=1," (sq ft)"," (sq m)")) -> Remaining roof area (not earning credit) (sq ft)
K53: HM
K54: HM
C55: =IFERROR((C50+C51+C43+C44+C45)/(C49+C42),0) -> 0 | D55: Percentage of area with shading or nonabsorptive material (%) | K55: HM
C57: OR
C58: Option 2. Tree Planting (1 point) | E58: Y | G58: M | I58: V | L58: =C58 -> Option 2. Tree Planting (1 point)
K59: HM
K60: HM
C61: (Select one) | D61: Install tree with canopy width of 20 feet, or trees with shading area of 315 square feet. | P61: Verify canopy width of 20 feet, or trees with shading area of 315 square feet.
K63: HM
A64: SSc2 | B64: =L64 -> SS Credit Rainwater Management | K64: HM | L64: SS Credit Rainwater Management
K65: HM
B66: Up to 2 points | E66: Preliminary Y | F66: =IF((IF(F71>0,(IF(SUM(F71,F106)>2,2,SUM(F71,F106))),F100)+F106)>2,2,(IF(F71>0,(IF(SUM(F71,F106)>2,2,SUM(F71,F106))),F100)+F106)) -> 0 | G66: M | H66: =IF((IF(H71>0,(IF(SUM(H71,H106)>2,2,SUM(H71,H106))),H100)+H106)>2,2,(IF(H71>0,(IF(SUM(H71,H106)>2,2,SUM(H71,H106))),H100)+H106)) -> 0 | I66: Verified | J66: =IF((IF(J71>0,(IF(SUM(J71,J106)>2,2,SUM(J71,J106))),J100)+J106)>2,2,(IF(J71>0,(IF(SUM(J71,J106)>2,2,SUM(J71,J106))),J100)+J106)) -> 0 | K66: HM | M66: Responsible Party
B67: Exemplary Performance: For Case 1, manage 80% of all stormwater on-site or the total impermeable area is less than or equal to 33% of Reference Home or for Case 2, meet 90th percentile rainfall event | K67: HM
K68: HM
K69: HM
C70: Option 1. Rainwater Management (1-2 points) | L70: =C70 -> Option 1. Rainwater Management (1-2 points)
C71: Case 1. Low Impact Development (1-2 points) | E71: Y | G71: M | I71: V | K71: HM | L71: =C71 -> Case 1. Low Impact Development (1-2 points)
K72: HM
K73: HM
C74: Site Characteristics
C75: =SUM(C78,C84,C85) -> 0 | D75: =CONCATENATE("Total lot area",IF(Instructions!$I$85=1," (sq ft)"," (sq m)")) -> Total lot area (sq ft)
C77: Roof
C78: =SUM(C79:C81) -> 0 | D78: =CONCATENATE("Total roof area",IF(Instructions!$I$85=1," (sq ft)"," (sq m)")) -> Total roof area (sq ft)
D79: =CONCATENATE("Vegetated roof area",IF(Instructions!$I$85=1," (sq ft)"," (sq m)")) -> Vegetated roof area (sq ft)
D80: =CONCATENATE("Roof area directed to a qualifying infiltration feature",IF(Instructions!$I$85=1," (sq ft)"," (sq m)")) -> Roof area directed to a qualifying infiltration feature (sq ft)
D81: =CONCATENATE("Remaining roof area (not earning credit)",IF(Instructions!$I$85=1," (sq ft)"," (sq m)")) -> Remaining roof area (not earning credit) (sq ft)
C83: Non-roof Site Area
D84: =CONCATENATE("Total landscape softscape area",IF(Instructions!$I$85=1," (sq ft)"," (sq m)")) -> Total landscape softscape area (sq ft)
C85: =SUM(C86:C89) -> 0 | D85: =CONCATENATE("Total hardscape area (driveways, walkways, patios, etc.)",IF(Instructions!$I$85=1," (sq ft)"," (sq m)")) -> Total hardscape area (driveways, walkways, patios, etc.) (sq ft)
D86: =CONCATENATE("Permeable paving",IF(Instructions!$I$85=1," (sq ft)"," (sq m)")) -> Permeable paving (sq ft)
D87: =CONCATENATE("Qualifying open pavers",IF(Instructions!$I$85=1," (sq ft)"," (sq m)")) -> Qualifying open pavers (sq ft)
D88: =CONCATENATE("Hardscapes directed to qualifying infiltration features",IF(Instructions!$I$85=1," (sq ft)"," (sq m)")) -> Hardscapes directed to qualifying infiltration features (sq ft)
D89: =CONCATENATE("Remaining hardscape area (not earning credit)",IF(Instructions!$I$85=1," (sq ft)"," (sq m)")) -> Remaining hardscape area (not earning credit) (sq ft)
C91: Qualifying area, as a percentage of total lot area | K91: HM
C92: =IFERROR(SUM(C79,C80,C84,C86,C87,C88)/C75,0) -> 0 | D92: Qualifying area, as percentage of total lot area (%) | K92: HM | P92: Verify calculations of percentage permeable elements and verify calculations identifying percentile storm or 2 year, 24 hour storm.
K93: HM
C94: Reduction of total impermeable area | K94: HM
C95: =SUM(C81,C89) -> 0 | D95: =CONCATENATE("Total impermeable area of the project",IF(Instructions!$I$85=1," (sq ft)"," (sq m)")) -> Total impermeable area of the project (sq ft) | K95: HM
C96: =IF(Instructions!F65="","",(VLOOKUP(Instructions!F65,'MRc Construction Waste Mgmt'!A1:B17,2,FALSE))) ->  | D96: =CONCATENATE("Reference home size",IF(Instructions!$I$85=1," (sq ft)"," (sq m)")) -> Reference home size (sq ft) | K96: HM
C97: =IFERROR(C95/C96,0) -> 0 | D97: Impermeable area as a percentage of reference home size | K97: HM
K98: HM
C99: OR | K99: HM
C100: Case 2. NPDES Projects (2 points) | E100: Y | G100: M | I100: V | K100: HM | L100: =C100 -> Case 2. NPDES Projects (2 points)
K101: HM
K102: HM
D103: Percentile rainfall event | K103: HM | P103: Verify calculations identifying percentile.
C105: AND/OR
C106: Option 2. Basic Landscape Design (1 point) | E106: Y | G106: M | I106: V | L106: =C106 -> Option 2. Basic Landscape Design (1 point)
K107: HM
K108: HM
C109: Meet all of the following requirements for all designed landscape softscapes:
C110: (Select one) | D110: Do not use turf in densely shaded areas. | P110: Verify no turf in densely shaded areas.
C112: (Select one) | D112: Do not use turf in areas with a slope of 25% (i.e., 4:1 slope) or greater. | P112: Verify no turf in areas with a slope of 25% (i.e., 4:1 slope) or greaterIntroduce no invasive plant species into the landscape.
C114: (Select one) | D114: Introduce no invasive plant species into the landscape. | P114: Verify no invasive plant species introduced into the landscape.
C116: (Select one) | D116: Add mulch or soil amendments as determined by soil testing. | P116: Verify mulch or soil amendments added as determined by soil testing.
C118: (Select one) | D118: All compacted soil (e.g., from construction vehicles) must be tilled to at least 6 inches. | P118: Verify all compacted soil (e.g., from construction vehicles) tilled to at least 6 inches.
A120: SSc3 | B120: =L120 -> SS Credit Nontoxic Pest Control | K120: HM | L120: SS Credit Nontoxic Pest Control
K121: HM
B122: Up to 2 points | E122: Preliminary Y | G122: M | I122: Verified | K122: HM | M122: Responsible Party
B123: Exemplary Performance: Earn more than the maximum 2 points | K123: HM
K124: HM
K125: HM
C126: Select all of the following that have been included in the project. | K126: HM
C127: (Select one) | D127: Install a steel mesh barrier termite control system. (2 points) | K127: HM
K128: HM
C129: (Select one) | D129: Install a physical termite barrier system (e.g., basaltic rock) approved by code. (2 points) | K129: HM
K130: HM
C131: (Select one) | D131: For below-grade walls, use solid concrete foundation walls, masonry walls with a course of solid block bond beam, or concrete-filled block. (1 point) | K131: HM
K132: HM
K133: HM
C134: (Select one) | D134: Install post-tension slabs. (1 point) | K134: HM
K135: HM
C136: (Select one) | D136: Treat all cellulosic structural material (e.g., wood framing) with a registered pesticide containing borates, or meet the manufacturer’s warranty requirements for preconstruction treatment. (1 point) | K136: HM
K137: HM
K138: HM
C139: (Select one) | D139: Use noncellulosic material for all structural elements. (1 point) | K139: HM
K140: HM
C141: (Select one) | D141: Install ports or openings for all plumbing elements that penetrate the slab, to allow access for inspection and treatment of pest infestations. (1 point) | K141: HM
K142: HM
K143: HM
C144: (Select one) | D144: Install a registered termite bait system and provide for ongoing maintenance as required by the manufacturer. (1 point) | K144: HM
K145: HM
C146: (Select one) | D146: Design a minimum 6-inch (150 millimeters) inspection space between the surface of the planned landscape grade and nonmasonry siding. (1 point) | K146: HM
K147: HM
K148: HM
C149: (Select one) | D149: Seal all external cracks, joints, penetrations, edges, and entry points with appropriate caulking. Install rodent- and corrosion-proof screens (e.g., copper or stainless steel mesh) on all openings greater than ¼ inch (6 millimeters), except where code prohibits their installation. (1 point) | K149: HM
K150: HM
K151: HM
K152: HM
C153: (Select one) | D153: Design discharge points for rain gutters, air-conditioning condensation lines, steam vent lines, or any other moisture source such that discharge is at least 24 inches (600 millimeters) from the foundation. (1 point) | K153: HM
K154: HM
K155: HM
C156: (Select one) | D156: Design landscape features to provide a minimum 18-inch (450 millimeters) space between the exterior wall and any plantings. (1 point) | K156: HM
K157: HM
C158: For multifamily projects | K158: HM | L158: =C158 -> For multifamily projects
C159: (Select one) | D159: Develop an integrated pest management policy. The policy must include guidance for residents on pesticide use, housekeeping and prompt reporting of pest problems and incorporate policy in the Homeowner Education Manual. (Required) | K159: HM | P159: Conduct on-site verification that credit requirements are met.
K160: HM

Sheet WE
B1: Water Efficiency | L1: Notes | M1: Verified (initials) | N1: Date Verified | O1: QAD Notes | P1: Verification Measure | Q1: QAD Notes
E3: Preliminary Y | F3: =IF(WE!$F$32>0,WE!$F$32,SUM(F43,F65)) -> 0 | G3: Maybe | H3: =IF(WE!$H$32>0,WE!$H$32,SUM(H43,H65)) -> 0 | I3: Verified | J3: =IF(WE!$J$32>0,WE!$J$32,SUM(J43,J65)) -> 0
A5: WEp1 | B5: =L5 -> WE Prerequisite Water Use | K5: HM | L5: WE Prerequisite Water Use
B7: Required | F7: Required | I7: Verified | J7: =IF(OR(C13=0.2,C13>0.2,C19=3,C19>3),"Y","N") -> N | M7: Responsible Party
C10: Option 1. Total Water Use
C11: Reduce total indoor and outdoor water consumption by at least 20% over standard practices
C13: ='Water Reduction Calculator'!I141 -> 0 | D13: Total reduction of indoor and outdoor water consumption as calculated in the Water Reduction Calculator (%)
C15: OR
C16: Option 2. Indoor and Outdoor Water Use
C17: Achieve 3 points in WE credit Indoor Water Use and/or WE credit Outdoor Water Use
C19: =J43+J65 -> 0 | D19: Total points in WE credit Indoor Water Use and WE credit Outdoor Water Use
A21: WEp1 | B21: =L21 -> WE Prerequisite Water Metering | K21: HM | L21: WE Prerequisite Water Metering
K22: HM
B23: Required | F23: Required | I23: Verified | K23: HM | M23: Responsible Party
K24: HM
K25: HM
C26: Select one of the following: | K26: HM
C27: (Select one) | D27: A whole-house water meter is installed. | K27: HM | P27: Conduct on-site verification that water meter is installed.
C28: (Select one) | D28: The house uses only well water and is not connected to a municipal water system. | K28: HM | P28: Conduct on-site verification that only well water is used.
K29: HM
A30: WEc1 | B30: =L30 -> WE Credit Total Water Use | K30: HM | L30: WE Credit Total Water Use
K31: HM
B32: 3 to 15 points | E32: Preliminary Y | G32: M | I32: Verified | K32: HM | M32: Responsible Party
B33: Exemplary Performance: 85% reduction of indoor and outdoor water consumption | K33: HM
K34: HM
K35: HM
C36: ='Water Reduction Calculator'!I141 -> 0 | D36: Total reduction of indoor and outdoor water consumption as calculated in the Water Reduction Calculator (%) | K36: HM | P36: Visually verify that listed indoor fixtures were installed and that water calculator’s inputs match installed fixtures’ performance criteria. Conduct on-site verification that outdoor water use calculator’s inputs match installed fixtures’ performance criteria; conduct on-site verification of any water-saving items identified in calculation, including high-efficiency irrigation measures and high-low shading conditions; and for any drought-tolerant plants, compare list of installed plants with list of regional drought-tolerant plants created by a third-party entity.
K37: HM
C38: (Select one) | D38: The water pressure has been tested. There are no detectable water leaks. Any installed water softeners are demand initiated. | K38: HM | P38: Test and record water pressure. Test for water leaks. Verify installed water softeners are demand initiated.
K39: HM
K40: HM
A41: WEc2 | B41: =L41 -> WE Credit Indoor Water Use | K41: HM | L41: WE Credit Indoor Water Use
K42: HM
B43: Up to 11 points | E43: Preliminary Y | G43: M | I43: Verified | K43: HM | M43: Responsible Party
K44: HM
K45: HM
C46: (Select one) | D46: The water pressure has been tested. There are no detectable water leaks. Any installed water softeners are demand initiated. | K46: HM | P46: Test and record water pressure. Test for water leaks.
C47: Meet any of the following: | K47: HM
C48: Lavatory Faucet (2-3 points) | K48: HM | L48: =C48 -> Lavatory Faucet (2-3 points)
C49: (Select one) | D49: All installed lavatory faucets and/or faucet aerators are WaterSense labeled. | K49: HM | P49: Conduct on-site verification that faucets are installed, comparing installed items with manufacturers’ specification sheets where necessary; ensure all items are WaterSense labeled.
D50: =CONCATENATE("Average rated flow volume across all lavatory faucets",IF(Instructions!$I$85=1," (gpm)"," (lpm)")) -> Average rated flow volume across all lavatory faucets (gpm) | K50: HM | P50: Verify average rated flow.
K51: HM
C52: Showerheads (1-3 points) | K52: HM | L52: =C52 -> Showerheads (1-3 points)
C53: (Select one) | D53: All installed showerhead fixtures and fittings are WaterSense labeled. | K53: HM | P53: Conduct on-site verification that showerheads are installed, comparing installed items with manufacturers’ specification sheets where necessary; ensure all items are WaterSense labeled.
D54: =CONCATENATE("Total rated flow volume per shower compartment, averaged across all shower compartments",IF(Instructions!$I$85=1," (gpm)"," (lpm)")) -> Total rated flow volume per shower compartment, averaged across all shower compartments (gpm) | K54: HM | P54: Verify average rated flow.
K55: HM
C56: Toilets (1-3 points) | K56: HM | L56: =C56 -> Toilets (1-3 points)
C57: (Select one) | D57: All installed toilet fixtures and fittings are WaterSense labeled. | K57: HM | P57: Conduct on-site verification that high-efficiency toilets are installed, comparing installed items with manufacturers’ specification sheets where necessary; ensure all items are WaterSense labeled.
D58: =CONCATENATE("Average rated flush volume across all toilets",IF(Instructions!$I$85=1," (gpf)"," (lpf)")) -> Average rated flush volume across all toilets (gpf) | K58: HM | P58: Verify average rated flow.
K59: HM
C60: Clothes Washers (2 points) | K60: HM | L60: =C60 -> Clothes Washers (2 points)
C61: (Select one) | D61: All clothes washers are ENERGY STAR qualified or performance equivalent | K61: HM | P61: Conduct on-site verification that clothes washers are installed, comparing installed items with manufacturers’ specification sheets where necessary; ensure all items are ENERGY STAR labeled.
K62: HM
A63: WEc3 | B63: =L63 -> WE Credit Outdoor Water Use | K63: HM | L63: WE Credit Outdoor Water Use
K64: HM
B65: Up to 4 points | E65: Preliminary Y | F65: =IF(F68>0,F68,F72) -> 0 | G65: M | H65: =IF(H68>0,H68,H72) -> 0 | I65: Verified | J65: =IF(J68>0,J68,J72) -> 0 | K65: HM | M65: Responsible Party
K66: HM
K67: HM
C68: Option 1. Efficient Landscaping (1-4 points) | E68: Y | G68: M | I68: V | L68: =C68 -> Option 1. Efficient Landscaping (1-4 points)
D69: Native or adapted plant area as a percentage of total landscape softscape area (%) | K69: HM | P69: For all native or adapted plants, compare list of installed plants with list of regional native and adapted plants created by third-party entity
C71: OR
C72: Option 2. Efficient Irrigation (1-2 points) | E72: Y | G72: M | I72: V | L72: =C72 -> Option 2. Efficient Irrigation (1-2 points)
K73: HM
C74: Design and install a high-efficiency irrigation such that any of the following are met (1 point per measure):
C76: (Select one) | D76: Use of pressure regulation for every zone (valve or sprinkler) | P76: Verify use of pressure regulation for every zone (valve or sprinkler)
C78: (Select one) | D78: Use of check valves on sloped irrigation zones, where needed to prevent low head drainage | P78: Verify use of check valves on sloped irrigation zones, where needed to prevent low head drainage
C80: (Select one) | D80: Flow sensing with a master valve and irrigation controller that responds to a high-flow occurrence | P80: Verify flow sensing with a master valve and irrigation controller that responds to a high-flow occurrence
C82: (Select one) | D82: Use of smart irrigation control technology (weather based, soil moisture sensors, rain sensors, etc.) | P82: Verify use of smart irrigation control technology (weather based, soil moisture sensors, rain sensors, etc.)
C84: (Select one) | D84: Create separate zones for each type of bedding area based on watering needs | P84: Verify separate zones created for each type of bedding area based on watering needs
C86: (Select one) | D86: Use of drip irrigation for at least 50% of planting area | P86: Verify use of drip irrigation for at least 50% of planting area

Sheet EA
B1: Energy and Atmosphere | L1: Notes | M1: Verified (initials) | N1: Date Verified | O1: QAD Notes | P1: Verification Measure | Q1: QAD Notes
E3: Preliminary Y | F3: =SUM(F48,F86,F166,F178) -> 0 | G3: Maybe | H3: =SUM(H48,H86,H166,H178) -> 0 | I3: Verified | J3: =SUM(J48,J86,J166,J178) -> 0
A5: EAp1 | B5: =L5 -> EA Prerequisite Minimum Energy Performance | K5: HM | L5: EA Prerequisite Minimum Energy Performance
K6: HM
B7: Required | F7: Required | I7: Verified | J7: N | K7: HM | M7: Responsible Party
K8: HM
K9: HM
C10: 1. ENERGY STAR for Homes version 3 | K10: H | L10: =C10 -> 1. ENERGY STAR for Homes version 3
K11: H
C12: (Select one) | D12: ENERGY STAR version 3 checklists are complete | K12: H | P12: Upload energy model file AND upload ENERGY STAR for Homes pdf report demonstrating that project meets ENERGY STAR for Homes requirements; OR upload builders’ option package to demonstrate compliance with prescriptive ENERGY STAR for Homes requirements. Conduct on-site verification of required ENERGY STAR for Homes inspection and upload ENERGY STAR for Homes inspection checklist.
K13: H
D14: HERS Index Rating | K14: H | P14: Verify HERS index
D15: ENERGY STAR HERS Index Target (SAF Adjusted) | K15: H
K16: H
C17: 2. ENERGY STAR Qualified Appliances | K17: H | L17: =C17 -> 2. ENERGY STAR Qualified Appliances
K18: H
C19: Select at least one of the following: | K19: H | P19: Verify appliance(s) is installed.
C20: (Select one) | D20: ENERGY STAR refrigerator is installed. | K20: H
C21: (Select one) | D21: ENERGY STAR dishwasher is installed. | K21: H
C22: (Select one) | D22: ENERGY STAR clothes washer is installed. | K22: H
K23: H
C24: 3. Duct Runs | K24: H | L24: =C24 -> 3. Duct Runs
K25: H
C26: (Select one) | D26: All duct runs are fully ducted. | K26: H | P26: Verify duct runs are fully ducted
K27: H
A28: EAp2 | B28: =L28 -> EA Prerequisite Energy Metering | K28: HM | L28: EA Prerequisite Energy Metering
K29: HM
B30: Required | F30: Required | I30: Verified | K30: HM | M30: Responsible Party
K31: HM
K32: HM
C33: (Select one) | D33: A whole-house electric meter is installed. | K33: HM | P33: Conduct on-site verification that applicable utility meter is installed.
C34: (Select one) | D34: A whole-house gas meter is installed. | K34: HM | P34: Conduct on-site verification that applicable utility meter is installed.
K35: HM
K36: HM
A37: EAp3 | B37: =L37 -> EA Prerequisite Education of Homeowner, Tenant, or Building Manager | K37: HM | L37: EA Prerequisite Education of Homeowner, Tenant, or Building Manager
K38: HM
B39: Required | F39: Required | I39: Verified | K39: HM | M39: Responsible Party
K40: HM
K41: HM
C42: (Select one) | D42: An operations and maintenance manual, binder, or CD has been/will be provided to all individuals or organizations responsible for the maintenance of the home. | K42: HM | P42: Verify that operations and maintenance manual includes required elements.
K43: HM
C44: (Select one) | D44: A minimum one-hour walkthrough of the home with the occupants has been conducted. | K44: HM | P44: Verify that building walkthrough was performed.
K45: HM
A46: EAc1 | B46: =L46 -> EA Credit Annual Energy Use | K46: H | L46: EA Credit Annual Energy Use
K47: H
B48: Up to 36 points | E48: Preliminary Y | F48: =IF(F52>0,F52,F61) -> 0 | G48: M | H48: =IF(H52>0,H52,H61) -> 0 | I48: Verified | J48: =IF(Instructions!F25="New Construction",IF(EA!J52>EA!J61,EA!J52,EA!J61),EA!J61) ->  | K48: H | M48: Responsible Party
B49: Exemplary Performance: For Option 1, 100% reduction; For Option 2, -10 HERS Index Rating. | K49: H
K50: H
K51: H
C52: Option 1. LEED Energy Budget (1-36 points) | E52: Y | G52: M | I52: V | J52: =IF(Instructions!F25="","",IF(Instructions!F25="New Construction",C58,"")) ->  | K52: H | L52: =C52 -> Option 1. LEED Energy Budget (1-36 points)
K53: H
K54: H
D55: LEED Reference Energy Budget (MMBtu/year) | K55: H | P55: Verify energy model output demonstrating energy savings from energy model.
D56: As Designed Energy Budget (MMBtu/year) | K56: H
C57: =IFERROR(FLOOR(1-C56/C55,0.01),"") ->  | D57: Percent reduction below LEED Energy Budget (%) | K57: H
C58: =IF(OR(C55="",C56=""),0,IFERROR(VLOOKUP(C57,'EA Lowrise'!H:I,2),0)) -> 0 | D58: Total Points
K59: H
C60: OR | K60: H
C61: Option 2. HERS Index (SAF Adjusted) (1-36 points) | E61: Y | G61: M | I61: V | J61: =IF(Instructions!F25="","",MAX(C70,C75,C82)) ->  | K61: H | L61: =C61 -> Option 2. HERS Index (SAF Adjusted) (1-36 points)
K62: H
K64: H
C65: Case 1: New Construction
C67: =IF(C14="","",C14) ->  | D67: HERS Index Rating
D68: Size Adjustment Factor (SAF) from the ENERGY STAR for Homes Report | P68: Verify Size Adjustment factor (SAF)
C69: =IFERROR(ROUND(C67/C68,0),0) -> 0 | D69: HERS Index (SAF Adjusted)
C70: =IF(OR(C67="",C68=""),0,IF(C14<0,36,(IFERROR(VLOOKUP(C69,'EA Lowrise'!N:O,2,FALSE),0)))) -> 0 | D70: Points for achieving HERS Index Rating
C72: =IF(C15="","",C15) ->  | D72: ENERGY STAR HERS Index Target (SAF Adjusted)
C73: =C69 -> 0 | D73: HERS Index (SAF Adjusted)
C74: =IFERROR(C72-C73,"") ->  | D74: HERS Index points below ENERGY STAR HERS Index Target (SAF Adjusted)
C75: =IFERROR(VLOOKUP(C74,'EA Lowrise'!K1:L1500,2,FALSE),0) -> 0 | D75: Points for HERS points below ENERGY STAR HERS Index Target (SAF Adjusted)
C77: Case 2: Major Renovation
C79: =IF(C14="","",C14) ->  | D79: HERS Index Rating
D80: Size Adjustment Factor (SAF) from the ENERGY STAR for Homes Report
C81: =IFERROR(ROUND(C79/C80,0),0) -> 0 | D81: HERS Index (SAF Adjusted)
C82: =IF(OR(C79="",C80=""),0,IF(C14<0,36,(IFERROR(VLOOKUP(C81,'EA Lowrise'!Q:R,2,FALSE),0)))) -> 0 | D82: Points for achieving HERS Index Rating
A84: EAc2 | B84: =L84 -> EA Credit Efficient Hot Water Distribution System | K84: HM | L84: EA Credit Efficient Hot Water Distribution System
K85: HM
B86: Up to 2 points | E86: Preliminary Y | F86: =IF(F89>0,F89+F159,F123+F159) -> 0 | G86: M | H86: =IF(H89>0,H89+H159,H123+H159) -> 0 | I86: Verified | J86: =IF(J89>0,J89+J159,J123+J159) -> 0 | K86: HM | M86: Responsible Party
K87: HM
K88: HM
C89: Option 1. Efficient Hot Water Distribution (1 point) | E89: Y | F89: =IF(F107>0,F107,F117) -> 0 | G89: M | H89: =IF(H107>0,H107,H117) -> 0 | I89: V | J89: =IF(J107>0,J107,J117) -> 0 | K89: HM | L89: =C89 -> Option 1. Efficient Hot Water Distribution (1 point)
K90: HM
K91: HM
C92: For projects using circulating systems | K92: HM | L92: =C92 -> For projects using circulating systems
C93: (Select one) | D93: Circulating pump does not operate continuously, is on a timer, or is on a water temperature sensor. | K93: HM | P93: Verify circulating pump does not operate continuously, on a timer, or on a water temperature sensor.
K94: HM
C95: (Select one) | D95: Circulating pump is demand activated by a momentary contact switch, motion sensor, flow switch, door switch or voice command. | K95: HM | P95: Verify circulating pump is demand activated by a momentary contact switch, motion sensor, flow switch, door switch or voice command.
K96: HM
C97: (Select one) | D97: After the pump starts, the controls allow the pump to operate until the water temperature in the return pipe rises not more than 10ºF (6 ºC) above the initial temperature of the water in the pipe. Controls limit the water temperature to a maximum of 105ºF (40 ºC). Controls limit pump operation to not more than 5 minutes per activation in the event that both means of shutting off the pump have failed. | K97: HM
K98: HM
K99: HM
K100: HM
C101: (Select one) | D101: Circulating hot water systems have with an automatic or readily accessible manual switch to turn off the hot water circulating pump when not in use. | K101: HM
K102: HM
K103: HM
C104: For projects using heat-traced piping systems | K104: HM | L104: =C104 -> For projects using heat-traced piping systems
C105: (Select one) | D105: Piping is insulated. | K105: HM | P105: If system uses heat traced piping, verify piping is insulated.
K106: HM
C107: Path 1. Maximum Allowable Pipe Length (1 point) | E107: Y | G107: M | I107: V | K107: HM | L107: =C107 -> Path 1. Maximum Allowable Pipe Length (1 point)
K108: HM
K109: HM
D110: =CONCATENATE("Pipe or tube length installed",IF(Instructions!$I$85=1," (ft)"," (m)")) -> Pipe or tube length installed (ft) | K110: HM | P110: Conduct on-site verification that installed hot water distribution system meets requirements for plumbing run lengths and diameter.
D111: =CONCATENATE("Nominal pipe size",IF(Instructions!$I$85=1," (in)"," (mm)")) -> Nominal pipe size (in) | K111: HM
C112: =IFERROR(IF(Instructions!$I$85=1,LOOKUP(C111,Instructions!$I$89:$I$99,Instructions!$J$89:$J$99),LOOKUP(C111,Instructions!$I$101:$I$111,Instructions!$J$101:$J$111)),"") ->  | D112: =CONCATENATE("Maximum pipe or tube length allowed for water heaters, boilers with no circulation loop or heat traced pipe or in multifamily buildings a central circulation loop or heat traced pipe",IF(Instructions!$I$85=1," (ft)"," (m)")) -> Maximum pipe or tube length allowed for water heaters, boilers with no circulation loop or heat traced pipe or in multifamily buildings a central circulation loop or heat traced pipe (ft) | K112: HM
K113: HM
C114: =IFERROR(IF(Instructions!$I$85=1,LOOKUP(C111,Instructions!$I$89:$I$99,Instructions!$K$89:K$99),LOOKUP(C111,Instructions!$I$101:$I$111,Instructions!$K$101:$K$111)),"") ->  | D114: =CONCATENATE("Maximum pipe or tube length allowed for circulation loop or heat traced pipe serving a single unit or house",IF(Instructions!$I$85=1," (ft)"," (m)")) -> Maximum pipe or tube length allowed for circulation loop or heat traced pipe serving a single unit or house (ft) | K114: HM
K115: HM
C116: OR | K116: HM
C117: Path 2. Maximum Allowable Pipe Volume (1 point) | E117: Y | G117: M | I117: V | K117: HM | L117: =C117 -> Path 2. Maximum Allowable Pipe Volume (1 point)
K118: HM
K119: HM
D120: =CONCATENATE("Volume of hot or tempered water from source to termination",IF(Instructions!$I$85=1," (oz)"," (L)")) -> Volume of hot or tempered water from source to termination (oz) | K120: HM | P120: Conduct on-site verification that installed hot water distribution system meets requirements for plumbing run lengths and diameter.
K121: HM
C122: OR | K122: HM
C123: Option 2. Performance Test (1 point) | E123: Y | F123: =IF(F142>0,F142,F150) -> 0 | G123: M | H123: =IF(H142>0,H142,H150) -> 0 | I123: V | J123: =IF(J142>0,J142,J150) -> 0 | K123: HM | L123: =C123 -> Option 2. Performance Test (1 point)
K124: HM
K125: HM
C126: For projects using circulating systems | K126: HM | L126: =C126 -> For projects using circulating systems
C127: (Select one) | D127: Circulating pump does not operate continuously, is on a timer, or is on a water temperature sensor. | K127: HM | P127: Verify circulating pump does not operate continuously, on a timer, or on a water temperature sensor.
K128: HM
C129: (Select one) | D129: Circulating pump is demand activated by a momentary contact switch, motion sensor, flow switch, door switch or voice command. | K129: HM | P129: Verify circulating pump is demand activated by a momentary contact switch, motion sensor, flow switch, door switch or voice command.
K130: HM
C131: (Select one) | D131: After the pump starts, the controls allow the pump to operate until the water temperature in the return pipe rises not more than 10ºF (6 ºC) above the initial temperature of the water in the pipe. Controls limit the water temperature to a maximum of 105ºF (40 ºC). Controls limit pump operation to not more than 5 minutes per activation in the event that both means of shutting off the pump have failed. | K131: HM
K132: HM
K133: HM
K134: HM
C135: (Select one) | D135: Circulating hot water systems have with an automatic or readily accessible manual switch to turn off the hot water circulating pump when not in use. | K135: HM
K136: HM
K137: HM
C138: For projects using heat-traced piping systems | K138: HM | L138: =C138 -> For projects using heat-traced piping systems
C139: (Select one) | D139: Piping is insulated. | K139: HM | P139: If system uses heat traced piping, verify piping is insulated.
K140: HM
C141: Note: Projects using heat traces that serve a single unit or house are awarded only half credit. | K141: HM
C142: Case 1. Hot water source is a water heater or boiler with no circulation loop or heat traced pipe; or in multifamily buildings a central circulation loop or heat traced pipe. | E142: Y | G142: M | I142: V | K142: HM | L142: =C142 -> Case 1. Hot water source is a water heater or boiler with no circulation loop or heat traced pipe; or in multifamily buildings a central circulation loop or heat traced pipe.
K144: HM
C145: (Select one) | D145: Meets WaterSense Labeled New Homes requirements | K145: HM | P145: Verify project meets WaterSense Labeled New Homes requirements
K146: HM
D147: =CONCATENATE("Tested volume of water stored in piping",IF(Instructions!$I$85=1," (gal)"," (L)")) -> Tested volume of water stored in piping (gal) | K147: HM | P147: Conduct test to determine volume of water in hot water plumbing runs.
K148: HM
C149: OR | K149: HM
C150: Case 2. Hot water source is a circulation loop or heat traced pipe serving a single unit or house | E150: Y | G150: M | I150: V | K150: HM | L150: =C150 -> Case 2. Hot water source is a circulation loop or heat traced pipe serving a single unit or house
K152: HM
D153: =CONCATENATE("Tested volume of water stored in piping",IF(Instructions!$I$85=1," (gal)"," (L)")) -> Tested volume of water stored in piping (gal) | K153: HM | P153: Conduct test to determine volume of water in hot water plumbing runs.
K154: HM
C155: For projects using heat-traced piping systems | K155: HM | L155: =C155 -> For projects using heat-traced piping systems
C156: (Select one) | D156: Piping is insulated. | K156: HM | P156: If system uses heat traced piping, verify piping is insulated.
K157: HM
C158: AND/OR | K158: HM
C159: Option 3. Pipe Insulation (1 point) | E159: Y | G159: M | I159: V | K159: HM | L159: =C159 -> Option 3. Pipe Insulation (1 point)
K160: HM
K161: HM
D162: Insulation R-value | K162: HM | P162: Conduct on-site verification that installed hot water distribution system meets requirements for pipe insulation.
K163: HM
A164: EAc5 | B164: =L164 -> EA Credit HVAC Start-Up Credentialing | K164: H | L164: EA Credit HVAC Start-Up Credentialing
K165: H
B166: 1 point | E166: Preliminary Y | F166: 0 | G166: M | H166: 0 | I166: Verified | J166: 0 | K166: H | M166: Responsible Party
K167: H
K168: H
E169: Name of technician | K169: H | P169: Verify that contractor who performed start-up work and completed installation checklists meets credit requirements.
K170: H
E171: Company of technician | K171: H
K172: H
C173: Technician commissioning all heating, cooling, and ventilation systems has the following credential | K173: H
K174: H
K175: H
B176: EA Credit Refrigerant Management | L176: =B176 -> EA Credit Refrigerant Management
B178: 1 point | E178: Preliminary Y | F178: 0 | G178: M | H178: 0 | I178: Verified | J178: 0 | M178: Responsible Party
B179: Exemplary Performance: Do not use refrigerants, or use only refrigerants that have an ozone depletion potential (ODP) of zero and a global warming potential (GWP) of less than 50.
C181: Option 1. Refrigerant Selection
D183: Refrigerant used
C185: OR | P185: Verify refrigerant used
C186: Option 2. Calculation Approach
D188: System type
D189: Refrigerant
D190: Maximum refrigerant charge or weighted average ratio of refrigerant charge

Sheet EA Lowrise (hidden)
A1: HERS index | B1: Points | D1: Percentage reduction | E1: Floor | F1: Points | H1: Annual Energy Use Option 1 Percentage | I1: Annual Energy Use Option 1 Points | K1: Points below HERS Index Target (SAF Adjusted) | L1: Points | N1: HERS Index | O1: Points | Q1: HERS Index | R1: Points
A2: 0 | B2: 29 | D2: 0 | E2: =FLOOR(D2,0.001) -> 0 | F2: 0 | H2: 0.01 | I2: 1 | K2: 0 | L2: 10 | N2: 70 | O2: 10 | Q2: 84 | R2: 1
A3: 1 | B3: 28 | D3: 0.001 | E3: =FLOOR(D3,0.001) -> 0.001 | F3: 0 | H3: 0.02 | I3: 2 | K3: 1 | L3: 11 | N3: 69 | O3: 11 | Q3: 83 | R3: 1
A4: 2 | B4: 28 | D4: 0.002 | E4: 0.002 | F4: 0 | H4: 0.03 | I4: 3 | K4: 2 | L4: 12 | N4: 68 | O4: 12 | Q4: 82 | R4: 2
A5: 3 | B5: 28 | D5: 0.003 | E5: 0.003 | F5: 0 | H5: 0.04 | I5: 4 | K5: 3 | L5: 13 | N5: 67 | O5: 13 | Q5: 81 | R5: 2
A6: 4 | B6: 28 | D6: 0.004 | E6: 0.004 | F6: 0 | H6: 0.05 | I6: 5 | K6: 4 | L6: 14 | N6: 66 | O6: 14 | Q6: 80 | R6: 3
A7: 5 | B7: 28 | D7: 0.005 | E7: 0.005 | F7: 0 | H7: 0.06 | I7: 6 | K7: 5 | L7: 15 | N7: 65 | O7: 15 | Q7: 79 | R7: 3
A8: 6 | B8: 27 | D8: 0.006 | E8: 0.006 | F8: 0 | H8: 0.07 | I8: 7 | K8: 6 | L8: 16 | N8: 64 | O8: 16 | Q8: 78 | R8: 4
A9: 7 | B9: 27 | D9: 0.007 | E9: 0.007 | F9: 0 | H9: 0.08 | I9: 8 | K9: 7 | L9: 17 | N9: 63 | O9: 17 | Q9: 77 | R9: 4
A10: 8 | B10: 27 | D10: 0.008 | E10: 0.008 | F10: 0 | H10: 0.09 | I10: 9 | K10: 8 | L10: 18 | N10: 62 | O10: 18 | Q10: 76 | R10: 5
A11: 9 | B11: 27 | D11: 0.009 | E11: 0.009 | F11: 0 | H11: 0.1 | I11: 10 | K11: 9 | L11: 19 | N11: 61 | O11: 19 | Q11: 75 | R11: 5
A12: 10 | B12: 27 | D12: 0.01 | E12: 0.01 | F12: 1 | H12: 0.11 | I12: 11 | K12: 10 | L12: 20 | N12: 60 | O12: 20 | Q12: 74 | R12: 6
A13: 11 | B13: 26 | D13: 0.011 | E13: 0.011 | F13: 1 | H13: 0.12 | I13: 12 | K13: 11 | L13: 21 | N13: 59 | O13: 21 | Q13: 73 | R13: 7
A14: 12 | B14: 26 | D14: 0.012 | E14: 0.012 | F14: 1 | H14: 0.13 | I14: 13 | K14: 12 | L14: 22 | N14: 58 | O14: 22 | Q14: 72 | R14: 8
A15: 13 | B15: 26 | D15: 0.013 | E15: 0.013 | F15: 1 | H15: 0.14 | I15: 14 | K15: 13 | L15: 22 | N15: 57 | O15: 22 | Q15: 71 | R15: 9
A16: 14 | B16: 26 | D16: 0.014 | E16: 0.014 | F16: 1 | H16: 0.15 | I16: 15 | K16: 14 | L16: 23 | N16: 56 | O16: 23 | Q16: 70 | R16: 10
A17: 15 | B17: 26 | D17: 0.015 | E17: 0.015 | F17: 1 | H17: 0.16 | I17: 16 | K17: 15 | L17: 23 | N17: 55 | O17: 23 | Q17: 69 | R17: 11
A18: 16 | B18: 25 | D18: 0.016 | E18: 0.016 | F18: 1 | H18: 0.17 | I18: 17 | K18: 16 | L18: 24 | N18: 54 | O18: 24 | Q18: 68 | R18: 12
A19: 17 | B19: 25 | D19: 0.017 | E19: 0.017 | F19: 1 | H19: 0.18 | I19: 18 | K19: 17 | L19: 24 | N19: 53 | O19: 24 | Q19: 67 | R19: 13
A20: 18 | B20: 25 | D20: 0.018 | E20: 0.018 | F20: 1 | H20: 0.19 | I20: 19 | K20: 18 | L20: 25 | N20: 52 | O20: 25 | Q20: 66 | R20: 14
A21: 19 | B21: 25 | D21: 0.019 | E21: 0.019 | F21: 1 | H21: 0.2 | I21: 20 | K21: 19 | L21: 25 | N21: 51 | O21: 25 | Q21: 65 | R21: 15
A22: 20 | B22: 25 | D22: 0.02 | E22: 0.02 | F22: 2 | H22: 0.21 | I22: 21 | K22: 20 | L22: 26 | N22: 50 | O22: 26 | Q22: 64 | R22: 16
A23: 21 | B23: 24 | D23: 0.021 | E23: 0.021 | F23: 2 | H23: 0.22 | I23: 21 | K23: 21 | L23: 26 | N23: 49 | O23: 26 | Q23: 63 | R23: 17
A24: 22 | B24: 24 | D24: 0.022 | E24: 0.022 | F24: 2 | H24: 0.23 | I24: 22 | K24: 22 | L24: 26 | N24: 48 | O24: 26 | Q24: 62 | R24: 18
A25: 23 | B25: 24 | D25: 0.023 | E25: 0.023 | F25: 2 | H25: 0.24 | I25: 22 | K25: 23 | L25: 26 | N25: 47 | O25: 26 | Q25: 61 | R25: 19
A26: 24 | B26: 24 | D26: 0.024 | E26: 0.024 | F26: 2 | H26: 0.25 | I26: 23 | K26: 24 | L26: 26 | N26: 46 | O26: 26 | Q26: 60 | R26: 20
A27: 25 | B27: 24 | D27: 0.025 | E27: 0.025 | F27: 2 | H27: 0.26 | I27: 23 | K27: 25 | L27: 27 | N27: 45 | O27: 27 | Q27: 59 | R27: 21
A28: 26 | B28: 23 | D28: 0.026 | E28: 0.026 | F28: 2 | H28: 0.27 | I28: 24 | K28: 26 | L28: 27 | N28: 44 | O28: 27 | Q28: 58 | R28: 22
A29: 27 | B29: 23 | D29: 0.027 | E29: 0.027 | F29: 2 | H29: 0.28 | I29: 24 | K29: 27 | L29: 27 | N29: 43 | O29: 27 | Q29: 57 | R29: 22
A30: 28 | B30: 23 | D30: 0.028 | E30: 0.028 | F30: 2 | H30: 0.29 | I30: 25 | K30: 28 | L30: 27 | N30: 42 | O30: 27 | Q30: 56 | R30: 23
A31: 29 | B31: 23 | D31: 0.029 | E31: 0.029 | F31: 2 | H31: 0.3 | I31: 25 | K31: 29 | L31: 27 | N31: 41 | O31: 27 | Q31: 55 | R31: 23
A32: 30 | B32: 23 | D32: 0.03 | E32: 0.03 | F32: 3 | H32: 0.31 | I32: 26 | K32: 30 | L32: 28 | N32: 40 | O32: 28 | Q32: 54 | R32: 24
A33: 31 | B33: 22 | D33: 0.031 | E33: 0.031 | F33: 3 | H33: 0.32 | I33: 26 | K33: 31 | L33: 28 | N33: 39 | O33: 28 | Q33: 53 | R33: 24
A34: 32 | B34: 22 | D34: 0.032 | E34: 0.032 | F34: 3 | H34: 0.33 | I34: 27 | K34: 32 | L34: 28 | N34: 38 | O34: 28 | Q34: 52 | R34: 25
A35: 33 | B35: 22 | D35: 0.033 | E35: 0.033 | F35: 3 | H35: 0.34 | I35: 27 | K35: 33 | L35: 28 | N35: 37 | O35: 28 | Q35: 51 | R35: 25
A36: 34 | B36: 22 | D36: 0.034 | E36: 0.034 | F36: 3 | H36: 0.35 | I36: 27 | K36: 34 | L36: 28 | N36: 36 | O36: 28 | Q36: 50 | R36: 26
A37: 35 | B37: 22 | D37: 0.035 | E37: 0.035 | F37: 3 | H37: 0.36 | I37: 28 | K37: 35 | L37: 29 | N37: 35 | O37: 29 | Q37: 49 | R37: 26
A38: 36 | B38: 21 | D38: 0.036 | E38: 0.036 | F38: 3 | H38: 0.37 | I38: 28 | K38: 36 | L38: 29 | N38: 34 | O38: 29 | Q38: 48 | R38: 26
A39: 37 | B39: 21 | D39: 0.037 | E39: 0.037 | F39: 3 | H39: 0.38 | I39: 28 | K39: 37 | L39: 29 | N39: 33 | O39: 29 | Q39: 47 | R39: 26
A40: 38 | B40: 21 | D40: 0.038 | E40: 0.038 | F40: 3 | H40: 0.39 | I40: 28 | K40: 38 | L40: 29 | N40: 32 | O40: 29 | Q40: 46 | R40: 26
A41: 39 | B41: 21 | D41: 0.039 | E41: 0.039 | F41: 3 | H41: 0.4 | I41: 29 | K41: 39 | L41: 29 | N41: 31 | O41: 29 | Q41: 45 | R41: 27
A42: 40 | B42: 21 | D42: 0.04 | E42: 0.04 | F42: 4 | H42: 0.41 | I42: 29 | K42: 40 | L42: 30 | N42: 30 | O42: 30 | Q42: 44 | R42: 27
A43: 41 | B43: 20 | D43: 0.041 | E43: 0.041 | F43: 4 | H43: 0.42 | I43: 29 | K43: 41 | L43: 30 | N43: 29 | O43: 30 | Q43: 43 | R43: 27
A44: 42 | B44: 20 | D44: 0.042 | E44: 0.042 | F44: 4 | H44: 0.43 | I44: 29 | K44: 42 | L44: 30 | N44: 28 | O44: 30 | Q44: 42 | R44: 27
A45: 43 | B45: 20 | D45: 0.043 | E45: 0.043 | F45: 4 | H45: 0.44 | I45: 29 | K45: 43 | L45: 30 | N45: 27 | O45: 30 | Q45: 41 | R45: 27
A46: 44 | B46: 20 | D46: 0.044 | E46: 0.044 | F46: 4 | H46: 0.45 | I46: 30 | K46: 44 | L46: 30 | N46: 26 | O46: 30 | Q46: 40 | R46: 28
A47: 45 | B47: 20 | D47: 0.045 | E47: 0.045 | F47: 4 | H47: 0.46 | I47: 30 | K47: 45 | L47: 31 | N47: 25 | O47: 31 | Q47: 39 | R47: 28
A48: 46 | B48: 19 | D48: 0.046 | E48: 0.046 | F48: 4 | H48: 0.47 | I48: 30 | K48: 46 | L48: 31 | N48: 24 | O48: 31 | Q48: 38 | R48: 28
A49: 47 | B49: 19 | D49: 0.047 | E49: 0.047 | F49: 4 | H49: 0.48 | I49: 30 | K49: 47 | L49: 31 | N49: 23 | O49: 31 | Q49: 37 | R49: 28
A50: 48 | B50: 19 | D50: 0.048 | E50: 0.048 | F50: 4 | H50: 0.49 | I50: 30 | K50: 48 | L50: 31 | N50: 22 | O50: 31 | Q50: 36 | R50: 28
A51: 49 | B51: 19 | D51: 0.049 | E51: 0.049 | F51: 4 | H51: 0.5 | I51: 31 | K51: 49 | L51: 31 | N51: 21 | O51: 31 | Q51: 35 | R51: 29
A52: 50 | B52: 19 | D52: 0.05 | E52: 0.05 | F52: 5 | H52: 0.51 | I52: 31 | K52: 50 | L52: 32 | N52: 20 | O52: 32 | Q52: 34 | R52: 29
A53: 51 | B53: 18 | D53: 0.051 | E53: 0.051 | F53: 5 | H53: 0.52 | I53: 31 | K53: 51 | L53: 32 | N53: 19 | O53: 32 | Q53: 33 | R53: 29
A54: 52 | B54: 18 | D54: 0.052 | E54: 0.052 | F54: 5 | H54: 0.53 | I54: 31 | K54: 52 | L54: 32 | N54: 18 | O54: 32 | Q54: 32 | R54: 29
A55: 53 | B55: 17 | D55: 0.053 | E55: 0.053 | F55: 5 | H55: 0.54 | I55: 31 | K55: 53 | L55: 32 | N55: 17 | O55: 32 | Q55: 31 | R55: 29
A56: 54 | B56: 17 | D56: 0.054 | E56: 0.054 | F56: 5 | H56: 0.55 | I56: 31 | K56: 54 | L56: 32 | N56: 16 | O56: 32 | Q56: 30 | R56: 30
A57: 55 | B57: 16 | D57: 0.055 | E57: 0.055 | F57: 5 | H57: 0.56 | I57: 31 | K57: 55 | L57: 33 | N57: 15 | O57: 33 | Q57: 29 | R57: 30
A58: 56 | B58: 16 | D58: 0.056 | E58: 0.056 | F58: 5 | H58: 0.57 | I58: 31 | K58: 56 | L58: 33 | N58: 14 | O58: 33 | Q58: 28 | R58: 30
A59: 57 | B59: 15 | D59: 0.057 | E59: 0.057 | F59: 5 | H59: 0.58 | I59: 31 | K59: 57 | L59: 33 | N59: 13 | O59: 33 | Q59: 27 | R59: 30
A60: 58 | B60: 15 | D60: 0.058 | E60: 0.058 | F60: 5 | H60: 0.59 | I60: 31 | K60: 58 | L60: 33 | N60: 12 | O60: 33 | Q60: 26 | R60: 30
A61: 59 | B61: 14 | D61: 0.059 | E61: 0.059 | F61: 5 | H61: 0.6 | I61: 32 | K61: 59 | L61: 33 | N61: 11 | O61: 33 | Q61: 25 | R61: 31
A62: 60 | B62: 14 | D62: 0.06 | E62: 0.06 | F62: 6 | H62: 0.61 | I62: 32 | K62: 60 | L62: 34 | N62: 10 | O62: 34 | Q62: 24 | R62: 31
A63: 61 | B63: 13 | D63: 0.061 | E63: 0.061 | F63: 6 | H63: 0.62 | I63: 32 | K63: 61 | L63: 34 | N63: 9 | O63: 34 | Q63: 23 | R63: 31
A64: 62 | B64: 13 | D64: 0.062 | E64: 0.062 | F64: 6 | H64: 0.63 | I64: 32 | K64: 62 | L64: 34 | N64: 8 | O64: 34 | Q64: 22 | R64: 31
A65: 63 | B65: 12 | D65: 0.063 | E65: 0.063 | F65: 6 | H65: 0.64 | I65: 32 | K65: 63 | L65: 34 | N65: 7 | O65: 34 | Q65: 21 | R65: 31
A66: 64 | B66: 11 | D66: 0.064 | E66: 0.064 | F66: 6 | H66: 0.65 | I66: 32 | K66: 64 | L66: 34 | N66: 6 | O66: 34 | Q66: 20 | R66: 32
A67: 65 | B67: 10 | D67: 0.065 | E67: =FLOOR(D67,0.001) -> 0.065 | F67: 6 | H67: 0.66 | I67: 32 | K67: 65 | L67: 35 | N67: 5 | O67: 35 | Q67: 19 | R67: 32
A68: 66 | B68: 9 | D68: 0.066 | E68: 0.066 | F68: 6 | H68: 0.67 | I68: 32 | K68: 66 | L68: 35 | N68: 4 | O68: 35 | Q68: 18 | R68: 32
A69: 67 | B69: 8 | D69: 0.067 | E69: 0.067 | F69: 6 | H69: 0.68 | I69: 32 | K69: 67 | L69: 35 | N69: 3 | O69: 35 | Q69: 17 | R69: 32
A70: 68 | B70: 7 | D70: 0.068 | E70: 0.068 | F70: 6 | H70: 0.69 | I70: 32 | K70: 68 | L70: 35 | N70: 2 | O70: 35 | Q70: 16 | R70: 32
A71: 69 | B71: 6 | D71: 0.069 | E71: 0.068 | F71: 6 | H71: 0.7 | I71: 33 | K71: 69 | L71: 35 | N71: 1 | O71: 35 | Q71: 15 | R71: 33
A72: 70 | B72: 5 | D72: 0.07 | E72: 0.069 | F72: 7 | H72: 0.71 | I72: 33 | K72: 70 | L72: 36 | N72: 0 | O72: 36 | Q72: 14 | R72: 33
D73: 0.071 | E73: 0.071 | F73: 7 | H73: 0.72 | I73: 33 | K73: 71 | L73: 36 | N73: -1 | O73: 36 | Q73: 13 | R73: 33
D74: 0.072 | E74: 0.071 | F74: 7 | H74: 0.73 | I74: 33 | K74: 72 | L74: 36 | N74: -2 | O74: 36 | Q74: 12 | R74: 33
D75: 0.073 | E75: 0.072 | F75: 7 | H75: 0.74 | I75: 33 | K75: 73 | L75: 36 | N75: -3 | O75: 36 | Q75: 11 | R75: 33
D76: 0.074 | E76: 0.073 | F76: 7 | H76: 0.75 | I76: 33 | K76: 74 | L76: 36 | N76: -4 | O76: 36 | Q76: 10 | R76: 34
D77: 0.075 | E77: 0.074 | F77: 7 | H77: 0.76 | I77: 33 | K77: 75 | L77: 36 | N77: -5 | O77: 36 | Q77: 9 | R77: 34
D78: 0.076 | E78: 0.075 | F78: 7 | H78: 0.77 | I78: 33 | K78: 76 | L78: 36 | N78: -6 | O78: 36 | Q78: 8 | R78: 34
D79: 0.077 | E79: 0.076 | F79: 7 | H79: 0.78 | I79: 33 | K79: 77 | L79: 36 | N79: -7 | O79: 36 | Q79: 7 | R79: 34
D80: 0.078 | E80: 0.077 | F80: 7 | H80: 0.79 | I80: 33 | K80: 78 | L80: 36 | N80: -8 | O80: 36 | Q80: 6 | R80: 34
D81: 0.079 | E81: 0.078 | F81: 7 | H81: 0.8 | I81: 34 | K81: 79 | L81: 36 | N81: -9 | O81: 36 | Q81: 5 | R81: 35
D82: 0.08 | E82: 0.079 | F82: 8 | H82: 0.81 | I82: 34 | K82: 80 | L82: 36 | N82: -10 | O82: 36 | Q82: 4 | R82: 35
D83: 0.081 | E83: 0.08 | F83: 8 | H83: 0.82 | I83: 34 | K83: 81 | L83: 36 | N83: -11 | O83: 36 | Q83: 3 | R83: 35
D84: 0.082 | E84: 0.081 | F84: 8 | H84: 0.83 | I84: 34 | K84: 82 | L84: 36 | N84: -12 | O84: 36 | Q84: 2 | R84: 35
D85: 0.083 | E85: 0.082 | F85: 8 | H85: 0.84 | I85: 34 | K85: 83 | L85: 36 | N85: -13 | O85: 36 | Q85: 1 | R85: 35
D86: 0.084 | E86: 0.083 | F86: 8 | H86: 0.85 | I86: 34 | K86: 84 | L86: 36 | N86: -14 | O86: 36 | Q86: 0 | R86: 36
D87: 0.085 | E87: 0.084 | F87: 8 | H87: 0.86 | I87: 34 | K87: 85 | L87: 36 | N87: -15 | O87: 36 | Q87: -1 | R87: 36
D88: 0.086 | E88: 0.085 | F88: 8 | H88: 0.87 | I88: 34 | K88: 86 | L88: 36 | N88: -16 | O88: 36 | Q88: -2 | R88: 36
D89: 0.087 | E89: 0.086 | F89: 8 | H89: 0.88 | I89: 34 | K89: 87 | L89: 36 | N89: -17 | O89: 36 | Q89: -3 | R89: 36
D90: 0.088 | E90: 0.087 | F90: 8 | H90: 0.89 | I90: 34 | K90: 88 | L90: 36 | N90: -18 | O90: 36 | Q90: -4 | R90: 36
D91: 0.089 | E91: 0.088 | F91: 8 | H91: 0.9 | I91: 35 | K91: 89 | L91: 36 | N91: -19 | O91: 36 | Q91: -5 | R91: 36
D92: 0.09 | E92: 0.089 | F92: 9 | H92: 0.91 | I92: 35 | K92: 90 | L92: 36 | N92: -20 | O92: 36 | Q92: -6 | R92: 36
D93: 0.091 | E93: 0.09 | F93: 9 | H93: 0.92 | I93: 35 | K93: 91 | L93: 36 | N93: -21 | O93: 36 | Q93: -7 | R93: 36
D94: 0.092 | E94: 0.091 | F94: 9 | H94: 0.93 | I94: 35 | K94: 92 | L94: 36 | N94: -22 | O94: 36 | Q94: -8 | R94: 36
D95: 0.093 | E95: 0.092 | F95: 9 | H95: 0.94 | I95: 35 | K95: 93 | L95: 36 | N95: -23 | O95: 36 | Q95: -9 | R95: 36
D96: 0.094 | E96: 0.093 | F96: 9 | H96: 0.95 | I96: 35 | K96: 94 | L96: 36 | N96: -24 | O96: 36 | Q96: -10 | R96: 36
D97: 0.095 | E97: 0.094 | F97: 9 | H97: 0.96 | I97: 35 | K97: 95 | L97: 36 | N97: -25 | O97: 36 | Q97: -11 | R97: 36
D98: 0.096 | E98: 0.095 | F98: 9 | H98: 0.97 | I98: 35 | K98: 96 | L98: 36 | N98: -26 | O98: 36 | Q98: -12 | R98: 36
D99: 0.097 | E99: 0.096 | F99: 9 | H99: 0.98 | I99: 35 | K99: 97 | L99: 36 | N99: -27 | O99: 36 | Q99: -13 | R99: 36
D100: 0.098 | E100: 0.097 | F100: 9 | H100: 0.99 | I100: 35 | K100: 98 | L100: 36 | N100: -28 | O100: 36 | Q100: -14 | R100: 36
D101: 0.099 | E101: 0.098 | F101: 9 | H101: 1 | I101: 36 | K101: 99 | L101: 36 | N101: -29 | O101: 36 | Q101: -15 | R101: 36
D102: 0.1 | E102: 0.099 | F102: 10 | H102: 1.01 | I102: 36 | K102: 100 | L102: 36 | N102: -30 | O102: 36 | Q102: -16 | R102: 36
D103: 0.101 | E103: 0.101 | F103: 10 | H103: 1.02 | I103: 36 | K103: 101 | L103: 36 | N103: -31 | O103: 36 | Q103: -17 | R103: 36
D104: 0.102 | E104: 0.102 | F104: 10 | H104: 1.03 | I104: 36 | K104: 102 | L104: 36 | N104: -32 | O104: 36 | Q104: -18 | R104: 36
D105: 0.103 | E105: 0.103 | F105: 10 | H105: 1.04 | I105: 36 | K105: 103 | L105: 36 | N105: -33 | O105: 36 | Q105: -19 | R105: 36
D106: 0.104 | E106: 0.104 | F106: 10 | H106: 1.05 | I106: 36 | K106: 104 | L106: 36 | N106: -34 | O106: 36 | Q106: -20 | R106: 36
D107: 0.105 | E107: 0.105 | F107: 10 | H107: 1.06 | I107: 36 | K107: 105 | L107: 36 | N107: -35 | O107: 36 | Q107: -21 | R107: 36
D108: 0.106 | E108: 0.106 | F108: 10 | H108: 1.07 | I108: 36 | K108: 106 | L108: 36 | N108: -36 | O108: 36 | Q108: -22 | R108: 36
D109: 0.107 | E109: 0.107 | F109: 10 | H109: 1.08 | I109: 36 | K109: 107 | L109: 36 | N109: -37 | O109: 36 | Q109: -23 | R109: 36
D110: 0.108 | E110: 0.108 | F110: 10 | H110: 1.09 | I110: 36 | K110: 108 | L110: 36 | N110: -38 | O110: 36 | Q110: -24 | R110: 36
D111: 0.109 | E111: 0.109 | F111: 10 | H111: 1.1 | I111: 36 | K111: 109 | L111: 36 | N111: -39 | O111: 36 | Q111: -25 | R111: 36
D112: 0.11 | E112: 0.11 | F112: 10 | H112: 1.11 | I112: 36 | K112: 110 | L112: 36 | N112: -40 | O112: 36 | Q112: -26 | R112: 36
D113: 0.111 | E113: 0.111 | F113: 10 | H113: 1.12 | I113: 36 | K113: 111 | L113: 36 | N113: -41 | O113: 36 | Q113: -27 | R113: 36
D114: 0.112 | E114: 0.112 | F114: 10 | H114: 1.13 | I114: 36 | K114: 112 | L114: 36 | N114: -42 | O114: 36 | Q114: -28 | R114: 36
D115: 0.113 | E115: 0.113 | F115: 10 | H115: 1.14 | I115: 36 | K115: 113 | L115: 36 | N115: -43 | O115: 36 | Q115: -29 | R115: 36
D116: 0.114 | E116: 0.114 | F116: 10 | H116: 1.15 | I116: 36 | K116: 114 | L116: 36 | N116: -44 | O116: 36 | Q116: -30 | R116: 36
D117: 0.115 | E117: 0.115 | F117: 10 | H117: 1.16 | I117: 36 | K117: 115 | L117: 36 | N117: -45 | O117: 36 | Q117: -31 | R117: 36
D118: 0.116 | E118: 0.116 | F118: 10 | H118: 1.17 | I118: 36 | K118: 116 | L118: 36 | N118: -46 | O118: 36 | Q118: -32 | R118: 36
D119: 0.117 | E119: 0.117 | F119: 10 | H119: 1.18 | I119: 36 | K119: 117 | L119: 36 | N119: -47 | O119: 36 | Q119: -33 | R119: 36
D120: 0.118 | E120: 0.118 | F120: 10 | H120: 1.19 | I120: 36 | K120: 118 | L120: 36 | N120: -48 | O120: 36 | Q120: -34 | R120: 36
D121: 0.119 | E121: 0.119 | F121: 10 | H121: 1.2 | I121: 36 | K121: 119 | L121: 36 | N121: -49 | O121: 36 | Q121: -35 | R121: 36
D122: 0.12 | E122: 0.12 | F122: 11 | H122: 1.21 | I122: 36 | K122: 120 | L122: 36 | N122: -50 | O122: 36 | Q122: -36 | R122: 36
D123: 0.121 | E123: 0.121 | F123: 11 | H123: 1.22 | I123: 36 | K123: 121 | L123: 36 | N123: -51 | O123: 36 | Q123: -37 | R123: 36
D124: 0.122 | E124: 0.122 | F124: 11 | H124: 1.23 | I124: 36 | K124: 122 | L124: 36 | N124: -52 | O124: 36 | Q124: -38 | R124: 36
D125: 0.123 | E125: 0.123 | F125: 11 | H125: 1.24 | I125: 36 | K125: 123 | L125: 36 | N125: -53 | O125: 36 | Q125: -39 | R125: 36
D126: 0.124 | E126: 0.124 | F126: 11 | H126: 1.25 | I126: 36 | K126: 124 | L126: 36 | N126: -54 | O126: 36 | Q126: -40 | R126: 36
D127: 0.125 | E127: 0.125 | F127: 11 | H127: 1.26 | I127: 36 | K127: 125 | L127: 36 | N127: -55 | O127: 36 | Q127: -41 | R127: 36
D128: 0.126 | E128: 0.126 | F128: 11 | H128: 1.27 | I128: 36 | K128: 126 | L128: 36 | N128: -56 | O128: 36 | Q128: -42 | R128: 36
D129: 0.127 | E129: 0.127 | F129: 11 | H129: 1.28 | I129: 36 | K129: 127 | L129: 36 | N129: -57 | O129: 36 | Q129: -43 | R129: 36
D130: 0.128 | E130: 0.128 | F130: 11 | H130: 1.29 | I130: 36 | K130: 128 | L130: 36 | N130: -58 | O130: 36 | Q130: -44 | R130: 36
D131: 0.129 | E131: =FLOOR(D131,0.001) -> 0.129 | F131: 11 | H131: 1.3 | I131: 36 | K131: 129 | L131: 36 | N131: -59 | O131: 36 | Q131: -45 | R131: 36
D132: 0.13 | E132: 0.13 | F132: 11 | H132: 1.31 | I132: 36 | K132: 130 | L132: 36 | N132: -60 | O132: 36 | Q132: -46 | R132: 36
D133: 0.131 | E133: 0.131 | F133: 11 | H133: 1.32 | I133: 36 | K133: 131 | L133: 36 | N133: -61 | O133: 36 | Q133: -47 | R133: 36
D134: 0.132 | E134: 0.132 | F134: 11 | H134: 1.33 | I134: 36 | K134: 132 | L134: 36 | N134: -62 | O134: 36 | Q134: -48 | R134: 36
D135: 0.133 | E135: 0.133 | F135: 11 | H135: 1.34 | I135: 36 | K135: 133 | L135: 36 | N135: -63 | O135: 36 | Q135: -49 | R135: 36
D136: 0.134 | E136: 0.134 | F136: 11 | H136: 1.35 | I136: 36 | K136: 134 | L136: 36 | N136: -64 | O136: 36 | Q136: -50 | R136: 36
D137: 0.135 | E137: 0.135 | F137: 11 | H137: 1.36 | I137: 36 | K137: 135 | L137: 36 | N137: -65 | O137: 36 | Q137: -51 | R137: 36
D138: 0.136 | E138: 0.136 | F138: 11 | H138: 1.37 | I138: 36 | K138: 136 | L138: 36 | N138: -66 | O138: 36 | Q138: -52 | R138: 36
D139: 0.137 | E139: 0.137 | F139: 11 | H139: 1.38 | I139: 36 | K139: 137 | L139: 36 | N139: -67 | O139: 36 | Q139: -53 | R139: 36
D140: 0.138 | E140: 0.138 | F140: 11 | H140: 1.39 | I140: 36 | K140: 138 | L140: 36 | N140: -68 | O140: 36 | Q140: -54 | R140: 36
D141: 0.139 | E141: 0.139 | F141: 11 | H141: 1.4 | I141: 36 | K141: 139 | L141: 36 | N141: -69 | O141: 36 | Q141: -55 | R141: 36
D142: 0.14 | E142: 0.14 | F142: 12 | H142: 1.41 | I142: 36 | K142: 140 | L142: 36 | N142: -70 | O142: 36 | Q142: -56 | R142: 36
D143: 0.141 | E143: 0.141 | F143: 12 | H143: 1.42 | I143: 36 | K143: 141 | L143: 36 | N143: -71 | O143: 36 | Q143: -57 | R143: 36
D144: 0.142 | E144: 0.142 | F144: 12 | H144: 1.43 | I144: 36 | K144: 142 | L144: 36 | N144: -72 | O144: 36 | Q144: -58 | R144: 36
D145: 0.143 | E145: 0.143 | F145: 12 | H145: 1.44 | I145: 36 | K145: 143 | L145: 36 | N145: -73 | O145: 36 | Q145: -59 | R145: 36
D146: 0.144 | E146: 0.144 | F146: 12 | H146: 1.45 | I146: 36 | K146: 144 | L146: 36 | N146: -74 | O146: 36 | Q146: -60 | R146: 36
D147: 0.145 | E147: 0.145 | F147: 12 | H147: 1.46 | I147: 36 | K147: 145 | L147: 36 | N147: -75 | O147: 36 | Q147: -61 | R147: 36
D148: 0.146 | E148: 0.146 | F148: 12 | H148: 1.47 | I148: 36 | K148: 146 | L148: 36 | N148: -76 | O148: 36 | Q148: -62 | R148: 36
D149: 0.147 | E149: 0.147 | F149: 12 | H149: 1.48 | I149: 36 | K149: 147 | L149: 36 | N149: -77 | O149: 36 | Q149: -63 | R149: 36
D150: 0.148 | E150: 0.148 | F150: 12 | H150: 1.49 | I150: 36 | K150: 148 | L150: 36 | N150: -78 | O150: 36 | Q150: -64 | R150: 36
D151: 0.149 | E151: 0.149 | F151: 12 | H151: 1.5 | I151: 36 | K151: 149 | L151: 36 | N151: -79 | O151: 36 | Q151: -65 | R151: 36
D152: 0.15 | E152: 0.15 | F152: 12 | H152: 1.51 | I152: 36 | K152: 150 | L152: 36 | N152: -80 | O152: 36 | Q152: -66 | R152: 36
D153: 0.151 | E153: 0.151 | F153: 12 | H153: 1.52 | I153: 36 | K153: 151 | L153: 36 | N153: -81 | O153: 36 | Q153: -67 | R153: 36
D154: 0.152 | E154: 0.152 | F154: 12 | H154: 1.53 | I154: 36 | K154: 152 | L154: 36 | N154: -82 | O154: 36 | Q154: -68 | R154: 36
D155: 0.153 | E155: 0.153 | F155: 12 | H155: 1.54 | I155: 36 | K155: 153 | L155: 36 | N155: -83 | O155: 36 | Q155: -69 | R155: 36
D156: 0.154 | E156: 0.154 | F156: 12 | H156: 1.55 | I156: 36 | K156: 154 | L156: 36 | N156: -84 | O156: 36 | Q156: -70 | R156: 36
D157: 0.155 | E157: 0.155 | F157: 12 | H157: 1.56 | I157: 36 | K157: 155 | L157: 36 | N157: -85 | O157: 36 | Q157: -71 | R157: 36
D158: 0.156 | E158: 0.156 | F158: 12 | H158: 1.57 | I158: 36 | K158: 156 | L158: 36 | N158: -86 | O158: 36 | Q158: -72 | R158: 36
D159: 0.157 | E159: 0.157 | F159: 12 | H159: 1.58 | I159: 36 | K159: 157 | L159: 36 | N159: -87 | O159: 36 | Q159: -73 | R159: 36
D160: 0.158 | E160: 0.158 | F160: 12 | H160: 1.59 | I160: 36 | K160: 158 | L160: 36 | N160: -88 | O160: 36 | Q160: -74 | R160: 36
D161: 0.159 | E161: 0.159 | F161: 12 | H161: 1.6 | I161: 36 | K161: 159 | L161: 36 | N161: -89 | O161: 36 | Q161: -75 | R161: 36
D162: 0.16 | E162: 0.16 | F162: 13 | H162: 1.61 | I162: 36 | K162: 160 | L162: 36 | N162: -90 | O162: 36 | Q162: -76 | R162: 36
D163: 0.161 | E163: 0.161 | F163: 13 | H163: 1.62 | I163: 36 | K163: 161 | L163: 36 | N163: -91 | O163: 36 | Q163: -77 | R163: 36
D164: 0.162 | E164: 0.162 | F164: 13 | H164: 1.63 | I164: 36 | K164: 162 | L164: 36 | N164: -92 | O164: 36 | Q164: -78 | R164: 36
D165: 0.163 | E165: 0.163 | F165: 13 | H165: 1.64 | I165: 36 | K165: 163 | L165: 36 | N165: -93 | O165: 36 | Q165: -79 | R165: 36
D166: 0.164 | E166: 0.164 | F166: 13 | H166: 1.65 | I166: 36 | K166: 164 | L166: 36 | N166: -94 | O166: 36 | Q166: -80 | R166: 36
D167: 0.165 | E167: 0.165 | F167: 13 | H167: 1.66 | I167: 36 | K167: 165 | L167: 36 | N167: -95 | O167: 36 | Q167: -81 | R167: 36
D168: 0.166 | E168: 0.166 | F168: 13 | H168: 1.67 | I168: 36 | K168: 166 | L168: 36 | N168: -96 | O168: 36 | Q168: -82 | R168: 36
D169: 0.167 | E169: 0.167 | F169: 13 | H169: 1.68 | I169: 36 | K169: 167 | L169: 36 | N169: -97 | O169: 36 | Q169: -83 | R169: 36
D170: 0.168 | E170: 0.168 | F170: 13 | H170: 1.69 | I170: 36 | K170: 168 | L170: 36 | N170: -98 | O170: 36 | Q170: -84 | R170: 36
D171: 0.169 | E171: 0.169 | F171: 13 | H171: 1.7 | I171: 36 | K171: 169 | L171: 36 | N171: -99 | O171: 36 | Q171: -85 | R171: 36
D172: 0.17 | E172: 0.17 | F172: 13 | H172: 1.71 | I172: 36 | K172: 170 | L172: 36 | N172: -100 | O172: 36 | Q172: -86 | R172: 36
D173: 0.171 | E173: 0.171 | F173: 13 | H173: 1.72 | I173: 36 | K173: 171 | L173: 36 | N173: -101 | O173: 36 | Q173: -87 | R173: 36
D174: 0.172 | E174: 0.172 | F174: 13 | H174: 1.73 | I174: 36 | K174: 172 | L174: 36 | N174: -102 | O174: 36 | Q174: -88 | R174: 36
D175: 0.173 | E175: 0.173 | F175: 13 | H175: 1.74 | I175: 36 | K175: 173 | L175: 36 | N175: -103 | O175: 36 | Q175: -89 | R175: 36
D176: 0.174 | E176: 0.174 | F176: 13 | H176: 1.75 | I176: 36 | K176: 174 | L176: 36 | N176: -104 | O176: 36 | Q176: -90 | R176: 36
D177: 0.175 | E177: 0.175 | F177: 13 | H177: 1.76 | I177: 36 | K177: 175 | L177: 36 | N177: -105 | O177: 36 | Q177: -91 | R177: 36
D178: 0.176 | E178: 0.176 | F178: 13 | H178: 1.77 | I178: 36 | K178: 176 | L178: 36 | N178: -106 | O178: 36 | Q178: -92 | R178: 36
D179: 0.177 | E179: 0.177 | F179: 13 | H179: 1.78 | I179: 36 | K179: 177 | L179: 36 | N179: -107 | O179: 36 | Q179: -93 | R179: 36
D180: 0.178 | E180: 0.178 | F180: 13 | H180: 1.79 | I180: 36 | K180: 178 | L180: 36 | N180: -108 | O180: 36 | Q180: -94 | R180: 36
D181: 0.179 | E181: 0.179 | F181: 13 | H181: 1.8 | I181: 36 | K181: 179 | L181: 36 | N181: -109 | O181: 36 | Q181: -95 | R181: 36
D182: 0.18 | E182: 0.18 | F182: 14 | H182: 1.81 | I182: 36 | K182: 180 | L182: 36 | N182: -110 | O182: 36 | Q182: -96 | R182: 36
D183: 0.181 | E183: 0.181 | F183: 14 | H183: 1.82 | I183: 36 | K183: 181 | L183: 36 | N183: -111 | O183: 36 | Q183: -97 | R183: 36
D184: 0.182 | E184: 0.182 | F184: 14 | H184: 1.83 | I184: 36 | K184: 182 | L184: 36 | N184: -112 | O184: 36 | Q184: -98 | R184: 36
D185: 0.183 | E185: 0.183 | F185: 14 | H185: 1.84 | I185: 36 | K185: 183 | L185: 36 | N185: -113 | O185: 36 | Q185: -99 | R185: 36
D186: 0.184 | E186: 0.184 | F186: 14 | H186: 1.85 | I186: 36 | K186: 184 | L186: 36 | N186: -114 | O186: 36 | Q186: -100 | R186: 36
D187: 0.185 | E187: 0.185 | F187: 14 | H187: 1.86 | I187: 36 | K187: 185 | L187: 36 | N187: -115 | O187: 36 | Q187: -101 | R187: 36
D188: 0.186 | E188: 0.186 | F188: 14 | H188: 1.87 | I188: 36 | K188: 186 | L188: 36 | N188: -116 | O188: 36 | Q188: -102 | R188: 36
D189: 0.187 | E189: 0.187 | F189: 14 | H189: 1.88 | I189: 36 | K189: 187 | L189: 36 | N189: -117 | O189: 36 | Q189: -103 | R189: 36
D190: 0.188 | E190: 0.188 | F190: 14 | H190: 1.89 | I190: 36 | K190: 188 | L190: 36 | N190: -118 | O190: 36 | Q190: -104 | R190: 36
D191: 0.189 | E191: 0.189 | F191: 14 | H191: 1.9 | I191: 36 | K191: 189 | L191: 36 | N191: -119 | O191: 36 | Q191: -105 | R191: 36
D192: 0.19 | E192: 0.19 | F192: 14 | H192: 1.91 | I192: 36 | K192: 190 | L192: 36 | N192: -120 | O192: 36 | Q192: -106 | R192: 36
D193: 0.191 | E193: 0.191 | F193: 14 | H193: 1.92 | I193: 36 | K193: 191 | L193: 36 | N193: -121 | O193: 36 | Q193: -107 | R193: 36
D194: 0.192 | E194: 0.192 | F194: 14 | H194: 1.93 | I194: 36 | K194: 192 | L194: 36 | N194: -122 | O194: 36 | Q194: -108 | R194: 36
D195: 0.193 | E195: =FLOOR(D195,0.001) -> 0.193 | F195: 14 | H195: 1.94 | I195: 36 | K195: 193 | L195: 36 | N195: -123 | O195: 36 | Q195: -109 | R195: 36
D196: 0.194 | E196: 0.194 | F196: 14 | H196: 1.95 | I196: 36 | K196: 194 | L196: 36 | N196: -124 | O196: 36 | Q196: -110 | R196: 36
D197: 0.195 | E197: 0.195 | F197: 14 | H197: 1.96 | I197: 36 | K197: 195 | L197: 36 | N197: -125 | O197: 36 | Q197: -111 | R197: 36
D198: 0.196 | E198: 0.196 | F198: 14 | H198: 1.97 | I198: 36 | K198: 196 | L198: 36 | N198: -126 | O198: 36 | Q198: -112 | R198: 36
D199: 0.197 | E199: 0.197 | F199: 14 | H199: 1.98 | I199: 36 | K199: 197 | L199: 36 | N199: -127 | O199: 36 | Q199: -113 | R199: 36
D200: 0.198 | E200: 0.198 | F200: 14 | H200: 1.99 | I200: 36 | K200: 198 | L200: 36 | N200: -128 | O200: 36 | Q200: -114 | R200: 36
... 802 more rows

Sheet EA Midrise (hidden)
A1: Percentage reduction | B1: Floor | C1: Points
A2: 0.01 | B2: =FLOOR(A2,0.001) -> 0.01 | C2: 0
A3: 0.011 | B3: =FLOOR(A3,0.001) -> 0.011 | C3: 0
A4: 0.012 | B4: 0.012 | C4: 0
A5: 0.013 | B5: 0.013 | C5: 0
A6: 0.014 | B6: 0.014 | C6: 0
A7: 0.015 | B7: 0.015 | C7: 0
A8: 0.016 | B8: 0.016 | C8: 0
A9: 0.017 | B9: 0.017 | C9: 0
A10: 0.018 | B10: 0.018 | C10: 0
A11: 0.019 | B11: 0.019 | C11: 0
A12: 0.02 | B12: 0.02 | C12: 0
A13: 0.021 | B13: 0.021 | C13: 0
A14: 0.022 | B14: 0.022 | C14: 0
A15: 0.023 | B15: 0.023 | C15: 0
A16: 0.024 | B16: 0.024 | C16: 0
A17: 0.025 | B17: 0.025 | C17: 0
A18: 0.026 | B18: 0.026 | C18: 0
A19: 0.027 | B19: 0.027 | C19: 0
A20: 0.028 | B20: 0.028 | C20: 0
A21: 0.029 | B21: 0.029 | C21: 0
A22: 0.03 | B22: 0.03 | C22: 0
A23: 0.031 | B23: 0.031 | C23: 0
A24: 0.032 | B24: 0.032 | C24: 0
A25: 0.033 | B25: 0.033 | C25: 0
A26: 0.034 | B26: 0.034 | C26: 0
A27: 0.035 | B27: 0.035 | C27: 0
A28: 0.036 | B28: 0.036 | C28: 0
A29: 0.037 | B29: 0.037 | C29: 0
A30: 0.038 | B30: 0.038 | C30: 0
A31: 0.039 | B31: 0.039 | C31: 0
A32: 0.04 | B32: 0.04 | C32: 0
A33: 0.041 | B33: 0.041 | C33: 0
A34: 0.042 | B34: 0.042 | C34: 0
A35: 0.043 | B35: 0.043 | C35: 0
A36: 0.044 | B36: 0.044 | C36: 0
A37: 0.045 | B37: 0.045 | C37: 0
A38: 0.046 | B38: 0.046 | C38: 0
A39: 0.047 | B39: 0.047 | C39: 0
A40: 0.048 | B40: 0.048 | C40: 0
A41: 0.049 | B41: 0.049 | C41: 0
A42: 0.05 | B42: 0.05 | C42: 0
A43: 0.051 | B43: 0.051 | C43: 0
A44: 0.052 | B44: 0.052 | C44: 0
A45: 0.053 | B45: 0.053 | C45: 0
A46: 0.054 | B46: 0.054 | C46: 0
A47: 0.055 | B47: 0.055 | C47: 0
A48: 0.056 | B48: 0.056 | C48: 0
A49: 0.057 | B49: 0.057 | C49: 0
A50: 0.058 | B50: 0.058 | C50: 0
A51: 0.059 | B51: 0.059 | C51: 0
A52: 0.06 | B52: 0.06 | C52: 1
A53: 0.061 | B53: 0.061 | C53: 1
A54: 0.062 | B54: 0.062 | C54: 1
A55: 0.063 | B55: 0.063 | C55: 1
A56: 0.064 | B56: 0.064 | C56: 1
A57: 0.065 | B57: 0.065 | C57: 1
A58: 0.066 | B58: 0.066 | C58: 1
A59: 0.067 | B59: 0.067 | C59: 1
A60: 0.068 | B60: 0.068 | C60: 1
A61: 0.069 | B61: 0.069 | C61: 1
A62: 0.07 | B62: 0.07 | C62: 1
A63: 0.071 | B63: 0.071 | C63: 2
A64: 0.072 | B64: 0.072 | C64: 2
A65: 0.073 | B65: 0.073 | C65: 2
A66: 0.074 | B66: 0.074 | C66: 2
A67: 0.075 | B67: =FLOOR(A67,0.001) -> 0.075 | C67: 2
A68: 0.076 | B68: 0.076 | C68: 2
A69: 0.077 | B69: 0.077 | C69: 2
A70: 0.078 | B70: 0.078 | C70: 2
A71: 0.079 | B71: 0.079 | C71: 2
A72: 0.08 | B72: 0.08 | C72: 2
A73: 0.081 | B73: 0.081 | C73: 3
A74: 0.082 | B74: 0.082 | C74: 3
A75: 0.083 | B75: 0.083 | C75: 3
A76: 0.084 | B76: 0.084 | C76: 3
A77: 0.085 | B77: 0.085 | C77: 3
A78: 0.086 | B78: 0.086 | C78: 3
A79: 0.087 | B79: 0.087 | C79: 3
A80: 0.088 | B80: 0.088 | C80: 3
A81: 0.089 | B81: 0.089 | C81: 3
A82: 0.09 | B82: 0.09 | C82: 3
A83: 0.091 | B83: 0.091 | C83: 4
A84: 0.092 | B84: 0.092 | C84: 4
A85: 0.093 | B85: 0.093 | C85: 4
A86: 0.094 | B86: 0.094 | C86: 4
A87: 0.095 | B87: 0.095 | C87: 4
A88: 0.096 | B88: 0.096 | C88: 4
A89: 0.097 | B89: 0.097 | C89: 4
A90: 0.098 | B90: 0.098 | C90: 4
A91: 0.099 | B91: 0.099 | C91: 4
A92: 0.1 | B92: 0.1 | C92: 4
A93: 0.101 | B93: 0.101 | C93: 5
A94: 0.102 | B94: 0.102 | C94: 5
A95: 0.103 | B95: 0.103 | C95: 5
A96: 0.104 | B96: 0.104 | C96: 5
A97: 0.105 | B97: 0.105 | C97: 5
A98: 0.106 | B98: 0.106 | C98: 5
A99: 0.107 | B99: 0.107 | C99: 5
A100: 0.108 | B100: 0.108 | C100: 5
A101: 0.109 | B101: 0.109 | C101: 5
A102: 0.11 | B102: 0.11 | C102: 6
A103: 0.111 | B103: 0.111 | C103: 6
A104: 0.112 | B104: 0.112 | C104: 6
A105: 0.113 | B105: 0.113 | C105: 6
A106: 0.114 | B106: 0.114 | C106: 6
A107: 0.115 | B107: 0.115 | C107: 6
A108: 0.116 | B108: 0.116 | C108: 6
A109: 0.117 | B109: 0.117 | C109: 6
A110: 0.118 | B110: 0.118 | C110: 6
A111: 0.119 | B111: 0.119 | C111: 6
A112: 0.12 | B112: 0.12 | C112: 7
A113: 0.121 | B113: 0.121 | C113: 7
A114: 0.122 | B114: 0.122 | C114: 7
A115: 0.123 | B115: 0.123 | C115: 7
A116: 0.124 | B116: 0.124 | C116: 7
A117: 0.125 | B117: 0.125 | C117: 7
A118: 0.126 | B118: 0.126 | C118: 7
A119: 0.127 | B119: 0.127 | C119: 7
A120: 0.128 | B120: 0.128 | C120: 7
A121: 0.129 | B121: 0.129 | C121: 7
A122: 0.13 | B122: 0.13 | C122: 8
A123: 0.131 | B123: 0.131 | C123: 8
A124: 0.132 | B124: 0.132 | C124: 8
A125: 0.133 | B125: 0.133 | C125: 8
A126: 0.134 | B126: 0.134 | C126: 8
A127: 0.135 | B127: 0.135 | C127: 8
A128: 0.136 | B128: 0.136 | C128: 8
A129: 0.137 | B129: 0.137 | C129: 8
A130: 0.138 | B130: 0.138 | C130: 8
A131: 0.139 | B131: =FLOOR(A131,0.001) -> 0.139 | C131: 8
A132: 0.14 | B132: 0.14 | C132: 9
A133: 0.141 | B133: 0.141 | C133: 9
A134: 0.142 | B134: 0.142 | C134: 9
A135: 0.143 | B135: 0.143 | C135: 9
A136: 0.144 | B136: 0.144 | C136: 9
A137: 0.145 | B137: 0.145 | C137: 9
A138: 0.146 | B138: 0.146 | C138: 9
A139: 0.147 | B139: 0.147 | C139: 9
A140: 0.148 | B140: 0.148 | C140: 9
A141: 0.149 | B141: 0.149 | C141: 9
A142: 0.15 | B142: 0.15 | C142: 10
A143: 0.151 | B143: 0.151 | C143: 10
A144: 0.152 | B144: 0.152 | C144: 10
A145: 0.153 | B145: 0.153 | C145: 10
A146: 0.154 | B146: 0.154 | C146: 10
A147: 0.155 | B147: 0.155 | C147: 10
A148: 0.156 | B148: 0.156 | C148: 10
A149: 0.157 | B149: 0.157 | C149: 10
A150: 0.158 | B150: 0.158 | C150: 10
A151: 0.159 | B151: 0.159 | C151: 10
A152: 0.16 | B152: 0.16 | C152: 11
A153: 0.161 | B153: 0.161 | C153: 11
A154: 0.162 | B154: 0.162 | C154: 11
A155: 0.163 | B155: 0.163 | C155: 11
A156: 0.164 | B156: 0.164 | C156: 11
A157: 0.165 | B157: 0.165 | C157: 11
A158: 0.166 | B158: 0.166 | C158: 11
A159: 0.167 | B159: 0.167 | C159: 11
A160: 0.168 | B160: 0.168 | C160: 11
A161: 0.169 | B161: 0.169 | C161: 11
A162: 0.17 | B162: 0.17 | C162: 12
A163: 0.171 | B163: 0.171 | C163: 12
A164: 0.172 | B164: 0.172 | C164: 12
A165: 0.173 | B165: 0.173 | C165: 12
A166: 0.174 | B166: 0.174 | C166: 12
A167: 0.175 | B167: 0.175 | C167: 12
A168: 0.176 | B168: 0.176 | C168: 12
A169: 0.177 | B169: 0.177 | C169: 12
A170: 0.178 | B170: 0.178 | C170: 12
A171: 0.179 | B171: 0.179 | C171: 12
A172: 0.18 | B172: 0.18 | C172: 13
A173: 0.181 | B173: 0.181 | C173: 13
A174: 0.182 | B174: 0.182 | C174: 13
A175: 0.183 | B175: 0.183 | C175: 13
A176: 0.184 | B176: 0.184 | C176: 13
A177: 0.185 | B177: 0.185 | C177: 13
A178: 0.186 | B178: 0.186 | C178: 13
A179: 0.187 | B179: 0.187 | C179: 13
A180: 0.188 | B180: 0.188 | C180: 13
A181: 0.189 | B181: 0.189 | C181: 13
A182: 0.19 | B182: 0.19 | C182: 14
A183: 0.191 | B183: 0.191 | C183: 14
A184: 0.192 | B184: 0.192 | C184: 14
A185: 0.193 | B185: 0.193 | C185: 14
A186: 0.194 | B186: 0.194 | C186: 14
A187: 0.195 | B187: 0.195 | C187: 14
A188: 0.196 | B188: 0.196 | C188: 14
A189: 0.197 | B189: 0.197 | C189: 14
A190: 0.198 | B190: 0.198 | C190: 14
A191: 0.199 | B191: 0.199 | C191: 14
A192: 0.2 | B192: 0.2 | C192: 15
A193: 0.201 | B193: 0.201 | C193: 15
A194: 0.202 | B194: 0.202 | C194: 15
A195: 0.203 | B195: =FLOOR(A195,0.001) -> 0.203 | C195: 15
A196: 0.204 | B196: 0.204 | C196: 15
A197: 0.205 | B197: 0.205 | C197: 15
A198: 0.206 | B198: 0.206 | C198: 15
A199: 0.207 | B199: 0.207 | C199: 15
A200: 0.208 | B200: 0.208 | C200: 15
... 792 more rows

Sheet MR
B1: Materials and Resources | L1: Notes | M1: Verified (initials) | N1: Date Verified | O1: QAD Notes | P1: Verification Measure | Q1: QAD Notes
E3: Preliminary Y | F3: =SUM(F39,F66,F151,F118) -> 0 | G3: Maybe | H3: =SUM(H39,H66,H151,H118) -> 0 | I3: Verified | J3: =SUM(J39,J66,J151,J118) -> 0
A5: MRp1 | B5: =L5 -> MR Prerequisite Certified Tropical Wood | K5: HM | L5: MR Prerequisite Certified Tropical Wood
K6: HM
B7: Required | F7: Required | I7: Verified | J7: N | K7: HM | M7: Responsible Party
K8: HM
K9: HM
C10: (Select one) | D10: All wood in the building is nontropical, reused or reclaimed, or certified by the Forest Stewardship Council, or USGBC-approved equivalent. | K10: HM | P10: Verify that no wood used in project comes from tropical country unless reclaimed or FSC certified, using information provided by suppliers and vendors.
K11: HM
A12: MRp2 | B12: =L12 -> MR Prerequisite Durability Management | K12: HM | L12: MR Prerequisite Durability Management
K13: HM
B14: Required | F14: Required | I14: Verified | J14: N | K14: HM | M14: Responsible Party
K15: HM
K16: HM
C17: (Select one) | D17: ENERGY STAR for Homes, version 3, water management system builder requirements are met. | K17: HM
K18: HM
C19: Confirm all of the following have been implemented on the project: | K19: HM
C20: (Select one) | D20: Nonpaper-faced backer board, or a product or coating over wallboard that meets standard ASTM D 3273 standard, was installed on the area above bathtub, spa or shower, and in areas behind fiberglass enclosures where wallboard is installed. | K20: HM | P20: Conduct on-site verification that indoor moisture control measure is installed.
K21: HM
K22: HM
C23: (Select one) | D23: Water-resistant flooring was installed in the kitchen, bathroom(s), laundry room, spa area(s). No carpet was installed in these areas. | K23: HM | P23: Conduct on-site verification that indoor moisture control measure is installed.
K24: HM
C25: (Select one) | D25: Water-resistant flooring was installed in entryways within 3 feet of exterior door(s). | K25: HM | P25: Conduct on-site verification that indoor moisture control measure is installed.
K26: HM
C27: (Select one) | D27: A drain and drain pan, drain pan and automatic water shut-off or flow restrictors, or floor drain with floor sloped to drain was installed for all tank water heaters in or over living space. | K27: HM | P27: Conduct on-site verification that indoor moisture control measure is installed.
K28: HM
K29: HM
C30: (Select one) | D30: A braided washer hose, drain and drain pan, drain pan and automatic water shut-off or flow restrictors, or floor drain with floor sloped to drain was installed for clothes washer in or over living space. | K30: HM | P30: Conduct on-site verification that indoor moisture control measure is installed.
K31: HM
K32: HM
C33: (Select one) | D33: Conventional clothes dryers exhaust directly to outdoors. | K33: HM | P33: Conduct on-site verification that indoor moisture control measure is installed.
K34: HM
C35: (Select one) | D35: After completion of construction, test to verify that there are no detectable water leaks. | K35: HM | P35: Conduct on-site verification that indoor moisture control measure is installed.
K36: HM
A37: MRc1 | B37: =L37 -> MR Credit Durability Management Verification | K37: HM | L37: MR Credit Durability Management Verification
K38: HM
B39: Up to 3 points | E39: Preliminary Y | F39: =IFERROR(SUM(F42,F48,F54),0) -> 0 | G39: M | H39: =IFERROR(SUM(H42,H48,H54),0) -> 0 | I39: Verified | J39: =IFERROR(SUM(J42,J48,J54),0) -> 0 | K39: HM | M39: Responsible Party
K40: HM
K41: HM
C42: Option 1: Water Management System (1 point) | E42: Y | G42: M | I42: V
K43: HM
C45: (Select one) | D45: Each measure in the ENERGY STAR for Homes, version 3, water management system builder requirements were verified by the verification team. | K45: HM | P45: Conduct on-site verification of each measured listed in ENERGY STAR for Homes water management system checklist, or verify that qualified energy rater signed off on each measure.
K46: HM
C47: AND/OR
C48: Option 2. Overhangs (1 point) | E48: Y | G48: M | I48: V
K49: HM
K50: HM
C51: (Select one) | D51: Each exterior door is protected by compliant overhang, roof or awning | P51: Verify each exterior door is protected by compliant overhang, roof or awning
C53: AND/OR
C54: Option 3. Plumbing Condensation Control (1 point) | E54: Y | G54: M | I54: V
C57: Select one of the following:
C58: (Select one) | D58: R-4 insulation install on all domestic cold water piping in unconditioned space | P58: Verify R-4 insulation install on all domestic cold water piping in unconditioned space
C60: OR | P60: OR
C62: (Select one) | D62: No cold water piping installed in unconditioned spaces | K62: HM | P62: Verify no cold water piping installed in unconditioned spaces
A64: MRc2 | B64: =L64 -> MR Credit Environmentally Preferable Products | K64: HM | L64: MR Credit Environmentally Preferable Products
K65: HM
B66: Up to 5 points | E66: Preliminary Y | F66: =IF(Instructions!$J$85=1,IF(SUM(F70,F79)>5,5,SUM(F70,F79))) -> 0 | G66: M | H66: =IF(Instructions!$J$85=1,IF(SUM(H70,H79)>5,5,SUM(H70,H79))) -> 0 | I66: Verified | J66: =IF(Instructions!$J$85=1,IF(SUM(J70,J79)>5,5,SUM(J70,J79))) -> 0 | K66: HM | M66: Responsible Party
B67: Exemplary Performance: Earn more than the maximum 5 points | K67: HM
K68: HM
K69: HM
C70: Option 1. Local Production | E70: Preliminary Y | G70: M | I70: Verified | K70: HM | L70: =C70 -> Option 1. Local Production
K71: HM
K72: HM
C73: Select which the following were extracted, processed, and manufactured within 100 miles (160 km) of the project site: | K73: HM
D74: Percentage of locally produced framing (%) (1 point) | K74: HM | P74: Verify that installed components meet definition of local production, using product literature, letters from manufacturers or suppliers, or other documentation.
D75: Percentage of locally produced aggregate for concrete and foundation (%) (1 point) | K75: HM | P75: Verify that installed components meet definition of local production, using product literature, letters from manufacturers or suppliers, or other documentation.
D76: Percentage of locally produced drywall and interior sheathing (%) (1 point) | K76: HM | P76: Verify that installed components meet definition of local production, using product literature, letters from manufacturers or suppliers, or other documentation.
K77: HM
C78: AND/OR | K78: HM
C79: Option 2. Environmentally Preferable Products | E79: Preliminary Y | G79: M | I79: Verified | K79: HM | L79: =C79 -> Option 2. Environmentally Preferable Products
K80: HM
K81: HM
C82: Select the criteria met by at least 50% of the component for 1 point. At least 90% for 2 points. | H82: Percentage of Component | K82: HM
C83: No Floor Covering | K83: HM | P83: Verify that installed components satisfy specific credit requirements, using product literature, labels, or other documentation.
C84: Floor Covering | K84: HM | P84: Verify that installed components satisfy specific credit requirements, using product literature, labels, or other documentation.
K85: HM
C86: Insulation | K86: HM | P86: Verify that installed components satisfy specific credit requirements, using product literature, labels, or other documentation.
K87: HM
C88: Sheathing | K88: HM | P88: Verify that installed components satisfy specific credit requirements, using product literature, labels, or other documentation.
K89: HM
C90: Framing | K90: HM | P90: Verify that installed components satisfy specific credit requirements, using product literature, labels, or other documentation.
K91: HM
C92: Drywall | K92: HM | P92: Verify that installed components satisfy specific credit requirements, using product literature, labels, or other documentation.
K93: HM
C94: Concrete | K94: HM | P94: Verify that installed components satisfy specific credit requirements, using product literature, labels, or other documentation.
K95: HM
C96: Roofing | K96: HM | P96: Verify that installed components satisfy specific credit requirements, using product literature, labels, or other documentation.
K97: HM
C98: Siding | K98: HM | P98: Verify that installed components satisfy specific credit requirements, using product literature, labels, or other documentation.
K99: HM
C101: Select criteria for any of the following additional components for at least 90% of the component (1 point per component):
C103: Doors | K103: HM | P103: Verify that installed components satisfy specific credit requirements, using product literature, labels, or other documentation.
K104: HM
C105: Cabinets | K105: HM | P105: Verify that installed components satisfy specific credit requirements, using product literature, labels, or other documentation.
K106: HM
C107: Counters | K107: HM | P107: Verify that installed components satisfy specific credit requirements, using product literature, labels, or other documentation.
K108: HM
C109: Interior Trim | K109: HM | P109: Verify that installed components satisfy specific credit requirements, using product literature, labels, or other documentation.
K110: HM
C111: Decking/Patio | K111: HM | P111: Verify that installed components satisfy specific credit requirements, using product literature, labels, or other documentation.
K112: HM
C113: Windows | K113: HM | P113: Verify that installed components satisfy specific credit requirements, using product literature, labels, or other documentation.
K114: HM
K115: HM
A116: MRc3 | B116: =L116 -> MR Credit Construction Waste Management | K116: HM | L116: MR Credit Construction Waste Management
K117: HM
B118: Up to 2 points | E118: Preliminary Y | F118: =IF(F122>0,F122,F139) -> 0 | G118: M | H118: =IF(H122>0,H122,H139) -> 0 | I118: Verified | J118: =IF(J122>0,J122,J139) -> 0 | K118: HM | M118: Responsible Party
B119: Exemplary Performance: For renovation projects using Option 2, track and divert at least 50% of demolition waste. | K119: HM
K120: HM
C122: Option 1. Diversion (1-2 points) | E122: Y | G122: M | I122: V | K122: HM | L122: =C122 -> Option 1. Diversion (1-2 points)
D125: Diverted material streams
C127: Path 1. Divert 50% and three material streams (1 point) | L127: =C127 -> Path 1. Divert 50% and three material streams (1 point)
K128: HM
K129: HM
D130: Diversion rate of the total construction and demolition material | P130: Verify the diversion rate of the total construction and demolition material
C132: OR | L132: =C132 -> OR
C133: Path 2. Divert 75% and four material streams (2 points) | L133: =C133 -> Path 2. Divert 75% and four material streams (2 points)
K134: HM
K135: HM
D136: Diversion rate of the total construction and demolition material | P136: Verify the diversion rate of the total construction and demolition material
C138: OR | L138: =C138 -> OR
C139: Option 2. Reduction of total waste material (2 points) | E139: Y | G139: M | I139: V | L139: =C139 -> Option 2. Reduction of total waste material (2 points)
C142: =IF(Instructions!F65="","",IF(Instructions!F65=0,4200,(VLOOKUP(Instructions!F65,'MRc Construction Waste Mgmt'!A1:C18,3,FALSE)))) ->  | D142: =CONCATENATE("LEED Reference Home Baseline Waste",IF(Instructions!$I$85=1," (lbs)"," (kg)")) -> LEED Reference Home Baseline Waste (lbs) | K142: HM | P142: Verify that calculations of construction waste rate are based on waste hauling documents.
K143: HM
D144: =CONCATENATE("Total Construction Waste (including recycled waste)",IF(Instructions!$I$85=1," (lbs)"," (kg)")) -> Total Construction Waste (including recycled waste) (lbs) | K144: HM
D145: =CONCATENATE("Recycled Waste",IF(Instructions!$I$85=1," (lbs)"," (kg)")) -> Recycled Waste (lbs) | K145: HM
C146: =IF(C144-(0.25*C145),C144-(0.25*C145),"") ->  | D146: =CONCATENATE("Project Construction Waste",IF(Instructions!$I$85=1," (lbs)"," (kg)")) -> Project Construction Waste (lbs) | K146: HM
C147: =IFERROR(IF(AND(C142="",C144="",C145=""),"",(1-(C146/C142))),0) ->  | D147: Percent reduction below baseline (%) | K147: HM
K148: HM
A149: MRc4 | B149: =L149 -> MR Credit Material-Efficient Framing | K149: H | L149: MR Credit Material-Efficient Framing
K150: H
B151: Up to 2 points | E151: Preliminary Y | F151: 0 | G151: M | H151: 0 | I151: Verified | J151: 0 | K151: H | M151: Responsible Party
B152: Exemplary Performance: Earn more than the maximum 2 points | K152: H
K153: H
K154: H
C155: Select one of the following for at least 90% of each component: (1 point) | K155: H
C156: (Select one) | D156: No more than one horizontal 2x top plate on walls by aligning studs with joists and roof rafters was installed. | K156: H | P156: Conduct on-site verification that framing was installed per credit requirements.
C157: (Select one) | D157: Window and door headers were placed in the rim joist. | K157: H | P157: Conduct on-site verification that framing was installed per credit requirements.
C158: (Select one) | D158: Raised (directly beneath the top plate), single-ply headers not more than 2 inches nominal thickness in a 2x4 wall or 4 inches nominal thickness in a 2x6 wall, were installed. | K158: H | P158: Conduct on-site verification that framing was installed per credit requirements.
K159: H
C160: (Select one) | D160: Structural insulated panels (SIPs) were installed for walls. | K160: H | P160: Conduct on-site verification that framing was installed per credit requirements.
K161: H
C162: Select at least 2 of the following for at least 90% of each component: (1 point) | K162: H
C163: (Select one) | D163: Headers were sized for actual loads. | K163: H | P163: Conduct on-site verification that framing was installed per credit requirements.
C164: (Select one) | D164: Ladder blocking or drywall clips were used. | K164: H | P164: Conduct on-site verification that framing was installed per credit requirements.
C165: (Select one) | D165: Two-stud corners or California corners were used. | K165: H | P165: Conduct on-site verification that framing was installed per credit requirements.
K166: H
C167: Select all that apply for at least 90% of each component: (1 point each) | K167: H
C168: (Select one) | D168: Interior wall studs were spaced greater than 16 inches (400 mm) o.c. | K168: H | P168: Conduct on-site verification that framing was installed per credit requirements.
C169: (Select one) | D169: Floor joists were spaced greater than 16 inches (400 mm) o.c. | K169: H | P169: Conduct on-site verification that framing was installed per credit requirements.
C170: (Select one) | D170: Roof rafters were spaced greater than 16 inches (400 mm) o.c | K170: H | P170: Conduct on-site verification that framing was installed per credit requirements.

Sheet EQ
B1: Indoor Environmental Quality | L1: Notes | M1: Verified (initials) | N1: Date Verified | O1: QAD Notes | P1: Verification Measure | Q1: QAD Verification Notes
E3: Preliminary Y | F3: =SUM(F337,F256,F160,F135) -> 0 | G3: Maybe | H3: =SUM(H337,H256,H160,H135) -> 0 | I3: Verified | J3: =SUM(J337,J256,J160,J135) -> 0
A5: EQp1 | B5: =L5 -> EQ Prerequisite Ventilation | K5: HM | L5: EQ Prerequisite Ventilation
K6: HM
B7: Required | F7: Required | I7: Verified | J7: =IF(OR(J10="Y",J12="Y"),"Y","N") -> N | K7: HM | M7: Responsible Party
K8: HM
K9: HM
C10: (Select one) | D10: The project has earned the EPA Indoor airPLUS label | I10: V | K10: HM
C11: OR | K11: HM
C12: Local Exhaust | I12: V | K12: HM | L12: =C12 -> Local Exhaust
C13: Confirm all of the following have been implemented on the project: | K13: HM
C14: (Select one) | D14: Local exhaust systems designed and third-party tested to meet the requirements of ASHRAE Standard 62.2–2016, Sections 5 and 7 or local equivalent, whichever is more stringent, were installed in all bathrooms (including half-baths) and the kitchen. | K14: HM | P14: Verify that bathroom fans meet prerequisite requirements for sound and performance AND Test exhaust fans to ensure they are exhausting sufficient airflow to meet prerequisite requirements, and verify that exhaust goes directly to outdoors.
K15: HM | P15: Verify that kitchen fans meet prerequisite requirements for sound and performance; AND Test exhaust fans to ensure they are exhausting sufficient airflow to meet prerequisite requirements, and verify that exhaust goes directly to outdoors.
K16: HM
C17: (Select one) | D17: Local exhaust systems exhaust air directly to the outdoors. | K17: HM
K18: HM
C19: (Select one) | D19: All bathroom exhaust fans are ENERGY STAR-labeled or an HRV or ERV is used. | K19: HM
K20: HM
C21: (Select one) | D21: For exhaust hood systems capable of exhausting in excess of 400 cubic feet per minute (188 liters per second), makeup air is provided at a rate approximately equal to the exhaust air rate. Makeup air systems have a means of closure and can be automatically controlled to start and operate simultaneously with the exhaust system. | K21: HM | P21: If exhaust hood can exhaust more than 400 cfm, conduct on-site verification that makeup air source is installed with damper that opens when exhaust fan is turned on.
C23: AND
K24: HM
C25: Whole House Mechanical Ventilation | K25: HM | L25: =C25 -> Whole House Mechanical Ventilation
C26: (Select one) | D26: The building is designed and third-party tested to meet ASHRAE Standard 62.2-2016 Sections 4, 6.7 and 6.8 or local equivalent, whichever is more stringent. | K26: HM | P26: Verify that whole house mechanical ventilation calculation is correct AND Test ventilation to ensure that the system is moving sufficient air to meet prerequisite requirements.
K27: HM
C28: (Select one) | D28: Whole house ventilation fans must be rated for sound at a maximum of 1.0 sone per ASHRAE 62.2–2016, Section 7.2.1. Remote mounted fans need not meet these sound requirements. | K28: HM | P28: Verify that whole house mechanical ventilation calculation is correct AND Test ventilation to ensure that the system is moving sufficient air to meet prerequisite requirements.
K29: HM
A30: EQp2 | B30: =L30 -> EQ Prerequisite Combustion Venting | K30: HM | L30: EQ Prerequisite Combustion Venting
K31: HM
B32: Required | F32: Required | I32: Verified | J32: N | K32: HM | M32: Responsible Party
K33: HM
K34: HM
C35: (Select one) | D35: The project has earned the EPA Indoor airPLUS label | K35: HM
D36: OR | K36: HM
C37: (Select one) | D37: No unvented combustion appliances were installed (ovens and ranges excluded). | K37: HM | P37: Conduct on-site verification that no unvented combustion appliances are installed.
C38: (Select one) | D38: A carbon monoxide (CO) monitor is installed on each floor, hard-wired with a battery backup. | K38: HM | P38: Conduct on-site verification that carbon monoxide monitors or sensors are installed on each floor and in every unit.
K39: HM
C40: For projects with fireplaces or woodstoves installed | K40: HM | L40: =C40 -> For projects with fireplaces or woodstoves installed
C41: (Select one) | D41: Provide doors that close or a solid glass enclosure. | K41: HM | P41: Conduct on-site verification that any fireplace or woodstove has doors or seal AND for any fireplaces or woodstoves that are not closed-combustion or power-vented, conduct combustion appliance zone depressurization to ensure depressurization of zone is less than 5 Pa.
K42: HM
C43: For projects where space and water heating equipment involving combustion are installed | K43: HM | L43: =C43 -> For projects where space and water heating equipment involving combustion are installed
C44: Select one of the following: | K44: HM
C45: (Select one) | D45: Equipment is installed with closed combustion (i.e. sealed supply air and exhaust ducting) | K45: HM | P45: Conduct on-site verification that any combustion space- or water-heating equipment is installed with closed combustion or power-vented exhaust or is located in a detached building or open-air facility.
K46: HM
C47: (Select one) | D47: Equipment is installed with power-vented exhaust | K47: HM
K48: HM
C49: (Select one) | D49: Equipment is located in a detached utility building or open-air facility | K49: HM
K50: HM
A51: EQp3 | B51: =L51 -> EQ Prerequisite Garage Pollutant Protection | K51: HM | L51: EQ Prerequisite Garage Pollutant Protection
K52: HM
B53: Required | F53: Required | I53: Verified | J53: N | K53: HM | M53: Responsible Party
K54: HM
K55: HM
C56: (Select one) | D56: The project has earned the EPA Indoor airPLUS label | K56: HM
D57: OR | K57: HM
C58: (Select one) | D58: All air-handling equipment and ductwork is placed outside the fire-rated envelope of the garage. | K58: HM | P58: Conduct on-site verification that all air-handling equipment and ductwork are located outside fire-rated envelope of garage.
C59: (Select one) | D59: Shared surfaces between the garage and conditioned spaces are tightly sealed. | K59: HM
K60: HM
C61: Conditioned Spaces Above Garage | K61: HM | L61: =C61 -> Conditioned Spaces Above Garage
C62: (Select one) | D62: All penetrations and all connecting floor and ceiling joist bays are sealed. | K62: HM | P62: Conduct on-site verification that surfaces between garage and conditioned spaces are sealed and weather-stripped.
K63: HM
C64: Conditioned Spaces Next to Garage | K64: HM | L64: =C64 -> Conditioned Spaces Next to Garage
C65: (Select one) | D65: All doors are weather-stripped. | K65: HM | P65: Conduct on-site verification that carbon monoxide monitors are installed in all rooms that share door with garage.
K66: HM
C67: (Select one) | D67: Carbon monoxide detectors are installed in rooms that share a door with the garage | K67: HM
K68: HM
C69: (Select one) | D69: All penetrations and all cracks at the base of the walls are sealed. | K69: HM
K70: HM
A71: EQp4 | B71: =L71 -> EQ Prerequisite Radon-Resistant Construction | K71: HM | L71: EQ Prerequisite Radon-Resistant Construction
K72: HM
B73: Required | F73: Required | I73: Verified | J73: =IF(OR(J77="Y",J83="Y",J97="Y"),"Y","N") -> N | K73: HM | M73: Responsible Party
B74: Exemplary Performance: For projects in radon zones 2 and 3, install a qualifying passive radon ventilation system. | K74: HM
K75: HM
K76: HM
C77: EPA Indoor airPLUS label | I77: V | K77: HM | L77: =C77 -> EPA Indoor airPLUS label
K78: HM
K79: HM
C80: (Select one) | D80: The project has earned the EPA Indoor airPLUS label | K80: HM
K81: HM
C82: OR | K82: HM
C83: Case 1. New Construction | I83: V | K83: HM | L83: =C83 -> Case 1. New Construction
K84: HM
K85: HM
D86: EPA radon zone | K86: HM | P86: Conduct on-site verification that building is elevated at least 2 feet (600 millimeters), with open air space between building and ground, or built over the garage.
K87: HM
C88: For projects in EPA radon zone 1 | K88: HM | L88: =C88 -> For projects in EPA radon zone 1
C89: (Select one) | D89: There is a capillary break per the Indoor airPLUS specifications. | K89: HM | P89: Conduct on-site verification that radon-resistant construction elements are installed, including gas-permeable layer (e.g., gravel) and capillary break (e.g., plastic sheeting).
C90: (Select one) | D90: An electrical outlet has been provided near vent piping in the attic to facilitate future fan installation. | K90: HM | P90: Conduct on-site verification that radon-resistant construction elements are installed, including electrical outlet near vent piping.
C91: (Select one) | D91: A gas-tight vertical vent pipe extending up through the conditioned spaces and terminating above the roof opening has been installed. | K91: HM | P91: Conduct on-site verification that radon-resistant construction elements are installed, including 3- or 4-inch (approximately 80- or 100-millimeter) vent piping that meets requirements.
D92: OR | K92: HM
C93: (Select one) | D93: The house is elevated by at least 2 feet (600 millimeters) with open air space between building and ground or there is a garage under the building. | K93: HM
K94: HM
K95: HM
C96: OR | K96: HM
C97: Case 2. Renovation of Existing Building | I97: V | K97: HM | L97: =C97 -> Case 2. Renovation of Existing Building
K98: HM
K99: HM
D100: EPA radon zone | K100: HM | P100: Conduct on-site verification that building is elevated at least 2 feet (600 millimeters), with open air space between building and ground, or built over the garage.
K101: HM
C102: For renovation projects in EPA radon zone 1 with no slab work being performed | K102: HM
D103: Radon test results (pCi/L) | K103: HM
K104: HM
C105: (Select one) | D105: If results are greater than 4 pCi/L, an active ventilation system has been installed. | K105: HM
K106: HM
A107: EQp5 | B107: =L107 -> EQ Prerequisite Air Filtering | K107: HM | L107: EQ Prerequisite Air Filtering
K108: HM
B109: Required | F109: Required | I109: Verified | J109: N | K109: HM | M109: Responsible Party
K110: HM
K111: HM
C112: (Select one) | D112: The project has earned the EPA Indoor airPLUS label | K112: HM
D113: OR | K113: HM
D114: MERV rating of filters on recirculating space conditioning systems | K114: HM | P114: Conduct on-site verification that air filters of MERV 8 or higher are installed on all forced-air heating and cooling systems, using product literature or labels AND Conduct on-site verification that mechanical air filters are installed on all nonducted forced air heating and cooling systems in air-handling unit.
D115: MERV rating of filters on mechanically supplied outdoor air systems with 10 ft (3 m) or more of ductwork | K115: HM | P115: Conduct on-site verification that air filters of MERV 6 or higher are installed on all supply ventilation systems with at least 10 feet (3 meters) of ductwork, using product literature or labels.
K116: HM
A117: EQp7 | B117: =L117 -> EQ Prerequisite Compartmentalization | K117: HM | L117: EQ Prerequisite Compartmentalization
K118: HM
B119: Required | F119: Required | I119: Verified | J119: N | K119: HM | M119: Responsible Party
K120: HM
K121: HM
C122: For attached single-family projects | K122: HM | L122: =C122 -> For attached single-family projects
C123: (Select one) | D123: Each residential unit has sealed penetrations through walls, ceilings, and floors and vertical chases adjacent to units. | K123: HM | P123: Verify penetrations in walls, ceilings, and floors and vertical chases adjacent to the units are sealed.
K124: HM
C125: (Select one) | D125: All doors in the residential units leading to common hallways have weather-stripping. | K125: HM | P125: Verify all doors in the residential units leading to common hallways are weather-striped.
K126: HM
C127: (Select one) | D127: All exterior doors and operable windows have weather-stripping. | K127: HM | P127: Verify all exterior doors and operable windows are weather-stripped.
K128: HM
D129: =CONCATENATE("Blower door test results",IF(Instructions!$I$85=1," (cfm50)"," (lps50/sq m)")) -> Blower door test results (cfm50) | K129: HM | P129: Conduct on-site testing of compartmentalization using a blower door; OR verify compartmentalization test results.
D130: =CONCATENATE("Envelope enclosure area",IF(Instructions!$I$85=1," (sq ft)"," (sq m)")) -> Envelope enclosure area (sq ft) | K130: HM
C131: =IFERROR(C129/C130,0) -> 0 | D131: =CONCATENATE("Leakage per area of enclosure",IF(Instructions!$I$85=1," (cfm50/sq ft)"," (lps50/sq m)")) -> Leakage per area of enclosure (cfm50/sq ft) | K131: HM
K132: HM
A133: EQc1 | B133: =L133 -> EQ Credit Enhanced Ventilation | K133: HM | L133: EQ Credit Enhanced Ventilation
K134: HM
B135: Up to 3 points | E135: Preliminary Y | F135: =IF(SUM(F139,F145,F153)>3,3,(SUM(F139,F145,F153))) -> 0 | G135: M | H135: =IF(SUM(H139,H145,H153)>3,3,(SUM(H139,H145,H153))) -> 0 | I135: Verified | J135: =IF(SUM(J139,J145,J153)>3,3,(SUM(J139,J145,J153))) -> 0 | K135: HM | M135: Responsible Party
B136: Exemplary Performance: Earn more than the maximum 3 points
K137: HM
K138: HM
C139: Option 1. Enhanced Local Exhaust (1 point) | E139: Y | G139: M | I139: V | K139: HM | L139: =C139 -> Option 1. Enhanced Local Exhaust (1 point)
K140: HM
K141: HM
E142: Bathroom exhaust fan control type in every bathroom with a shower, bathtub, or spa | K142: HM | P142: Conduct on-site verification that each full bathroom has exhaust fan that either is controlled by occupancy sensor, humidistat, or delay timer that operates fan for at least 20 minutes, or runs continuously.
K143: HM
C144: AND/OR | K144: HM
C145: Option 2. Enhanced Whole-House Ventilation (2 points) | E145: Y | G145: M | I145: V | K145: HM | L145: =C145 -> Option 2. Enhanced Whole-House Ventilation (2 points)
K146: HM
K147: HM
C148: (Select one) | D148: A balanced whole-house ventilation system was designed and installed that meets ASHRAE 62.2-2016 Section 4 in each home or unit. | K148: HM | P148: Conduct on-site verification that whole-house (or whole-unit) ventilation strategy is balanced.
K150: HM
C151: (Select one) | D151: The system does not exceed ASHRAE 62.2-2010 requirements by more than 10%. | K151: HM | P151: Conduct on-site verification that ventilation system is programmed to not exceed ASHRAE 62.2 by more than 10%.
C152: AND/OR
C153: Option 3. Humidity Control (1 point) | E153: Y | G153: M | I153: V | L153: =C153 -> Option 3. Humidity Control (1 point)
C156: (Select one) | D156: Dehumificiation controls installed for the whole-house ventilation system. | P156: Verify dehumidification controls installed for the whole-house ventilation system.
K157: HM
A158: EQc2 | B158: =L158 -> EQ Credit Contaminant Control | K158: HM | L158: EQ Credit Contaminant Control
K159: HM
B160: Up to 3 points | E160: Preliminary Y | F160: =IF(SUM(F164,F173,F181,F200,F231,F240)>3,3,SUM(F164,F173,F181,F200,F231,F240)) -> 0 | G160: M | H160: =IF(SUM(H164,H173,H181,H200,H231,H240)>3,3,SUM(H164,H173,H181,H200,H231,H240)) -> 0 | I160: Verified | J160: =IF(SUM(J164,J173,J181,J200,J231,J240)>3,3,SUM(J164,J173,J181,J200,J231,J240)) -> 0 | K160: HM | M160: Responsible Party
B161: Exemplary Performance: Earn more than the maximum 3 points | K161: HM
K162: HM
K163: HM
C164: Option 1. Walk-off Mats (1 point) | E164: Y | G164: M | I164: V | K164: HM | L164: =C164 -> Option 1. Walk-off Mats (1 point)
K165: HM
K166: HM
C167: (Select one) | D167: For all primary entryways, a permanent walk-off mat that is at least 4 feet (1.2 meters) long and allows access for cleaning has been installed. | K167: HM | P167: Conduct on-site verification that permanent, cleanable, walk-off mats at least 4 feet (1.2 meters) long are installed at each entry (for common exterior entryways in multifamily buildings, at least 10 feet, or 3 meters, long).
K168: HM
C169: For multifamily projects | K169: HM
C170: (Select one) | D170: For exterior entryways in common areas, permanent systems that are at least 10 feet (3 meters) long have been installed. | K170: HM
K171: HM
C172: AND/OR | K172: HM
C173: Option 2. Shoe Removal and Storage (1 point) | E173: Y | G173: M | I173: V | K173: HM | L173: =C173 -> Option 2. Shoe Removal and Storage (1 point)
K174: HM
K175: HM
C176: (Select one) | D176: A shoe removal and storage space is near the primary entryway. | K176: HM | P176: Conduct on-site verification that uncarpeted shoe removal and storage space is installed near primary entryway (of each unit in multifamily buildings).
K177: HM
C178: (Select one) | D178: No conventional carpet is installed in shoe removal and storage area. | K178: HM
K179: HM
C180: AND/OR | K180: HM
C181: Option 3. Preoccupancy Flush (1 point) | E181: Y | G181: M | I181: V | K181: HM | L181: =C181 -> Option 3. Preoccupancy Flush (1 point)
K182: HM
K183: HM
C184: (Select one) | D184: The project has earned the EPA Indoor airPLUS label | K184: HM
D185: OR | K185: HM
C186: (Select one) | D186: At installation, all permanent ducts and vents were sealed to minimize contamination from construction. | K186: HM | P186: At midconstruction site visit, conduct on-site verification that ducts are sealed.
K187: HM
C188: After construction ends and before occupancy | K188: HM | L188: =C188 -> After construction ends and before occupancy
C189: (Select one) | D189: Any dust and debris was removed from ducts. | K189: HM | P189: At final site visit, conduct swipe of duct interiors and verify that ducts are clean.
K190: HM
C191: (Select one) | D191: The home was flushed out for 48 hours, with all windows open, a fan run continuously or all HVAC fans and exhaust fans. | K191: HM
K192: HM
C193: AND/OR | K193: HM
C194: Option 4. Air Testing (1 point) | E194: Y | G194: M | I194: V | K194: HM | L194: =C194 -> Option 4. Air Testing (1 point)
K195: HM
K196: HM
C197: (Select one) | D197: The building was tested for indoor air contaminants and maximum concentrations were not exceeded. | K197: HM | P197: Verify indoor air contamination test results don't exceed maximum concentrations.
K198: HM
C199: AND/OR
C200: Option 4. Exhaust Fan in Laundry Room, Utility Room or Garage (1 point) | E200: Y | F200: =IF(SUM(F203,F214,F225)>1,1,SUM(F203,F214,F225)) -> 0 | G200: M | H200: =IF(SUM(H203,H214,H225)>1,1,SUM(H203,H214,H225)) -> 0 | I200: V | J200: =IF(SUM(J203,J214,J225)>1,1,SUM(J203,J214,J225)) -> 0 | L200: =C200 -> Option 4. Exhaust Fan in Laundry Room, Utility Room or Garage (1 point)
C201: Meet one of the following:
C203: Case 1. Garage Exhaust | E203: Y | G203: M | I203: V | L203: =C203 -> Case 1. Garage Exhaust
C206: (Select one) | D206: The project has earned the EPA Indoor airPLUS label
D207: OR
C208: (Select one) | D208: 75 cfm exhaust installed that meets ENERGY STAR cfm/w performance requirements. | P208: Verify
C210: (Select one) | D210: Qualifying fan control is installed | P210: Verify
... 98 more rows

Sheet IN
B1: Innovation | L1: Notes | M1: Verified (initials) | N1: Date Verified | O1: QAD Notes | P1: Verification Measure | Q1: QAD Verification Notes
E3: Preliminary Y | F3: =SUM(F15,F49) -> 0 | G3: Maybe | H3: =SUM(H15,H49) -> 0 | I3: Verified | J3: =SUM(J15,J49) -> 0
A5: INp1 | B5: =L5 -> IN Prerequisite Preliminary Rating | K5: HM | L5: IN Prerequisite Preliminary Rating
K6: HM
B7: Required | F7: Required | I7: Verified | J7: N | K7: HM | M7: Responsible Party
K8: HM
K9: HM
C10: (Select one) | D10: Preliminary rating and meeting are complete. | K10: HM | P10: Participate in preliminary rating.
K11: HM
A12: INc1 | B12: =L12 -> IN Credit Innovation | K12: HM | L12: IN Credit Innovation
K13: HM
B14: To achieve all five innovation points, a project team must achieve at least one pilot credit, at least one innovation credit and no more than two exemplary performance credits.
B15: Up to 5 points | E15: Preliminary Y | F15: =SUM(F18,F25,F31) -> 0 | G15: M | H15: =SUM(H18,H25,H31) -> 0 | I15: Verified | J15: =IF(SUM(J18,J25,J31)>5,5,SUM(J18,J25,J31)) -> 0 | K15: HM | M15: Responsible Party
K16: HM
K17: HM
C18: Option 1. Innovation (1 point) | E18: Y | G18: M | I18: V | K18: HM | L18: =C18 -> Option 1. Innovation (1 point)
K19: HM
K20: HM
C21: Describe the intent of the proposed innovation credit. | K21: HM
K22: HM | P22: Verify that all components listed in USGBC-approved Innovation request are installed;
K23: HM
C24: AND/OR | K24: HM
C25: Option 2. Pilot (1 point) | E25: Y | G25: M | I25: V | K25: HM | L25: =C25 -> Option 2. Pilot (1 point)
K26: HM
K27: HM
F28: Pilot credit name | K28: HM | P28: Verify that all components listed in USGBC-approved pilot credit are installed.
K29: HM
C30: AND/OR | K30: HM
C31: Option 3. Additional Strategies (1-3 points) | E31: Y | G31: M | I31: V | K31: HM | L31: =C31 -> Option 3. Additional Strategies (1-3 points)
C32: Exemplary Performance: 1-2 points | K32: HM
K34: HM
F35: Strategy | K35: HM | P35: Verify that all components listed in USGBC-approved Innovation request are installed; OR Verify that all components listed in USGBC-approved pilot credit are installed.
F36: Credit name | K36: HM
K37: HM
F38: Strategy | K38: HM | P38: Verify that all components listed in USGBC-approved Innovation request are installed; OR Verify that all components listed in USGBC-approved pilot credit are installed.
F39: Credit name | K39: HM
K40: HM
F41: Strategy | K41: HM | P41: Verify that all components listed in USGBC-approved Innovation request are installed; OR Verify that all components listed in USGBC-approved pilot credit are installed.
F42: Credit name | K42: HM
K43: HM
F44: Strategy | K44: HM | P44: Verify that all components listed in USGBC-approved Innovation request are installed; OR Verify that all components listed in USGBC-approved pilot credit are installed.
F45: Credit name | K45: HM
K46: HM
A47: INc2 | B47: =L47 -> IN Credit LEED Accredited Professional | K47: HM | L47: IN Credit LEED Accredited Professional
K48: HM
B49: 1 point | E49: Preliminary Y | F49: 0 | G49: M | H49: 0 | I49: Verified | J49: 0 | K49: HM | M49: Responsible Party
K50: HM
K51: HM
F52: Name of credential holder | K52: HM | P52: Verify that principal member of project team is LEED AP Homes.

Sheet RP
B1: Regional Priority | L1: Notes | M1: Verified (initials) | N1: Date Verified | O1: QAD Notes | P1: Verification Measure | Q1: QAD Verification Notes
E3: Preliminary Y | F3: =F7 -> 0 | G3: Maybe | H3: =H7 -> 0 | I3: Verified | J3: =J7 -> 0
A5: RPc1 | B5: =L5 -> RP Credit Regional Priority | K5: HM | L5: RP Credit Regional Priority
K6: HM
B7: Up to 4 points | E7: Preliminary Y | F7: 0 | G7: M | H7: 0 | I7: Verified | J7: 0 | K7: HM | M7: Responsible Party
K8: HM
K9: HM
C10: Regional priority credits may be found on www.usgbc.org/rpc. Alternative Regional Priority Credits can be used if justification is provided. | K10: HM
C11: Regional Priority Credit Name | E11: Point Threshold
K12: HM
K13: HM
K14: HM
K15: HM
K16: HM
K17: HM
K18: HM
K19: HM

Sheet Water Reduction Calculator
B2: Water Reduction Calculator
B5: Use this calculator to determine if your building uses less water than the requirements of WE Credit Total Water Use. Note: This calculator is a relative measure of water use based on how the products are designed and not how they actually perform in the field. Therefore, please use values/rates from the product specifications. Measurements from field testing should NOT be used in this calculator, but may be used to identify improperly installed or malfunctioning products.
B7: Outdoor Water Use
B8: Provide the following values from the WaterSense Water Budget Calculator. Note that you should enter the ‘Baseline’ water use, not the Landscape Water Allowance. The landscape water allowance is by definition 70% of the baseline water use.
B9: =CONCATENATE("Baseline for the site",IF(Instructions!$I$85=1," (gal/peak month)"," (l/peak month)")) -> Baseline for the site (gal/peak month)
B10: =CONCATENATE("Landscape water requirement for site",IF(Instructions!$I$85=1," (gal/peak month)"," (l/peak month)")) -> Landscape water requirement for site (gal/peak month)
B11: =CONCATENATE("Rainwater or graywater",IF(Instructions!$I$85=1," (gal/peak month)"," (l/peak month)")) -> Rainwater or graywater (gal/peak month)
B13: Unit Information
B14: List the number of each type of unit for the building. This information is used to double check your entries for each fixture type. For single family homes, put '1' by the number of bedrooms.
B15: Unit Type | C15: Number of Units | D15: Occupants | V15: Number of Bedrooms | W15: All units
A16: =IF(B16>0,0,0) -> 0 | B16: Efficiency | D16: =(1+1)*C16 -> 0 | V16: 1 | W16: Efficiency
A17: =IF(B17>0,0,0) -> 0 | B17: 1 Bedroom | D17: =(1+1)*C17 -> 0 | V17: 1 | W17: 1 Bedroom
A18: =IF(B18>0,0,0) -> 0 | B18: 2 Bedrooms | D18: =(2+1)*C18 -> 0 | V18: 2 | W18: 2 Bedrooms
A19: =IF(B19>0,0,0) -> 0 | B19: 3 Bedrooms | D19: =(3+1)*C19 -> 0 | V19: 3 | W19: 3 Bedrooms
A20: 0 | B20: 4 Bedrooms | D20: =(4+1)*C20 -> 0 | V20: 4 | W20: 4 Bedrooms
B21: 5 Bedrooms | D21: =(5+1)*C21 -> 0 | V21: 5 | W21: 5 Bedrooms
B22: 6 Bedrooms | D22: =(6+1)*C22 -> 0 | V22: 6 | W22: 6 Bedrooms
B23: Totals | C23: =SUM(C16:C22) -> 0 | D23: =SUM(D16:D22) -> 0
A24: A
B25: Indoor Water Use
B26: This section determines the average flow rate of each fixture, for each unique unit type which is used to calculate the average indoor water use for each unit's occupants.
B27: Fixture Use for Showers
B28: Enter the flow rate and a brief description for each type of fixture.
B29: Fixture ID | C29: =CONCATENATE("Flow Rate ",IF(Instructions!$I$85=1,"(gpm)","(lpm)")) -> Flow Rate (gpm) | D29: TSV? | E29: =CONCATENATE("Adjusted Flow Rate ",IF(Instructions!$I$85=1,"(gpm)","(lpm)")) -> Adjusted Flow Rate (gpm)
A30: =IF(B30>0,0,0) -> 0 | E30: =IFERROR(IF(C30="","",IF(D30="Yes",C30*($C$146-(30/60))/$C$146,C30)),0) -> 
A31: =IF(B31>0,0,0) -> 0 | E31: =IFERROR(IF(C31="","",IF(D31="Yes",C31*($C$146-(30/60))/$C$146,C31)),0) -> 
A32: =IF(B32>0,0,0) -> 0
B35: Complete one row for each unique set of units and enter each fixture's information. This will calculate the average water use of the occupant of each unit type. If the fixture is the same throughout the building, select 'All units' under 'Unit Type' and select the appropriate fixture in Fixture 1.
B36: Unit Information | F36: Design | P36: Baseline | S36: Totals
B37: Unit Type | C37: Unit Description | D37: Number of Units | E37: Occupants | F37: Fixture 1 | H37: Fixture 2 | J37: Fixture 3 | L37: Fixture 4 | N37: =CONCATENATE("Average Flow Rate ",IF(Instructions!$I$85=1,"(gpm)","(lpm)")) -> Average Flow Rate (gpm) | O37: =CONCATENATE("Calculated Water Usage ",IF(Instructions!$I$85=1," (gallons)"," (liters)")) -> Calculated Water Usage (gallons) | P37: Estimated Fixture Usage (minutes) | Q37: =CONCATENATE("Flow Rate ",IF(Instructions!$I$85=1,"(gpm)","(lpm)")) -> Flow Rate (gpm) | R37: =CONCATENATE("Estimated Water Usage ",IF(Instructions!$I$85=1," (gallons)"," (liters)")) -> Estimated Water Usage (gallons) | S37: =CONCATENATE("Design Monthly Water Use ",IF(Instructions!$I$85=1," (gal/month)"," (l/month)")) -> Design Monthly Water Use (gal/month) | T37: =CONCATENATE("Baseline Monthly Water Use ",IF(Instructions!$I$85=1," (gal/month)"," (l/month)")) -> Baseline Monthly Water Use (gal/month) | V37: Number of Bedrooms
F38: Fixture 1 ID | G38: =CONCATENATE("Fixture 1 Flow Rate ",IF(Instructions!$I$85=1,"(gpm)","(lpm)")) -> Fixture 1 Flow Rate (gpm) | H38: Fixture 2 ID | I38: =CONCATENATE("Fixture 2 Flow Rate ",IF(Instructions!$I$85=1,"(gpm)","(lpm)")) -> Fixture 2 Flow Rate (gpm) | J38: Fixture 3 ID | K38: =CONCATENATE("Fixture 3 Flow Rate ",IF(Instructions!$I$85=1,"(gpm)","(lpm)")) -> Fixture 3 Flow Rate (gpm) | L38: Fixture 4 ID | M38: =CONCATENATE("Fixture 4 Flow Rate ",IF(Instructions!$I$85=1,"(gpm)","(lpm)")) -> Fixture 4 Flow Rate (gpm)
A39: =IF(B39>0,0,0) -> 0 | E39: =IFERROR(IF(B39="All units",$D$23,(V39+1)*D39),0) -> 0 | G39: =IFERROR(VLOOKUP(F39,$B$30:$E$33,4,FALSE),"") ->  | I39: =IFERROR(VLOOKUP(H39,$B$30:$E$33,4,FALSE),"") ->  | K39: =IFERROR(VLOOKUP(J39,$B$30:$E$33,4,FALSE),"") ->  | M39: =IFERROR(VLOOKUP(L39,$B$30:$E$33,4,FALSE),"") ->  | N39: =IFERROR(SUM(G39,I39,K39,M39)/COUNTA(F39,H39,J39,L39),"") ->  | O39: =IFERROR(N39*$P39,"") ->  | P39: =IF(B39<>"",$C$146,"") ->  | Q39: =IF(B39<>"",IF(Instructions!$I$85=1,$F$146,$H$146),"") ->  | R39: =IF(B39<>"",IF(Instructions!$I$85=1,$J$146,$K$146),"") ->  | S39: =IFERROR(O39*30*$E39,"") ->  | T39: =IFERROR(R39*30*$E39,"") ->  | V39: =IFERROR(VLOOKUP(B39,$B$16:$V$22,21,FALSE),"") -> 
A40: =IF(B40>0,0,0) -> 0 | E40: =IFERROR(IF(B40="All units",$D$23,(V40+1)*D40),0) -> 0 | G40: =IFERROR(VLOOKUP(F40,$B$30:$E$33,4,FALSE),"") ->  | I40: =IFERROR(VLOOKUP(H40,$B$30:$E$33,4,FALSE),"") ->  | K40: =IFERROR(VLOOKUP(J40,$B$30:$E$33,4,FALSE),"") ->  | M40: =IFERROR(VLOOKUP(L40,$B$30:$E$33,4,FALSE),"") ->  | N40: =IFERROR(SUM(G40,I40,K40,M40)/COUNTA(F40,H40,J40,L40),"") ->  | O40: =IFERROR(N40*$P40,"") ->  | P40: =IF(B40<>"",$C$146,"") ->  | Q40: =IF(B40<>"",IF(Instructions!$I$85=1,$F$146,$H$146),"") ->  | R40: =IF(B40<>"",IF(Instructions!$I$85=1,$J$146,$K$146),"") ->  | S40: =IFERROR(O40*30*$E40,"") ->  | T40: =IFERROR(R40*30*$E40,"") ->  | V40: =IFERROR(VLOOKUP(B40,$B$16:$V$22,21,FALSE),"") -> 
A41: =IF(B41>0,0,0) -> 0 | E41: =IFERROR(IF(B41="All units",$D$23,(V41+1)*D41),0) -> 0 | G41: =IFERROR(VLOOKUP(F41,$B$30:$E$33,4,FALSE),"") ->  | I41: =IFERROR(VLOOKUP(H41,$B$30:$E$33,4,FALSE),"") ->  | K41: =IFERROR(VLOOKUP(J41,$B$30:$E$33,4,FALSE),"") ->  | M41: =IFERROR(VLOOKUP(L41,$B$30:$E$33,4,FALSE),"") ->  | O41: =IFERROR(N41*$P41,"") ->  | P41: =IF(B41<>"",$C$146,"") ->  | Q41: =IF(B41<>"",IF(Instructions!$I$85=1,$F$146,$H$146),"") ->  | R41: =IF(B41<>"",IF(Instructions!$I$85=1,$J$146,$K$146),"") ->  | S41: =IFERROR(O41*30*$E41,"") ->  | T41: =IFERROR(R41*30*$E41,"") ->  | V41: =IFERROR(VLOOKUP(B41,$B$16:$V$22,21,FALSE),"") -> 
E42: =IFERROR(IF(B42="All units",$D$23,(V42+1)*D42),0) -> 0 | G42: =IFERROR(VLOOKUP(F42,$B$30:$E$33,4,FALSE),"") ->  | I42: =IFERROR(VLOOKUP(H42,$B$30:$E$33,4,FALSE),"") ->  | K42: =IFERROR(VLOOKUP(J42,$B$30:$E$33,4,FALSE),"") ->  | M42: =IFERROR(VLOOKUP(L42,$B$30:$E$33,4,FALSE),"") ->  | O42: =IFERROR(N42*$P42,"") ->  | P42: =IF(B42<>"",$C$146,"") ->  | Q42: =IF(B42<>"",IF(Instructions!$I$85=1,$F$146,$H$146),"") ->  | R42: =IF(B42<>"",IF(Instructions!$I$85=1,$J$146,$K$146),"") ->  | S42: =IFERROR(O42*30*$E42,"") ->  | T42: =IFERROR(R42*30*$E42,"") ->  | V42: =IFERROR(VLOOKUP(B42,$B$16:$V$22,21,FALSE),"") -> 
E43: =IFERROR(IF(B43="All units",$D$23,(V43+1)*D43),0) -> 0 | G43: =IFERROR(VLOOKUP(F43,$B$30:$E$33,4,FALSE),"") ->  | I43: =IFERROR(VLOOKUP(H43,$B$30:$E$33,4,FALSE),"") ->  | K43: =IFERROR(VLOOKUP(J43,$B$30:$E$33,4,FALSE),"") ->  | M43: =IFERROR(VLOOKUP(L43,$B$30:$E$33,4,FALSE),"") ->  | O43: =IFERROR(N43*$P43,"") ->  | P43: =IF(B43<>"",$C$146,"") ->  | Q43: =IF(B43<>"",IF(Instructions!$I$85=1,$F$146,$H$146),"") ->  | R43: =IF(B43<>"",IF(Instructions!$I$85=1,$J$146,$K$146),"") ->  | S43: =IFERROR(O43*30*$E43,"") ->  | T43: =IFERROR(R43*30*$E43,"") ->  | V43: =IFERROR(VLOOKUP(B43,$B$16:$V$22,21,FALSE),"") -> 
A44: B | B44: Totals for showers | D44: =SUM(D39:D43) -> 0 | E44: =SUM(E39:E43) -> 0 | S44: =SUM(S39:S43) -> 0 | T44: =SUM(T39:T43) -> 0
B47: Fixture Use for Lavatories and Kitchen Faucets
B48: Fixture ID | C48: =CONCATENATE("Flow Rate ",IF(Instructions!$I$85=1,"(gpm)","(lpm)")) -> Flow Rate (gpm)
A49: =IF(B49>0,0,0) -> 0
A50: =IF(B50>0,0,0) -> 0
A51: =IF(B51>0,0,0) -> 0
B54: Unit Information | F54: Design | P54: Baseline | S54: Totals
B55: Unit Type | C55: Unit Description | D55: Number of Units | E55: Occupants | F55: Fixture 1 | H55: Fixture 2 | J55: Fixture 3 | L55: Fixture 4 | N55: =CONCATENATE("Average Flow Rate ",IF(Instructions!$I$85=1,"(gpm)","(lpm)")) -> Average Flow Rate (gpm) | O55: =CONCATENATE("Calculated Water Usage ",IF(Instructions!$I$85=1," (gallons)"," (liters)")) -> Calculated Water Usage (gallons) | P55: Estimated Fixture Usage (minutes) | Q55: =CONCATENATE("Flow Rate ",IF(Instructions!$I$85=1,"(gpm)","(lpm)")) -> Flow Rate (gpm) | R55: =CONCATENATE("Estimated Water Usage ",IF(Instructions!$I$85=1," (gallons)"," (liters)")) -> Estimated Water Usage (gallons) | S55: =CONCATENATE("Design Monthly Water Use ",IF(Instructions!$I$85=1," (gal/month)"," (l/month)")) -> Design Monthly Water Use (gal/month) | T55: =CONCATENATE("Baseline Monthly Water Use ",IF(Instructions!$I$85=1," (gal/month)"," (l/month)")) -> Baseline Monthly Water Use (gal/month) | V55: Number of Bedrooms
F56: Fixture 1 ID | G56: =CONCATENATE("Fixture 1 Flow Rate ",IF(Instructions!$I$85=1,"(gpm)","(lpm)")) -> Fixture 1 Flow Rate (gpm) | H56: Fixture 2 ID | I56: =CONCATENATE("Fixture 2 Flow Rate ",IF(Instructions!$I$85=1,"(gpm)","(lpm)")) -> Fixture 2 Flow Rate (gpm) | J56: Fixture 3 ID | K56: =CONCATENATE("Fixture 3 Flow Rate ",IF(Instructions!$I$85=1,"(gpm)","(lpm)")) -> Fixture 3 Flow Rate (gpm) | L56: Fixture 4 ID | M56: =CONCATENATE("Fixture 4 Flow Rate ",IF(Instructions!$I$85=1,"(gpm)","(lpm)")) -> Fixture 4 Flow Rate (gpm)
A57: =IF(B57>0,0,0) -> 0 | E57: =IFERROR(IF(B57="All units",$D$23,(V57+1)*D57),0) -> 0 | G57: =IFERROR(VLOOKUP(F57,$B$49:$C$52,2,FALSE),"") ->  | I57: =IFERROR(VLOOKUP(H57,$B$49:$C$52,2,FALSE),"") ->  | K57: =IFERROR(VLOOKUP(J57,$B$49:$C$52,2,FALSE),"") ->  | M57: =IFERROR(VLOOKUP(L57,$B$49:$C$52,2,FALSE),"") ->  | N57: =IFERROR(SUM(G57,I57,K57,M57)/COUNTA(F57,H57,J57,L57),"") ->  | O57: =IFERROR(N57*$P57,"") ->  | P57: =IF(B57<>"",$C$147,"") ->  | Q57: =IF(B57<>"",IF(Instructions!$I$85=1,$F$147,$H$147),"") ->  | R57: =IF(B57<>"",IF(Instructions!$I$85=1,$J$147,$K$147),"") ->  | S57: =IFERROR(O57*30*$E57,"") ->  | T57: =IFERROR(R57*30*$E57,"") ->  | V57: =IFERROR(VLOOKUP(B57,$B$16:$V$22,21,FALSE),"") -> 
A58: =IF(B58>0,0,0) -> 0 | E58: =IFERROR(IF(B58="All units",$D$23,(V58+1)*D58),0) -> 0 | G58: =IFERROR(VLOOKUP(F58,$B$49:$C$52,2,FALSE),"") ->  | K58: =IFERROR(VLOOKUP(J58,$B$49:$C$52,2,FALSE),"") ->  | M58: =IFERROR(VLOOKUP(L58,$B$49:$C$52,2,FALSE),"") ->  | N58: =IFERROR(SUM(G58,I58,K58,M58)/COUNTA(F58,H58,J58,L58),"") ->  | O58: =IFERROR(N58*$P58,"") ->  | P58: =IF(B58<>"",$C$147,"") ->  | Q58: =IF(B58<>"",IF(Instructions!$I$85=1,$F$147,$H$147),"") ->  | R58: =IF(B58<>"",IF(Instructions!$I$85=1,$J$147,$K$147),"") ->  | S58: =IFERROR(O58*30*$E58,"") ->  | T58: =IFERROR(R58*30*$E58,"") ->  | V58: =IFERROR(VLOOKUP(B58,$B$16:$V$22,21,FALSE),"") -> 
A59: =IF(B59>0,0,0) -> 0 | E59: =IFERROR(IF(B59="All units",$D$23,(V59+1)*D59),0) -> 0 | K59: =IFERROR(VLOOKUP(J59,$B$49:$C$52,2,FALSE),"") ->  | M59: =IFERROR(VLOOKUP(L59,$B$49:$C$52,2,FALSE),"") ->  | O59: =IFERROR(N59*$P59,"") ->  | P59: =IF(B59<>"",$C$147,"") ->  | Q59: =IF(B59<>"",IF(Instructions!$I$85=1,$F$147,$H$147),"") ->  | R59: =IF(B59<>"",IF(Instructions!$I$85=1,$J$147,$K$147),"") ->  | S59: =IFERROR(O59*30*$E59,"") ->  | T59: =IFERROR(R59*30*$E59,"") ->  | V59: =IFERROR(VLOOKUP(B59,$B$16:$V$22,21,FALSE),"") -> 
E60: =IFERROR(IF(B60="All units",$D$23,(V60+1)*D60),0) -> 0 | K60: =IFERROR(VLOOKUP(J60,$B$49:$C$52,2,FALSE),"") ->  | M60: =IFERROR(VLOOKUP(L60,$B$49:$C$52,2,FALSE),"") ->  | O60: =IFERROR(N60*$P60,"") ->  | P60: =IF(B60<>"",$C$147,"") ->  | Q60: =IF(B60<>"",IF(Instructions!$I$85=1,$F$147,$H$147),"") ->  | R60: =IF(B60<>"",IF(Instructions!$I$85=1,$J$147,$K$147),"") ->  | S60: =IFERROR(O60*30*$E60,"") ->  | T60: =IFERROR(R60*30*$E60,"") ->  | V60: =IFERROR(VLOOKUP(B60,$B$16:$V$22,21,FALSE),"") -> 
E61: =IFERROR(IF(B61="All units",$D$23,(V61+1)*D61),0) -> 0 | K61: =IFERROR(VLOOKUP(J61,$B$49:$C$52,2,FALSE),"") ->  | M61: =IFERROR(VLOOKUP(L61,$B$49:$C$52,2,FALSE),"") ->  | O61: =IFERROR(N61*$P61,"") ->  | P61: =IF(B61<>"",$C$147,"") ->  | Q61: =IF(B61<>"",IF(Instructions!$I$85=1,$F$147,$H$147),"") ->  | R61: =IF(B61<>"",IF(Instructions!$I$85=1,$J$147,$K$147),"") ->  | S61: =IFERROR(O61*30*$E61,"") ->  | T61: =IFERROR(R61*30*$E61,"") ->  | V61: =IFERROR(VLOOKUP(B61,$B$16:$V$22,21,FALSE),"") -> 
A62: C | B62: Totals for lavs and kitchen faucets | D62: =SUM(D57:D61) -> 0 | E62: =SUM(E57:E61) -> 0 | S62: =SUM(S57:S61) -> 0 | T62: =SUM(T57:T61) -> 0
B65: Fixture Use for Toilets
B67: For projects with dual-flush toilets Calculate the average flush rate below and enter the resulting flush rate into the design case flush rate section for toilet.
B68: =CONCATENATE("High flush rate",IF(Instructions!$I$85=1," (gpf)"," (lpf)")) -> High flush rate (gpf)
B69: =CONCATENATE("Low flush rate",IF(Instructions!$I$85=1," (gpf)"," (lpf)")) -> Low flush rate (gpf)
B70: =CONCATENATE("Average flush rate",IF(Instructions!$I$85=1," (gpf)"," (lpf)")) -> Average flush rate (gpf) | E70: =IFERROR((2*E69+E68)/3,0) -> 0
B72: Fixture ID | C72: =CONCATENATE("Flush Rate ",IF(Instructions!$I$85=1,"(gpf)","(lpf)")) -> Flush Rate (gpf)
A73: =IF(B73>0,0,0) -> 0
A74: =IF(B74>0,0,0) -> 0
A75: =IF(B75>0,0,0) -> 0
B78: Unit Information | F78: Design | P78: Baseline | S78: Totals
B79: Unit Type | C79: Unit Description | D79: Number of Units | E79: Occupants | F79: Fixture 1 | H79: Fixture 2 | J79: Fixture 3 | L79: Fixture 4 | N79: =CONCATENATE("Average Flush Rate ",IF(Instructions!$I$85=1,"(gpf)","(lpf)")) -> Average Flush Rate (gpf) | O79: =CONCATENATE("Calculated Water Usage ",IF(Instructions!$I$85=1," (gallons)"," (liters)")) -> Calculated Water Usage (gallons) | P79: Estimated Fixture Usage (flushes) | Q79: =CONCATENATE("Flush Rate ",IF(Instructions!$I$85=1,"(gpf)","(lpf)")) -> Flush Rate (gpf) | R79: =CONCATENATE("Estimated Water Usage ",IF(Instructions!$I$85=1," (gallons)"," (liters)")) -> Estimated Water Usage (gallons) | S79: =CONCATENATE("Design Monthly Water Use ",IF(Instructions!$I$85=1," (gal/month)"," (l/month)")) -> Design Monthly Water Use (gal/month) | T79: =CONCATENATE("Baseline Monthly Water Use ",IF(Instructions!$I$85=1," (gal/month)"," (l/month)")) -> Baseline Monthly Water Use (gal/month) | V79: Number of Bedrooms
F80: Fixture 1 ID | G80: =CONCATENATE("Fixture 1 Flush Rate ",IF(Instructions!$I$85=1,"(gpf)","(lpf)")) -> Fixture 1 Flush Rate (gpf) | H80: Fixture 2 ID | I80: =CONCATENATE("Fixture 2 Flush Rate ",IF(Instructions!$I$85=1,"(gpf)","(lpf)")) -> Fixture 2 Flush Rate (gpf) | J80: Fixture 3 ID | K80: =CONCATENATE("Fixture 3 Flush Rate ",IF(Instructions!$I$85=1,"(gpf)","(lpf)")) -> Fixture 3 Flush Rate (gpf) | L80: Fixture 4 ID | M80: =CONCATENATE("Fixture 4 Flush Rate ",IF(Instructions!$I$85=1,"(gpf)","(lpf)")) -> Fixture 4 Flush Rate (gpf)
A81: =IF(B81>0,0,0) -> 0 | E81: =IFERROR(IF(B81="All units",$D$23,(V81+1)*D81),0) -> 0 | G81: =IFERROR(VLOOKUP(F81,$B$73:$C$76,2,FALSE),"") ->  | I81: =IFERROR(VLOOKUP(H81,$B$73:$C$76,2,FALSE),"") ->  | K81: =IFERROR(VLOOKUP(J81,$B$73:$C$76,2,FALSE),"") ->  | M81: =IFERROR(VLOOKUP(L81,$B$73:$C$76,2,FALSE),"") ->  | N81: =IFERROR(SUM(G81,I81,K81,M81)/COUNTA(F81,H81,J81,L81),"") ->  | O81: =IFERROR(N81*$P81,"") ->  | P81: =IF(B81<>"",$C$148,"") ->  | Q81: =IF(B81<>"",IF(Instructions!$I$85=1,$F$148,$H$148),"") ->  | R81: =IF(B81<>"",IF(Instructions!$I$85=1,$J$148,$K$148),"") ->  | S81: =IFERROR(O81*30*$E81,"") ->  | T81: =IFERROR(R81*30*$E81,"") ->  | V81: =IFERROR(VLOOKUP(B81,$B$16:$V$22,21,FALSE),"") -> 
A82: =IF(B82>0,0,0) -> 0 | E82: =IFERROR(IF(B82="All units",$D$23,(V82+1)*D82),0) -> 0 | K82: =IFERROR(VLOOKUP(J82,$B$73:$C$76,2,FALSE),"") ->  | M82: =IFERROR(VLOOKUP(L82,$B$73:$C$76,2,FALSE),"") ->  | N82: =IFERROR(SUM(G82,I82,K82,M82)/COUNTA(F82,H82,J82,L82),"") ->  | O82: =IFERROR(N82*$P82,"") ->  | P82: =IF(B82<>"",$C$148,"") ->  | Q82: =IF(B82<>"",IF(Instructions!$I$85=1,$F$148,$H$148),"") ->  | R82: =IF(B82<>"",IF(Instructions!$I$85=1,$J$148,$K$148),"") ->  | S82: =IFERROR(O82*30*$E82,"") ->  | T82: =IFERROR(R82*30*$E82,"") ->  | V82: =IFERROR(VLOOKUP(B82,$B$16:$V$22,21,FALSE),"") -> 
A83: =IF(B83>0,0,0) -> 0 | E83: =IFERROR(IF(B83="All units",$D$23,(V83+1)*D83),0) -> 0 | K83: =IFERROR(VLOOKUP(J83,$B$73:$C$76,2,FALSE),"") ->  | M83: =IFERROR(VLOOKUP(L83,$B$73:$C$76,2,FALSE),"") ->  | O83: =IFERROR(N83*$P83,"") ->  | P83: =IF(B83<>"",$C$148,"") ->  | Q83: =IF(B83<>"",IF(Instructions!$I$85=1,$F$148,$H$148),"") ->  | R83: =IF(B83<>"",IF(Instructions!$I$85=1,$J$148,$K$148),"") ->  | S83: =IFERROR(O83*30*$E83,"") ->  | T83: =IFERROR(R83*30*$E83,"") ->  | V83: =IFERROR(VLOOKUP(B83,$B$16:$V$22,21,FALSE),"") -> 
E84: =IFERROR(IF(B84="All units",$D$23,(V84+1)*D84),0) -> 0 | K84: =IFERROR(VLOOKUP(J84,$B$73:$C$76,2,FALSE),"") ->  | M84: =IFERROR(VLOOKUP(L84,$B$73:$C$76,2,FALSE),"") ->  | O84: =IFERROR(N84*$P84,"") ->  | P84: =IF(B84<>"",$C$148,"") ->  | Q84: =IF(B84<>"",IF(Instructions!$I$85=1,$F$148,$H$148),"") ->  | R84: =IF(B84<>"",IF(Instructions!$I$85=1,$J$148,$K$148),"") ->  | S84: =IFERROR(O84*30*$E84,"") ->  | T84: =IFERROR(R84*30*$E84,"") ->  | V84: =IFERROR(VLOOKUP(B84,$B$16:$V$22,21,FALSE),"") -> 
E85: =IFERROR(IF(B85="All units",$D$23,(V85+1)*D85),0) -> 0 | K85: =IFERROR(VLOOKUP(J85,$B$73:$C$76,2,FALSE),"") ->  | M85: =IFERROR(VLOOKUP(L85,$B$73:$C$76,2,FALSE),"") ->  | O85: =IFERROR(N85*$P85,"") ->  | P85: =IF(B85<>"",$C$148,"") ->  | Q85: =IF(B85<>"",IF(Instructions!$I$85=1,$F$148,$H$148),"") ->  | R85: =IF(B85<>"",IF(Instructions!$I$85=1,$J$148,$K$148),"") ->  | S85: =IFERROR(O85*30*$E85,"") ->  | T85: =IFERROR(R85*30*$E85,"") ->  | V85: =IFERROR(VLOOKUP(B85,$B$16:$V$22,21,FALSE),"") -> 
A86: D | B86: Totals for toilets | D86: =SUM(D81:D85) -> 0 | E86: =SUM(E81:E85) -> 0 | S86: =SUM(S81:S85) -> 0 | T86: =SUM(T81:T85) -> 0
B89: Fixture Use for Clothes Washers
B90: Enter the flow rate—water factor (WF) or integrated water factor (IWF)—and a brief description for each type of fixture. If no clothes washer is installed in the project, enter 'Baseline' under 'Fixture ID' and '9.5' under 'Flow Rate.'
B91: Fixture ID | C91: Flow Rate (WF or IWF)
A92: =IF(B92>0,0,0) -> 0
A93: =IF(B93>0,0,0) -> 0
A94: =IF(B94>0,0,0) -> 0
B97: Unit Information | F97: Design | P97: Baseline | S97: Totals
B98: Unit Type | C98: Unit Description | D98: Number of Units | E98: Occupants | F98: Fixture 1 | H98: Fixture 2 | J98: Fixture 3 | L98: Fixture 4 | N98: Average Flow Rate (WF or IWF) | O98: =CONCATENATE("Calculated Water Usage ",IF(Instructions!$I$85=1," (gallons)"," (liters)")) -> Calculated Water Usage (gallons) | P98: =CONCATENATE("Estimated Fixture Usage (cycles ",IF(Instructions!$I$85=1,"at 3.5 cu ft)","at 0.1 cu m)")) -> Estimated Fixture Usage (cycles at 3.5 cu ft) | Q98: Flow Rate (WF or IWF) | R98: =CONCATENATE("Estimated Water Usage ",IF(Instructions!$I$85=1," (gallons)"," (liters)")) -> Estimated Water Usage (gallons) | S98: =CONCATENATE("Design Monthly Water Use ",IF(Instructions!$I$85=1," (gal/month)"," (l/month)")) -> Design Monthly Water Use (gal/month) | T98: =CONCATENATE("Baseline Monthly Water Use ",IF(Instructions!$I$85=1," (gal/month)"," (l/month)")) -> Baseline Monthly Water Use (gal/month) | V98: Number of Bedrooms
F99: Fixture 1 ID | G99: Fixture 1 Flow Rate (WF or IWF) | H99: Fixture 2 ID | I99: Fixture 2 Flow Rate (WF or IWF) | J99: Fixture 3 ID | K99: Fixture 3 Flow Rate (WF or IWF) | L99: Fixture 4 ID | M99: Fixture 4 Flow Rate (WF or IWF)
A100: =IF(B100>0,0,0) -> 0 | E100: =IFERROR(IF(B100="All units",$D$23,(V100+1)*D100),0) -> 0 | G100: =IFERROR(VLOOKUP(F100,$B$92:$C$95,2,FALSE),"") ->  | I100: =IFERROR(VLOOKUP(H100,$B$92:$C$95,2,FALSE),"") ->  | K100: =IFERROR(VLOOKUP(J100,$B$92:$C$95,2,FALSE),"") ->  | M100: =IFERROR(VLOOKUP(L100,$B$92:$C$95,2,FALSE),"") ->  | N100: =IFERROR(SUM(G100,I100,K100,M100)/COUNTA(F100,H100,J100,L100),"") ->  | O100: =IFERROR(IF(N100="","",IF(Instructions!$I$85=1,(P100*N100*3.5)*1.23,((P100*N100*3.5)*1.23)*3.78)),"") ->  | P100: =IF(B100<>"",$C$149,"") ->  | Q100: =IF(B100<>"",$F$149,"") ->  | R100: =IF(B100<>"",IF(Instructions!$I$85=1,$J$149,$K$149),"") ->  | S100: =IFERROR(O100*30*$E100,"") ->  | T100: =IFERROR(R100*30*$E100,"") ->  | V100: =IFERROR(VLOOKUP(B100,$B$16:$V$22,21,FALSE),"") -> 
A101: =IF(B101>0,0,0) -> 0 | E101: =IFERROR(IF(B101="All units",$D$23,(V101+1)*D101),0) -> 0 | G101: =IFERROR(VLOOKUP(F101,$B$92:$C$95,2,FALSE),"") ->  | K101: =IFERROR(VLOOKUP(J101,$B$92:$C$95,2,FALSE),"") ->  | M101: =IFERROR(VLOOKUP(L101,$B$92:$C$95,2,FALSE),"") ->  | N101: =IFERROR(SUM(G101,I101,K101,M101)/COUNTA(F101,H101,J101,L101),"") ->  | O101: =IFERROR(IF(N101="","",IF(Instructions!$I$85=1,(P101*N101*3.5)*1.23,((P101*N101*3.5)*1.23)*3.78)),"") ->  | P101: =IF(B101<>"",$C$149,"") ->  | Q101: =IF(B101<>"",$F$149,"") ->  | R101: =IF(B101<>"",IF(Instructions!$I$85=1,$J$149,$K$149),"") ->  | S101: =IFERROR(O101*30*$E101,"") ->  | T101: =IFERROR(R101*30*$E101,"") ->  | V101: =IFERROR(VLOOKUP(B101,$B$16:$V$22,21,FALSE),"") -> 
A102: =IF(B102>0,0,0) -> 0 | E102: =IFERROR(IF(B102="All units",$D$23,(V102+1)*D102),0) -> 0 | K102: =IFERROR(VLOOKUP(J102,$B$92:$C$95,2,FALSE),"") ->  | M102: =IFERROR(VLOOKUP(L102,$B$92:$C$95,2,FALSE),"") ->  | O102: =IFERROR(IF(N102="","",IF(Instructions!$I$85=1,(P102*N102*3.5)*1.23,((P102*N102*3.5)*1.23)*3.78)),"") ->  | P102: =IF(B102<>"",$C$149,"") ->  | Q102: =IF(B102<>"",$F$149,"") ->  | R102: =IF(B102<>"",IF(Instructions!$I$85=1,$J$149,$K$149),"") ->  | V102: =IFERROR(VLOOKUP(B102,$B$16:$V$22,21,FALSE),"") -> 
E103: =IFERROR(IF(B103="All units",$D$23,(V103+1)*D103),0) -> 0 | K103: =IFERROR(VLOOKUP(J103,$B$92:$C$95,2,FALSE),"") ->  | M103: =IFERROR(VLOOKUP(L103,$B$92:$C$95,2,FALSE),"") ->  | O103: =IFERROR(IF(N103="","",IF(Instructions!$I$85=1,(P103*N103*3.5)*1.23,((P103*N103*3.5)*1.23)*3.78)),"") ->  | P103: =IF(B103<>"",$C$149,"") ->  | Q103: =IF(B103<>"",$F$149,"") ->  | R103: =IF(B103<>"",IF(Instructions!$I$85=1,$J$149,$K$149),"") ->  | V103: =IFERROR(VLOOKUP(B103,$B$16:$V$22,21,FALSE),"") -> 
E104: =IFERROR(IF(B104="All units",$D$23,(V104+1)*D104),0) -> 0 | K104: =IFERROR(VLOOKUP(J104,$B$92:$C$95,2,FALSE),"") ->  | M104: =IFERROR(VLOOKUP(L104,$B$92:$C$95,2,FALSE),"") ->  | O104: =IFERROR(IF(N104="","",IF(Instructions!$I$85=1,(P104*N104*3.5)*1.23,((P104*N104*3.5)*1.23)*3.78)),"") ->  | P104: =IF(B104<>"",$C$149,"") ->  | Q104: =IF(B104<>"",$F$149,"") ->  | R104: =IF(B104<>"",IF(Instructions!$I$85=1,$J$149,$K$149),"") ->  | V104: =IFERROR(VLOOKUP(B104,$B$16:$V$22,21,FALSE),"") -> 
A105: E | B105: Totals for clothes washers | D105: =SUM(D100:D104) -> 0 | E105: =SUM(E100:E104) -> 0 | S105: =SUM(S100:S104) -> 0 | T105: =SUM(T100:T104) -> 0
B108: Fixture Use for Dishwashers
B109: =CONCATENATE("Enter the flow rate and a brief description for each type of fixture. If no dishwasher is installed in the project, enter 'Baseline' under 'Fixture ID', and '",IF(Instructions!$I$85=1,"'6.5' under 'Flow Rate'.","3 under 'Flow Rate'.")) -> Enter the flow rate and a brief description for each type of fixture. If no dishwasher is installed in the project, enter 'Baseline' under 'Fixture ID', and ''6.5' under 'Flow Rate'.
B110: Fixture ID | C110: =CONCATENATE("Flow Rate ",IF(Instructions!$I$85=1,"(gpc)","(lpc)")) -> Flow Rate (gpc)
A111: =IF(B111>0,0,0) -> 0
A112: =IF(B112>0,0,0) -> 0
A113: =IF(B113>0,0,0) -> 0
B116: Unit Information | F116: Design | P116: Baseline | S116: Totals
B117: Unit Type | C117: Unit Description | D117: Number of Units | E117: Occupants | F117: Fixture 1 | H117: Fixture 2 | J117: Fixture 3 | L117: Fixture 4 | N117: =CONCATENATE("Average Flow Rate ",IF(Instructions!$I$85=1,"(gpc)","(lpc)")) -> Average Flow Rate (gpc) | O117: =CONCATENATE("Calculated Water Usage ",IF(Instructions!$I$85=1," (gallons)"," (liters)")) -> Calculated Water Usage (gallons) | P117: Estimated Fixture Usage (cycles) | Q117: =CONCATENATE("Flow Rate ",IF(Instructions!$I$85=1,"(gpc)","(lpc)")) -> Flow Rate (gpc) | R117: =CONCATENATE("Estimated Water Usage ",IF(Instructions!$I$85=1," (gallons)"," (liters)")) -> Estimated Water Usage (gallons) | S117: =CONCATENATE("Design Monthly Water Use ",IF(Instructions!$I$85=1," (gal/month)"," (l/month)")) -> Design Monthly Water Use (gal/month) | T117: =CONCATENATE("Baseline Monthly Water Use ",IF(Instructions!$I$85=1," (gal/month)"," (l/month)")) -> Baseline Monthly Water Use (gal/month) | V117: Number of Bedrooms
F118: Fixture 1 ID | G118: =CONCATENATE("Fixture 1 Flow Rate ",IF(Instructions!$I$85=1,"(gpc)","(lpc)")) -> Fixture 1 Flow Rate (gpc) | H118: Fixture 2 ID | I118: =CONCATENATE("Fixture 2 Flow Rate ",IF(Instructions!$I$85=1,"(gpc)","(lpc)")) -> Fixture 2 Flow Rate (gpc) | J118: Fixture 3 ID | K118: =CONCATENATE("Fixture 3 Flow Rate ",IF(Instructions!$I$85=1,"(gpc)","(lpc)")) -> Fixture 3 Flow Rate (gpc) | L118: Fixture 4 ID | M118: =CONCATENATE("Fixture 4 Flow Rate ",IF(Instructions!$I$85=1,"(gpc)","(lpc)")) -> Fixture 4 Flow Rate (gpc)
A119: =IF(B119>0,0,0) -> 0 | E119: =IFERROR(IF(B119="All units",$D$23,(V119+1)*D119),0) -> 0 | G119: =IFERROR(VLOOKUP(F119,$B$111:$C$114,2,FALSE),"") ->  | I119: =IFERROR(VLOOKUP(H119,$B$111:$C$114,2,FALSE),"") ->  | K119: =IFERROR(VLOOKUP(J119,$B$111:$C$114,2,FALSE),"") ->  | M119: =IFERROR(VLOOKUP(L119,$B$111:$C$114,2,FALSE),"") ->  | N119: =IFERROR(SUM(G119,I119,K119,M119)/COUNTA(F119,H119,J119,L119),"") ->  | O119: =IFERROR(N119*$P119,"") ->  | P119: =IF(B119<>"",$C$150,"") ->  | Q119: =IF(B119<>"",IF(Instructions!$I$85=1,$F$150,$H$150),"") ->  | R119: =IF(B119<>"",IF(Instructions!$I$85=1,$J$150,$K$150),"") ->  | S119: =IFERROR(O119*30*$E119,"") ->  | T119: =IFERROR(R119*30*$E119,"") ->  | V119: =IFERROR(VLOOKUP(B119,$B$16:$V$22,21,FALSE),"") -> 
A120: =IF(B120>0,0,0) -> 0 | E120: =IFERROR(IF(B120="All units",$D$23,(V120+1)*D120),0) -> 0 | G120: =IFERROR(VLOOKUP(F120,$B$111:$C$114,2,FALSE),"") ->  | K120: =IFERROR(VLOOKUP(J120,$B$111:$C$114,2,FALSE),"") ->  | M120: =IFERROR(VLOOKUP(L120,$B$111:$C$114,2,FALSE),"") ->  | N120: =IFERROR(SUM(G120,I120,K120,M120)/COUNTA(F120,H120,J120,L120),"") ->  | O120: =IFERROR(N120*$P120,"") ->  | P120: =IF(B120<>"",$C$150,"") ->  | Q120: =IF(B120<>"",IF(Instructions!$I$85=1,$F$150,$H$150),"") ->  | R120: =IF(B120<>"",IF(Instructions!$I$85=1,$J$150,$K$150),"") ->  | S120: =IFERROR(O120*30*$E120,"") ->  | T120: =IFERROR(R120*30*$E120,"") ->  | V120: =IFERROR(VLOOKUP(B120,$B$16:$V$22,21,FALSE),"") -> 
A121: =IF(B121>0,0,0) -> 0 | E121: =IFERROR(IF(B121="All units",$D$23,(V121+1)*D121),0) -> 0 | K121: =IFERROR(VLOOKUP(J121,$B$111:$C$114,2,FALSE),"") ->  | M121: =IFERROR(VLOOKUP(L121,$B$111:$C$114,2,FALSE),"") ->  | O121: =IFERROR(N121*$P121,"") ->  | P121: =IF(B121<>"",$C$150,"") ->  | Q121: =IF(B121<>"",IF(Instructions!$I$85=1,$F$150,$H$150),"") ->  | R121: =IF(B121<>"",IF(Instructions!$I$85=1,$J$150,$K$150),"") ->  | V121: =IFERROR(VLOOKUP(B121,$B$16:$V$22,21,FALSE),"") -> 
E122: =IFERROR(IF(B122="All units",$D$23,(V122+1)*D122),0) -> 0 | K122: =IFERROR(VLOOKUP(J122,$B$111:$C$114,2,FALSE),"") ->  | M122: =IFERROR(VLOOKUP(L122,$B$111:$C$114,2,FALSE),"") ->  | O122: =IFERROR(N122*$P122,"") ->  | P122: =IF(B122<>"",$C$150,"") ->  | Q122: =IF(B122<>"",IF(Instructions!$I$85=1,$F$150,$H$150),"") ->  | R122: =IF(B122<>"",IF(Instructions!$I$85=1,$J$150,$K$150),"") ->  | V122: =IFERROR(VLOOKUP(B122,$B$16:$V$22,21,FALSE),"") -> 
E123: =IFERROR(IF(B123="All units",$D$23,(V123+1)*D123),0) -> 0 | K123: =IFERROR(VLOOKUP(J123,$B$111:$C$114,2,FALSE),"") ->  | M123: =IFERROR(VLOOKUP(L123,$B$111:$C$114,2,FALSE),"") ->  | O123: =IFERROR(N123*$P123,"") ->  | P123: =IF(B123<>"",$C$150,"") ->  | Q123: =IF(B123<>"",IF(Instructions!$I$85=1,$F$150,$H$150),"") ->  | R123: =IF(B123<>"",IF(Instructions!$I$85=1,$J$150,$K$150),"") ->  | V123: =IFERROR(VLOOKUP(B123,$B$16:$V$22,21,FALSE),"") -> 
A124: F | B124: Totals for dishwashers | D124: =SUM(D119:D123) -> 0 | E124: =SUM(E119:E123) -> 0 | S124: =SUM(S119:S123) -> 0 | T124: =SUM(T119:T123) -> 0
B127: Indoor Water Use Summary
B128: Fixture Type | G128: =CONCATENATE("Design Water Use ",IF(Instructions!$I$85=1," (gal/month)"," (l/month)")) -> Design Water Use (gal/month) | H128: =CONCATENATE("Baseline Water Use ",IF(Instructions!$I$85=1," (gal/month)"," (l/month)")) -> Baseline Water Use (gal/month) | I128: =CONCATENATE("Savings ",IF(Instructions!$I$85=1," (gal/month)"," (l/month)")) -> Savings (gal/month)
B129: Showers | G129: =S44 -> 0 | H129: =T44 -> 0 | I129: =IF(G129=0,0,H129-G129) -> 0
B130: Lavatories and kitchen faucets | G130: =S62 -> 0 | H130: =T62 -> 0 | I130: =IF(G130=0,0,H130-G130) -> 0
B131: Toilets | G131: =S86 -> 0 | H131: =T86 -> 0 | I131: =IF(G131=0,0,H131-G131) -> 0
B132: Clothes washers | G132: =S105 -> 0 | H132: =T105 -> 0 | I132: =IF(G132=0,0,H132-G132) -> 0
B133: Dishwashers | G133: =S124 -> 0 | H133: =T124 -> 0 | I133: =IF(G133=0,0,H133-G133) -> 0
B134: Totals | G134: =SUM(G129:G133) -> 0 | H134: =SUM(H129:H133) -> 0 | I134: =SUM(I129:I133) -> 0
B136: Results
G137: =CONCATENATE("Design Water Use ",IF(Instructions!$I$85=1," (gal/month)"," (l/month)")) -> Design Water Use (gal/month) | H137: =CONCATENATE("Baseline Water Use ",IF(Instructions!$I$85=1," (gal/month)"," (l/month)")) -> Baseline Water Use (gal/month) | I137: =CONCATENATE("Savings ",IF(Instructions!$I$85=1," (gal/month)"," (l/month)")) -> Savings (gal/month)
B138: Outdoor water use | G138: =MAX(0,I10-I11) -> 0 | H138: =MAX(0,I9) -> 0 | I138: =MAX(0,H138-G138) -> 0
B139: Indoor water use | G139: =MAX(0,G134) -> 0 | H139: =MAX(0,H134) -> 0 | I139: =MAX(0,I134) -> 0
B140: Totals | G140: =SUM(G138:G139) -> 0 | H140: =SUM(H138:H139) -> 0 | I140: =SUM(I138:I139) -> 0
B141: Total monthly water savings as a percentage of total water use (%) | I141: =IFERROR((H140-G140)/H140,0) -> 0
B143: Assumptions
B144: Fixture | C144: Estimated Fixture Usage | F144: Baseline Flush or Flow Rate | J144: Estimated Water Usage
F145: IP | H145: SI | J145: IP (gallons per person) | K145: SI (liters per person)
B146: Shower | C146: =8.2*0.75 -> 6.15 | D146: minutes | F146: 2.5 | G146: gpm | H146: 9.5 | I146: lpm | J146: =F146*C146 -> 15.375 | K146: =H146*C146 -> 58.425
B147: Lavatory or kitchen faucet | C147: 5 | D147: minutes | F147: 2.2 | G147: gpm | H147: 8.3 | I147: lpm | J147: =F147*C147 -> 11 | K147: =H147*C147 -> 41.5
B148: Toilet | C148: 5.05 | D148: flushes | F148: 1.6 | G148: gpf | H148: 6 | I148: lpf | J148: =F148*C148 -> 8.08 | K148: =H148*C148 -> 30.3
B149: Clothes washer | C149: 0.37 | D149: at 3.5 cu ft (0.1 cu m) | F149: 9.5 | G149: WF | H149: 9.5 | I149: WF | J149: =(C149*F149*3.5)*1.23 -> 15.132075 | K149: =((C149*F149*3.5)*1.23)*3.78 -> 57.1992435
B150: Dishwasher | C150: 0.1 | D150: cycles | F150: 6.5 | G150: gpc | H150: 24 | I150: lpc | J150: =F150*C150 -> 0.65 | K150: =H150*C150 -> 2.4

Sheet Sampling Reporting Form
B2: Sampling Reporting Form
B5: Sample Set | C5: Size of Sample Set (Number of Lots/Units) | D5: Lot/Unit Numbers within Sample Set | E5: Sampling Rate (%) | F5: Number of Units or Buildings Verified | G5: Lot/Unit Numbers Verified | H5: On-site Verification | K5: Failures | M5: Notes
H6: Pre-Slab Verification Date | I6: Pre-Drywall Verification Date | J6: Final Verification Date | K6: Lot/Unit Number of any Failures | L6: Remediation Activity for Failure
A7: =IF(B7=1,0,0) -> 0 | B7: 1
A8: =IF(B8=1,0,0) -> 0 | B8: 2
A9: 0 | B9: 3
A10: 0 | B10: 4
A11: 0 | B11: 5
A12: =IF(B12=1,0,0) -> 0 | B12: 1
A13: 0 | B13: 2
A14: 0 | B14: 3
A15: 0 | B15: 4
A16: 0 | B16: 5
A17: =IF(B17=1,0,0) -> 0
A20: A | B20: Total number of units selected for verification | F20: =SUM(F7:F19) -> 0
B21: Total number of units or buildings utilizing sampling | F21: =SUM(C7:C19) -> 0
B22: Overall sampling rate (%) | F22: =IFERROR(F20/F21,0) -> 0

Sheet MRc Construction Waste Mgmt (hidden)
A1: Bedrooms | B1: Conditioned Floor Area (SF) | C1: Waste (LBS)
A2: 0 | B2: 1000 | C2: 4200
A3: 1 | B3: 1000 | C3: 4200
A4: 2 | B4: 1600 | C4: 6720
A5: 3 | B5: 2200 | C5: 9240
A6: 4 | B6: 2800 | C6: 11760
A7: 5 | B7: 3400 | C7: 14280
A8: 6 | B8: 4000 | C8: 16800
A9: 7 | B9: 4600 | C9: 19320
A10: 8 | B10: 5200 | C10: 21840
A11: 9 | B11: 5800 | C11: 24360
A12: 10 | B12: 6400 | C12: 26880
A13: 11 | B13: 7000 | C13: 29400
A14: 12 | B14: 7600 | C14: 31920
A15: 13 | B15: 8200 | C15: 34440
A16: 14 | B16: 8800 | C16: 36960
A17: 15 | B17: 9400 | C17: 39480

Sheet Scorecard Data (hidden)
A1: Project ID # | B1: =Instructions!F56 -> 0
A2: Units | B2: =Instructions!F12 -> 0
A3: Rating System | B3: =Instructions!F15 -> LEED BD+C: Homes v4.1 - LEED v4
A4: Building type | B4: =IF(Type="Batch",Instructions!F73,Instructions!F63) -> 0
A5: Project name | B5: =Instructions!F57 -> 0
A6: Project address | B6: =Instructions!F58 -> 0
A7: City | B7: =Instructions!F59 -> 0
A8: State | B8: =Instructions!F60 -> 0
A9: Country | B9: =Instructions!F61 -> 0
A10: Zip code | B10: =Instructions!F62 -> 0
A11: Number of stories | B11: =Instructions!F64 -> 0
A12: Conditioned floor area | B12: =Instructions!F66 -> 0
A13: Gross floor area | B13: =Instructions!F68 -> 
A14: Number of bedrooms | B14: =Instructions!F65 -> 0
A15: Number of units | B15: ='Multifamily HSA'!P12 -> 0
A16: Gut-rehab | B16: =IF(Instructions!F25="Gut-rehab","Yes","No") -> No
A17: Sampling applied | B17: =IF('Sampling Reporting Form'!F22>0,"Yes","No") -> No
A18: Rating system | B18: Credit category | C18: P/C | D18: Credit name | E18: Credit ID | F18: Credit Attempted | G18: Pts Verified | H18: Total Pts Possible | I18: Threshold Name | J18: Short ID | K18: Attempted | L18: Option name | M18: Short ID | N18: Attempted | O18: Path name | P18: Short ID | Q18: Attempted
A19: LEED v4 BD+C: Homes | B19: IP | C19: C | D19: Integrative process | E19: IP102 | F19: =IF(IP!$J$7>0,"X","") ->  | G19: =IP!$J$7 -> 0 | H19: 2 | L19: Option 1 | M19: IP02O1 | N19: =IF(IP!$J$11>0,"X","") -> 
A20: LEED v4 BD+C: Homes | B20: IP | C20: C | D20: Integrative process | E20: IP102 | F20: =IF(IP!$J$7>0,"X","") ->  | G20: =IP!$J$7 -> 0 | H20: 2 | L20: Option 2 | M20: IP02O2 | N20: =IF(IP!$J$33>0,"X","") -> 
A21: LEED v4 BD+C: Homes | B21: IP | C21: C | D21: Integrative process | E21: IP102 | F21: =IF(IP!$J$7>0,"X","") ->  | G21: =IP!$J$7 -> 0 | H21: 2 | L21: Option 3 | M21: IP02O3 | N21: =IF(IP!$J$42>0,"X","") -> 
A22: LEED v4 BD+C: Homes | B22: LT | C22: P | D22: Floodplain avoidance | E22: LT101 | F22: x | G22: =LT!$J$7 -> N | H22: 0
A23: LEED v4 BD+C: Homes | B23: LT | C23: C | D23: LEED for Neighborhood Development | E23: LT102 | F23: =IF(LT!$J$19>0,"X","") ->  | G23: =LT!$J$19 -> 0 | H23: 15
A24: LEED v4 BD+C: Homes | B24: LT | C24: C | D24: Site selection | E24: LT103 | F24: =IF(LT!$J$32>0,"X","") ->  | G24: =LT!$J$32 -> 0 | H24: 8 | L24: Option 1 | M24: LT03O1 | N24: =IF(LT!$J$36>0,"X","") -> 
A25: LEED v4 BD+C: Homes | B25: LT | C25: C | D25: Site selection | E25: LT103 | F25: =IF(LT!$J$32>0,"X","") ->  | G25: =LT!$J$32 -> 0 | H25: 8 | L25: Option 1 | M25: LT03O1 | N25: =IF(LT!$J$36>0,"X","") ->  | O25: Path 1 | P25: LT03O1P1 | Q25: =IF(LT!$J$39>0,"X","") -> 
A26: LEED v4 BD+C: Homes | B26: LT | C26: C | D26: Site selection | E26: LT103 | F26: =IF(LT!$J$32>0,"X","") ->  | G26: =LT!$J$32 -> 0 | H26: 8 | L26: Option 1 | M26: LT03O1 | N26: =IF(LT!$J$36>0,"X","") ->  | O26: Path 2 | P26: LT03O1P2 | Q26: =IF(LT!$J$47>0,"X","") -> 
A27: LEED v4 BD+C: Homes | B27: LT | C27: C | D27: Site selection | E27: LT103 | F27: =IF(LT!$J$32>0,"X","") ->  | G27: =LT!$J$32 -> 0 | H27: 8 | L27: Option 2 | M27: LT03O2 | N27: =IF(LT!$J$62>0,"X","") -> 
A28: LEED v4 BD+C: Homes | B28: LT | C28: C | D28: Site selection | E28: LT103 | F28: =IF(LT!$J$32>0,"X","") ->  | G28: =LT!$J$32 -> 0 | H28: 8 | L28: Option 3 | M28: LT03O3 | N28: =IF(LT!$J$71>0,"X","") -> 
A29: LEED v4 BD+C: Homes | B29: LT | C29: C | D29: Site selection | E29: LT103 | F29: =IF(LT!$J$32>0,"X","") ->  | G29: =LT!$J$32 -> 0 | H29: 8 | L29: Option 4 | M29: LT03O4 | N29: =IF(LT!$J$79>0,"X","") -> 
A30: LEED v4 BD+C: Homes | B30: LT | C30: C | D30: Site selection | E30: LT103 | F30: =IF(LT!$J$32>0,"X","") ->  | G30: =LT!$J$32 -> 0 | H30: 8 | L30: Option 5 | M30: LT03O5 | N30: =IF(LT!$J$85>0,"X","") -> 
A31: LEED v4 BD+C: Homes | B31: LT | C31: C | D31: Compact development | E31: LT104 | F31: =IF(LT!$J$111>0,"X","") ->  | G31: =LT!$J$111 -> 0 | H31: 3 | I31: 1 point | J31: LT04T1 | K31: =IF($G$31=1,"X","") -> 
A32: LEED v4 BD+C: Homes | B32: LT | C32: C | D32: Compact development | E32: LT104 | F32: =IF(LT!$J$111>0,"X","") ->  | G32: =LT!$J$111 -> 0 | H32: 3 | I32: 2 points | J32: LT04T2 | K32: =IF($G$32=2,"X","") -> 
A33: LEED v4 BD+C: Homes | B33: LT | C33: C | D33: Compact development | E33: LT104 | F33: =IF(LT!$J$111>0,"X","") ->  | G33: =LT!$J$111 -> 0 | H33: 3 | I33: 3 points | J33: LT04T3 | K33: =IF($G$33=3,"X","") -> 
A34: LEED v4 BD+C: Homes | B34: LT | C34: C | D34: Community resources | E34: LT105 | F34: =IF(LT!$J$122>0,"X","") ->  | G34: =LT!$J$122 -> 0 | H34: 2 | I34: 1 point | J34: LT05T1 | K34: =IF($G$34=1,"X","") -> 
A35: LEED v4 BD+C: Homes | B35: LT | C35: C | D35: Community resources | E35: LT105 | F35: =IF(LT!$J$122>0,"X","") ->  | G35: =LT!$J$122 -> 0 | H35: 2 | I35: 1.5 points | J35: LT05T2 | K35: =IF($G$35=1.5,"X","") -> 
A36: LEED v4 BD+C: Homes | B36: LT | C36: C | D36: Community resources | E36: LT105 | F36: =IF(LT!$J$122>0,"X","") ->  | G36: =LT!$J$122 -> 0 | H36: 2 | I36: 2 points | J36: LT05T3 | K36: =IF($G$36=2,"X","") -> 
A37: LEED v4 BD+C: Homes | B37: LT | C37: C | D37: Access to transit | E37: LT106 | F37: =IF(LT!$J$130>0,"X","") ->  | G37: =LT!$J$130 -> 0 | H37: 2 | I37: 1 point | J37: LT06T1 | K37: =IF($G$37=1,"X","") -> 
A38: LEED v4 BD+C: Homes | B38: LT | C38: C | D38: Access to transit | E38: LT106 | F38: =IF(LT!$J$130>0,"X","") ->  | G38: =LT!$J$130 -> 0 | H38: 2 | I38: 1.5 points | J38: LT06T2 | K38: =IF($G$38=1.5,"X","") -> 
A39: LEED v4 BD+C: Homes | B39: LT | C39: C | D39: Access to transit | E39: LT106 | F39: =IF(LT!$J$130>0,"X","") ->  | G39: =LT!$J$130 -> 0 | H39: 2 | I39: 2 points | J39: LT06T3 | K39: =IF($G$39=2,"X","") -> 
A40: LEED v4 BD+C: Homes | B40: SS | C40: P | D40: Construction activity pollution prevention | E40: SS101 | F40: x | G40: =SS!$J$7 -> N | H40: 0
A41: LEED v4 BD+C: Homes | B41: SS | C41: P | D41: No invasive plants | E41: SS102 | F41: x | G41: =SS!#REF! ->  | H41: 0
A42: LEED v4 BD+C: Homes | B42: SS | C42: C | D42: Heat island reduction | E42: SS110 | F42: =IF(SS!$J$34>0,"X","") ->  | G42: =SS!$J$34 -> 0 | H42: 2 | L42: Option 1 | M42: SS10O1 | N42: =IF(SS!$J$38>0,"X","") -> 
A43: LEED v4 BD+C: Homes | B43: SS | C43: C | D43: Heat island reduction | E43: SS110 | F43: =IF(SS!$J$34>0,"X","") ->  | G43: =SS!$J$34 -> 0 | H43: 2 | L43: Option 1 | M43: SS10O1 | N43: =IF(SS!$J$38>0,"X","") ->  | O43: 1 point | P43: SS10O1P1 | Q43: =IF(SS!$J$38=1,"X","") -> 
A44: LEED v4 BD+C: Homes | B44: SS | C44: C | D44: Heat island reduction | E44: SS110 | F44: =IF(SS!$J$34>0,"X","") ->  | G44: =SS!$J$34 -> 0 | H44: 2 | L44: Option 1 | M44: SS10O1 | N44: =IF(SS!$J$38>0,"X","") ->  | O44: 2 points | P44: SS10O1P2 | Q44: =IF(SS!$J$38=2,"X","") -> 
A45: LEED v4 BD+C: Homes | B45: SS | C45: C | D45: Heat island reduction | E45: SS110 | F45: =IF(SS!$J$34>0,"X","") ->  | G45: =SS!$J$34 -> 0 | H45: 2 | L45: Option 2 | M45: SS10O2 | N45: =IF(SS!#REF!>0,"X","") -> 
A46: LEED v4 BD+C: Homes | B46: SS | C46: C | D46: Heat island reduction | E46: SS110 | F46: =IF(SS!$J$34>0,"X","") ->  | G46: =SS!$J$34 -> 0 | H46: 2 | L46: Option 2 | M46: SS10O2 | N46: =IF(SS!#REF!>0,"X","") ->  | O46: 1 point | P46: SS10O2P1 | Q46: =IF(SS!#REF!=1,"X","") -> 
A47: LEED v4 BD+C: Homes | B47: SS | C47: C | D47: Heat island reduction | E47: SS110 | F47: =IF(SS!$J$34>0,"X","") ->  | G47: =SS!$J$34 -> 0 | H47: 2 | L47: Option 2 | M47: SS10O2 | N47: =IF(SS!#REF!>0,"X","") ->  | O47: 2 points | P47: SS10O2P2 | Q47: =IF(SS!#REF!=2,"X","") -> 
A48: LEED v4 BD+C: Homes | B48: SS | C48: C | D48: Rainwater management | E48: SS108 | F48: =IF(SS!$J$66>0,"X","") ->  | G48: =SS!$J$66 -> 0 | H48: 3 | L48: Case 1 | M48: SS08O1 | N48: =IF(SS!$J$71>0,"X","") -> 
A49: LEED v4 BD+C: Homes | B49: SS | C49: C | D49: Rainwater management | E49: SS108 | F49: =IF(SS!$J$66>0,"X","") ->  | G49: =SS!$J$66 -> 0 | H49: 3 | L49: Case 1 | M49: SS08O1 | N49: =IF(SS!$J$71>0,"X","") ->  | O49: 1 point | P49: SS08O1P1 | Q49: =IF(SS!$J$71=1,"X","") -> 
A50: LEED v4 BD+C: Homes | B50: SS | C50: C | D50: Rainwater management | E50: SS108 | F50: =IF(SS!$J$66>0,"X","") ->  | G50: =SS!$J$66 -> 0 | H50: 3 | L50: Case 1 | M50: SS08O1 | N50: =IF(SS!$J$71>0,"X","") ->  | O50: 2 points | P50: SS08O1P2 | Q50: =IF(SS!$J$71=2,"X","") -> 
A51: LEED v4 BD+C: Homes | B51: SS | C51: C | D51: Rainwater management | E51: SS108 | F51: =IF(SS!$J$66>0,"X","") ->  | G51: =SS!$J$66 -> 0 | H51: 3 | L51: Case 1 | M51: SS08O1 | N51: =IF(SS!$J$71>0,"X","") ->  | O51: 3 points | P51: SS08O1P3 | Q51: =IF(SS!$J$71=3,"X","") -> 
A52: LEED v4 BD+C: Homes | B52: SS | C52: C | D52: Rainwater management | E52: SS108 | F52: =IF(SS!$J$66>0,"X","") ->  | G52: =SS!$J$66 -> 0 | H52: 3 | L52: Case 2 | M52: SS08O2 | N52: =IF(SS!$J$100>0,"X","") -> 
A53: LEED v4 BD+C: Homes | B53: SS | C53: C | D53: Rainwater management | E53: SS108 | F53: =IF(SS!$J$66>0,"X","") ->  | G53: =SS!$J$66 -> 0 | H53: 3 | L53: Case 2 | M53: SS08O2 | N53: =IF(SS!$J$100>0,"X","") ->  | O53: 2 points | P53: SS08O2P1 | Q53: =IF(SS!$J$100=2,"X","") -> 
A54: LEED v4 BD+C: Homes | B54: SS | C54: C | D54: Rainwater management | E54: SS108 | F54: =IF(SS!$J$66>0,"X","") ->  | G54: =SS!$J$66 -> 0 | H54: 3 | L54: Case 2 | M54: SS08O2 | N54: =IF(SS!$J$100>0,"X","") ->  | O54: 3 points | P54: SS08O2P2 | Q54: =IF(SS!$J$100=3,"X","") -> 
A55: LEED v4 BD+C: Homes | B55: SS | C55: C | D55: Nontoxic pest control | E55: SS112 | F55: =IF(SS!$J$122>0,"X","") ->  | G55: =SS!$J$122 -> 0 | H55: 2 | I55: 0.5 points | J55: SS12T1 | K55: =IF($G$55=0.5,"X","") -> 
A56: LEED v4 BD+C: Homes | B56: SS | C56: C | D56: Nontoxic pest control | E56: SS112 | F56: =IF(SS!$J$122>0,"X","") ->  | G56: =SS!$J$122 -> 0 | H56: 2 | I56: 1 point | J56: SS12T2 | K56: =IF($G$56=1,"X","") -> 
A57: LEED v4 BD+C: Homes | B57: SS | C57: C | D57: Nontoxic pest control | E57: SS112 | F57: =IF(SS!$J$122>0,"X","") ->  | G57: =SS!$J$122 -> 0 | H57: 2 | I57: 1.5 points | J57: SS12T3 | K57: =IF($G$57=1.5,"X","") -> 
A58: LEED v4 BD+C: Homes | B58: SS | C58: C | D58: Nontoxic pest control | E58: SS112 | F58: =IF(SS!$J$122>0,"X","") ->  | G58: =SS!$J$122 -> 0 | H58: 2 | I58: 2 points | J58: SS12T4 | K58: =IF($G$58=2,"X","") -> 
A59: LEED v4 BD+C: Homes | B59: WE | C59: P | D59: Water metering | E59: WE101 | F59: x | G59: =WE!$J$23 -> 0 | H59: 0 | L59: Case 1 | M59: WE01O1 | N59: =IF(WE!#REF!="Y","X","") -> 
A60: LEED v4 BD+C: Homes | B60: WE | C60: P | D60: Water metering | E60: WE101 | F60: x | G60: =WE!$J$23 -> 0 | H60: 0 | L60: Case 2 | M60: WE01O2 | N60: =IF(WE!#REF!="Y","X","") -> 
A61: LEED v4 BD+C: Homes | B61: WE | C61: C | D61: Total water use | E61: WE102 | F61: =IF(WE!$J$32>0,"X","") ->  | G61: =WE!$J$32 -> 0 | H61: 12 | I61: 1 point | J61: WE02T1 | K61: =IF($G$61=1,"X","") -> 
A62: LEED v4 BD+C: Homes | B62: WE | C62: C | D62: Total water use | E62: WE102 | F62: =IF(WE!$J$32>0,"X","") ->  | G62: =WE!$J$32 -> 0 | H62: 12 | I62: 2 points | J62: WE02T2 | K62: =IF($G$62=2,"X","") -> 
A63: LEED v4 BD+C: Homes | B63: WE | C63: C | D63: Total water use | E63: WE102 | F63: =IF(WE!$J$32>0,"X","") ->  | G63: =WE!$J$32 -> 0 | H63: 12 | I63: 3 points | J63: WE02T3 | K63: =IF($G$63=3,"X","") -> 
A64: LEED v4 BD+C: Homes | B64: WE | C64: C | D64: Total water use | E64: WE102 | F64: =IF(WE!$J$32>0,"X","") ->  | G64: =WE!$J$32 -> 0 | H64: 12 | I64: 4 points | J64: WE02T4 | K64: =IF($G$64=4,"X","") -> 
A65: LEED v4 BD+C: Homes | B65: WE | C65: C | D65: Total water use | E65: WE102 | F65: =IF(WE!$J$32>0,"X","") ->  | G65: =WE!$J$32 -> 0 | H65: 12 | I65: 5 points | J65: WE02T5 | K65: =IF($G$65=5,"X","") -> 
A66: LEED v4 BD+C: Homes | B66: WE | C66: C | D66: Total water use | E66: WE102 | F66: =IF(WE!$J$32>0,"X","") ->  | G66: =WE!$J$32 -> 0 | H66: 12 | I66: 6 points | J66: WE02T6 | K66: =IF($G$66=6,"X","") -> 
A67: LEED v4 BD+C: Homes | B67: WE | C67: C | D67: Total water use | E67: WE102 | F67: =IF(WE!$J$32>0,"X","") ->  | G67: =WE!$J$32 -> 0 | H67: 12 | I67: 7 points | J67: WE02T7 | K67: =IF($G$67=7,"X","") -> 
A68: LEED v4 BD+C: Homes | B68: WE | C68: C | D68: Total water use | E68: WE102 | F68: =IF(WE!$J$32>0,"X","") ->  | G68: =WE!$J$32 -> 0 | H68: 12 | I68: 8 points | J68: WE02T8 | K68: =IF($G$68=8,"X","") -> 
A69: LEED v4 BD+C: Homes | B69: WE | C69: C | D69: Total water use | E69: WE102 | F69: =IF(WE!$J$32>0,"X","") ->  | G69: =WE!$J$32 -> 0 | H69: 12 | I69: 9 points | J69: WE02T9 | K69: =IF($G$69=9,"X","") -> 
A70: LEED v4 BD+C: Homes | B70: WE | C70: C | D70: Total water use | E70: WE102 | F70: =IF(WE!$J$32>0,"X","") ->  | G70: =WE!$J$32 -> 0 | H70: 12 | I70: 10 points | J70: WE02T10 | K70: =IF($G$70=10,"X","") -> 
A71: LEED v4 BD+C: Homes | B71: WE | C71: C | D71: Total water use | E71: WE102 | F71: =IF(WE!$J$32>0,"X","") ->  | G71: =WE!$J$32 -> 0 | H71: 12 | I71: 11 points | J71: WE02T11 | K71: =IF($G$71=11,"X","") -> 
A72: LEED v4 BD+C: Homes | B72: WE | C72: C | D72: Total water use | E72: WE102 | F72: =IF(WE!$J$32>0,"X","") ->  | G72: =WE!$J$32 -> 0 | H72: 12 | I72: 12 points | J72: WE02T12 | K72: =IF($G$72=12,"X","") -> 
A73: LEED v4 BD+C: Homes | B73: WE | C73: C | D73: Indoor water use | E73: WE103 | F73: =IF(WE!$J$43>0,"X","") ->  | G73: =WE!$J$43 -> 0 | H73: 6 | L73: Case 1 | M73: WE03O1 | N73: =IF(WE!#REF!>0,"X","") -> 
A74: LEED v4 BD+C: Homes | B74: WE | C74: C | D74: Indoor water use | E74: WE103 | F74: =IF(WE!$J$43>0,"X","") ->  | G74: =WE!$J$43 -> 0 | H74: 6 | L74: Case 1 | M74: WE03O1 | N74: =IF(WE!#REF!>0,"X","") ->  | O74: 1 point | P74: WE03O1P1 | Q74: =IF(WE!#REF!=1,"X","") -> 
A75: LEED v4 BD+C: Homes | B75: WE | C75: C | D75: Indoor water use | E75: WE103 | F75: =IF(WE!$J$43>0,"X","") ->  | G75: =WE!$J$43 -> 0 | H75: 6 | L75: Case 1 | M75: WE03O1 | N75: =IF(WE!#REF!>0,"X","") ->  | O75: 2 points | P75: WE03O1P2 | Q75: =IF(WE!#REF!=2,"X","") -> 
A76: LEED v4 BD+C: Homes | B76: WE | C76: C | D76: Indoor water use | E76: WE103 | F76: =IF(WE!$J$43>0,"X","") ->  | G76: =WE!$J$43 -> 0 | H76: 6 | L76: Case 1 | M76: WE03O1 | N76: =IF(WE!#REF!>0,"X","") ->  | O76: 3 points | P76: WE03O1P3 | Q76: =IF(WE!#REF!=3,"X","") -> 
A77: LEED v4 BD+C: Homes | B77: WE | C77: C | D77: Indoor water use | E77: WE103 | F77: =IF(WE!$J$43>0,"X","") ->  | G77: =WE!$J$43 -> 0 | H77: 6 | L77: Case 1 | M77: WE03O1 | N77: =IF(WE!#REF!>0,"X","") ->  | O77: 4 points | P77: WE03O1P4 | Q77: =IF(WE!#REF!=4,"X","") -> 
A78: LEED v4 BD+C: Homes | B78: WE | C78: C | D78: Indoor water use | E78: WE103 | F78: =IF(WE!$J$43>0,"X","") ->  | G78: =WE!$J$43 -> 0 | H78: 6 | L78: Case 1 | M78: WE03O1 | N78: =IF(WE!#REF!>0,"X","") ->  | O78: 5 points | P78: WE03O1P5 | Q78: =IF(WE!#REF!=5,"X","") -> 
A79: LEED v4 BD+C: Homes | B79: WE | C79: C | D79: Indoor water use | E79: WE103 | F79: =IF(WE!$J$43>0,"X","") ->  | G79: =WE!$J$43 -> 0 | H79: 6 | L79: Case 1 | M79: WE03O1 | N79: =IF(WE!#REF!>0,"X","") ->  | O79: 6 points | P79: WE03O1P6 | Q79: =IF(WE!#REF!=6,"X","") -> 
A80: LEED v4 BD+C: Homes | B80: WE | C80: C | D80: Indoor water use | E80: WE103 | F80: =IF(WE!$J$43>0,"X","") ->  | G80: =WE!$J$43 -> 0 | H80: 6 | L80: Case 2 | M80: WE03O2 | N80: =IF(WE!#REF!>0,"X","") -> 
A81: LEED v4 BD+C: Homes | B81: WE | C81: C | D81: Indoor water use | E81: WE103 | F81: =IF(WE!$J$43>0,"X","") ->  | G81: =WE!$J$43 -> 0 | H81: 6 | L81: Case 2 | M81: WE03O2 | N81: =IF(WE!#REF!>0,"X","") ->  | O81: 1 point | P81: WE03O2P1 | Q81: =IF(WE!#REF!=1,"X","") -> 
A82: LEED v4 BD+C: Homes | B82: WE | C82: C | D82: Indoor water use | E82: WE103 | F82: =IF(WE!$J$43>0,"X","") ->  | G82: =WE!$J$43 -> 0 | H82: 6 | L82: Case 2 | M82: WE03O2 | N82: =IF(WE!#REF!>0,"X","") ->  | O82: 2 points | P82: WE03O2P2 | Q82: =IF(WE!#REF!=2,"X","") -> 
A83: LEED v4 BD+C: Homes | B83: WE | C83: C | D83: Indoor water use | E83: WE103 | F83: =IF(WE!$J$43>0,"X","") ->  | G83: =WE!$J$43 -> 0 | H83: 6 | L83: Case 2 | M83: WE03O2 | N83: =IF(WE!#REF!>0,"X","") ->  | O83: 3 points | P83: WE03O2P3 | Q83: =IF(WE!#REF!=3,"X","") -> 
A84: LEED v4 BD+C: Homes | B84: WE | C84: C | D84: Indoor water use | E84: WE103 | F84: =IF(WE!$J$43>0,"X","") ->  | G84: =WE!$J$43 -> 0 | H84: 6 | L84: Case 2 | M84: WE03O2 | N84: =IF(WE!#REF!>0,"X","") ->  | O84: 4 points | P84: WE03O2P4 | Q84: =IF(WE!#REF!=4,"X","") -> 
A85: LEED v4 BD+C: Homes | B85: WE | C85: C | D85: Indoor water use | E85: WE103 | F85: =IF(WE!$J$43>0,"X","") ->  | G85: =WE!$J$43 -> 0 | H85: 6 | L85: Case 2 | M85: WE03O2 | N85: =IF(WE!#REF!>0,"X","") ->  | O85: 5 points | P85: WE03O2P5 | Q85: =IF(WE!#REF!=5,"X","") -> 
A86: LEED v4 BD+C: Homes | B86: WE | C86: C | D86: Indoor water use | E86: WE103 | F86: =IF(WE!$J$43>0,"X","") ->  | G86: =WE!$J$43 -> 0 | H86: 6 | L86: Case 2 | M86: WE03O2 | N86: =IF(WE!#REF!>0,"X","") ->  | O86: 6 points | P86: WE03O2P6 | Q86: =IF(WE!#REF!=6,"X","") -> 
A87: LEED v4 BD+C: Homes | B87: WE | C87: C | D87: Outdoor water use | E87: WE104 | F87: =IF(WE!$J$65>0,"X","") ->  | G87: =WE!$J$65 -> 0 | H87: 4 | I87: 1 point | J87: WE04T1 | K87: =IF(G87=1,"X","") -> 
A88: LEED v4 BD+C: Homes | B88: WE | C88: C | D88: Outdoor water use | E88: WE104 | F88: =IF(WE!$J$65>0,"X","") ->  | G88: =WE!$J$65 -> 0 | H88: 4 | I88: 2 points | J88: WE04T2 | K88: =IF(G88=2,"X","") -> 
A89: LEED v4 BD+C: Homes | B89: WE | C89: C | D89: Outdoor water use | E89: WE104 | F89: =IF(WE!$J$65>0,"X","") ->  | G89: =WE!$J$65 -> 0 | H89: 4 | I89: 3 points | J89: WE04T3 | K89: =IF(G89=3,"X","") -> 
A90: LEED v4 BD+C: Homes | B90: WE | C90: C | D90: Outdoor water use | E90: WE104 | F90: =IF(WE!$J$65>0,"X","") ->  | G90: =WE!$J$65 -> 0 | H90: 4 | I90: 4 points | J90: WE04T4 | K90: =IF(G90=4,"X","") -> 
A91: LEED v4 BD+C: Homes | B91: EA | C91: P | D91: Minimum energy performance | E91: EA101 | F91: x | G91: =EA!$J$7 -> N | H91: 0
A92: LEED v4 BD+C: Homes | B92: EA | C92: P | D92: Energy metering | E92: EA102 | F92: x | G92: =EA!$J$30 -> 0 | H92: 0 | L92: Case 1 | M92: EA02O1 | N92: =IF(EA!#REF!="Y","X","") -> 
A93: LEED v4 BD+C: Homes | B93: EA | C93: P | D93: Energy metering | E93: EA102 | F93: x | G93: =EA!$J$30 -> 0 | H93: 0 | L93: Case 2 | M93: EA02O2 | N93: =IF(EA!#REF!="Y","X","") -> 
A94: LEED v4 BD+C: Homes | B94: EA | C94: P | D94: Education of homeowner, tenant, or building manager | E94: EA103 | F94: x | G94: =EA!$J$39 -> 0 | H94: 0
A95: LEED v4 BD+C: Homes | B95: EA | C95: C | D95: Annual energy use | E95: EA105 | F95: =IF(EA!$J$48>0,"X","") -> X | G95: =EA!$J$48 ->  | H95: 29 | L95: Option 1 | M95: EA05O1 | N95: =IF(EA!$J$52>0,"X","") -> X
A96: LEED v4 BD+C: Homes | B96: EA | C96: C | D96: Annual energy use | E96: EA105 | F96: =IF(EA!$J$48>0,"X","") -> X | G96: =EA!$J$48 ->  | H96: 29 | L96: Option 1 | M96: EA05O1 | N96: =IF(EA!$J$52>0,"X","") -> X | O96: 1 point | P96: EA05O1P1 | Q96: =IF(EA!$J$52=1,"X","") -> 
A97: LEED v4 BD+C: Homes | B97: EA | C97: C | D97: Annual energy use | E97: EA105 | F97: =IF(EA!$J$48>0,"X","") -> X | G97: =EA!$J$48 ->  | H97: 29 | L97: Option 1 | M97: EA05O1 | N97: =IF(EA!$J$52>0,"X","") -> X | O97: 2 points | P97: EA05O1P2 | Q97: =IF(EA!$J$52=2,"X","") -> 
A98: LEED v4 BD+C: Homes | B98: EA | C98: C | D98: Annual energy use | E98: EA105 | F98: =IF(EA!$J$48>0,"X","") -> X | G98: =EA!$J$48 ->  | H98: 29 | L98: Option 1 | M98: EA05O1 | N98: =IF(EA!$J$52>0,"X","") -> X | O98: 3 points | P98: EA05O1P3 | Q98: =IF(EA!$J$52=3,"X","") -> 
A99: LEED v4 BD+C: Homes | B99: EA | C99: C | D99: Annual energy use | E99: EA105 | F99: =IF(EA!$J$48>0,"X","") -> X | G99: =EA!$J$48 ->  | H99: 29 | L99: Option 1 | M99: EA05O1 | N99: =IF(EA!$J$52>0,"X","") -> X | O99: 4 points | P99: EA05O1P4 | Q99: =IF(EA!$J$52=4,"X","") -> 
A100: LEED v4 BD+C: Homes | B100: EA | C100: C | D100: Annual energy use | E100: EA105 | F100: =IF(EA!$J$48>0,"X","") -> X | G100: =EA!$J$48 ->  | H100: 29 | L100: Option 1 | M100: EA05O1 | N100: =IF(EA!$J$52>0,"X","") -> X | O100: 5 points | P100: EA05O1P5 | Q100: =IF(EA!$J$52=5,"X","") -> 
A101: LEED v4 BD+C: Homes | B101: EA | C101: C | D101: Annual energy use | E101: EA105 | F101: =IF(EA!$J$48>0,"X","") -> X | G101: =EA!$J$48 ->  | H101: 29 | L101: Option 1 | M101: EA05O1 | N101: =IF(EA!$J$52>0,"X","") -> X | O101: 6 points | P101: EA05O1P6 | Q101: =IF(EA!$J$52=6,"X","") -> 
A102: LEED v4 BD+C: Homes | B102: EA | C102: C | D102: Annual energy use | E102: EA105 | F102: =IF(EA!$J$48>0,"X","") -> X | G102: =EA!$J$48 ->  | H102: 29 | L102: Option 1 | M102: EA05O1 | N102: =IF(EA!$J$52>0,"X","") -> X | O102: 7 points | P102: EA05O1P7 | Q102: =IF(EA!$J$52=7,"X","") -> 
A103: LEED v4 BD+C: Homes | B103: EA | C103: C | D103: Annual energy use | E103: EA105 | F103: =IF(EA!$J$48>0,"X","") -> X | G103: =EA!$J$48 ->  | H103: 29 | L103: Option 1 | M103: EA05O1 | N103: =IF(EA!$J$52>0,"X","") -> X | O103: 8 points | P103: EA05O1P8 | Q103: =IF(EA!$J$52=8,"X","") -> 
A104: LEED v4 BD+C: Homes | B104: EA | C104: C | D104: Annual energy use | E104: EA105 | F104: =IF(EA!$J$48>0,"X","") -> X | G104: =EA!$J$48 ->  | H104: 29 | L104: Option 1 | M104: EA05O1 | N104: =IF(EA!$J$52>0,"X","") -> X | O104: 9 points | P104: EA05O1P9 | Q104: =IF(EA!$J$52=9,"X","") -> 
A105: LEED v4 BD+C: Homes | B105: EA | C105: C | D105: Annual energy use | E105: EA105 | F105: =IF(EA!$J$48>0,"X","") -> X | G105: =EA!$J$48 ->  | H105: 29 | L105: Option 1 | M105: EA05O1 | N105: =IF(EA!$J$52>0,"X","") -> X | O105: 10 points | P105: EA05O1P10 | Q105: =IF(EA!$J$52=10,"X","") -> 
A106: LEED v4 BD+C: Homes | B106: EA | C106: C | D106: Annual energy use | E106: EA105 | F106: =IF(EA!$J$48>0,"X","") -> X | G106: =EA!$J$48 ->  | H106: 29 | L106: Option 1 | M106: EA05O1 | N106: =IF(EA!$J$52>0,"X","") -> X | O106: 11 points | P106: EA05O1P11 | Q106: =IF(EA!$J$52=11,"X","") -> 
A107: LEED v4 BD+C: Homes | B107: EA | C107: C | D107: Annual energy use | E107: EA105 | F107: =IF(EA!$J$48>0,"X","") -> X | G107: =EA!$J$48 ->  | H107: 29 | L107: Option 1 | M107: EA05O1 | N107: =IF(EA!$J$52>0,"X","") -> X | O107: 12 points | P107: EA05O1P12 | Q107: =IF(EA!$J$52=12,"X","") -> 
A108: LEED v4 BD+C: Homes | B108: EA | C108: C | D108: Annual energy use | E108: EA105 | F108: =IF(EA!$J$48>0,"X","") -> X | G108: =EA!$J$48 ->  | H108: 29 | L108: Option 1 | M108: EA05O1 | N108: =IF(EA!$J$52>0,"X","") -> X | O108: 13 points | P108: EA05O1P13 | Q108: =IF(EA!$J$52=13,"X","") -> 
A109: LEED v4 BD+C: Homes | B109: EA | C109: C | D109: Annual energy use | E109: EA105 | F109: =IF(EA!$J$48>0,"X","") -> X | G109: =EA!$J$48 ->  | H109: 29 | L109: Option 1 | M109: EA05O1 | N109: =IF(EA!$J$52>0,"X","") -> X | O109: 14 points | P109: EA05O1P14 | Q109: =IF(EA!$J$52=14,"X","") -> 
A110: LEED v4 BD+C: Homes | B110: EA | C110: C | D110: Annual energy use | E110: EA105 | F110: =IF(EA!$J$48>0,"X","") -> X | G110: =EA!$J$48 ->  | H110: 29 | L110: Option 1 | M110: EA05O1 | N110: =IF(EA!$J$52>0,"X","") -> X | O110: 15 points | P110: EA05O1P15 | Q110: =IF(EA!$J$52=15,"X","") -> 
A111: LEED v4 BD+C: Homes | B111: EA | C111: C | D111: Annual energy use | E111: EA105 | F111: =IF(EA!$J$48>0,"X","") -> X | G111: =EA!$J$48 ->  | H111: 29 | L111: Option 1 | M111: EA05O1 | N111: =IF(EA!$J$52>0,"X","") -> X | O111: 16 points | P111: EA05O1P16 | Q111: =IF(EA!$J$52=16,"X","") -> 
A112: LEED v4 BD+C: Homes | B112: EA | C112: C | D112: Annual energy use | E112: EA105 | F112: =IF(EA!$J$48>0,"X","") -> X | G112: =EA!$J$48 ->  | H112: 29 | L112: Option 1 | M112: EA05O1 | N112: =IF(EA!$J$52>0,"X","") -> X | O112: 17 points | P112: EA05O1P17 | Q112: =IF(EA!$J$52=17,"X","") -> 
A113: LEED v4 BD+C: Homes | B113: EA | C113: C | D113: Annual energy use | E113: EA105 | F113: =IF(EA!$J$48>0,"X","") -> X | G113: =EA!$J$48 ->  | H113: 29 | L113: Option 1 | M113: EA05O1 | N113: =IF(EA!$J$52>0,"X","") -> X | O113: 18 points | P113: EA05O1P18 | Q113: =IF(EA!$J$52=18,"X","") -> 
A114: LEED v4 BD+C: Homes | B114: EA | C114: C | D114: Annual energy use | E114: EA105 | F114: =IF(EA!$J$48>0,"X","") -> X | G114: =EA!$J$48 ->  | H114: 29 | L114: Option 1 | M114: EA05O1 | N114: =IF(EA!$J$52>0,"X","") -> X | O114: 19 points | P114: EA05O1P19 | Q114: =IF(EA!$J$52=19,"X","") -> 
A115: LEED v4 BD+C: Homes | B115: EA | C115: C | D115: Annual energy use | E115: EA105 | F115: =IF(EA!$J$48>0,"X","") -> X | G115: =EA!$J$48 ->  | H115: 29 | L115: Option 1 | M115: EA05O1 | N115: =IF(EA!$J$52>0,"X","") -> X | O115: 20 points | P115: EA05O1P20 | Q115: =IF(EA!$J$52=20,"X","") -> 
A116: LEED v4 BD+C: Homes | B116: EA | C116: C | D116: Annual energy use | E116: EA105 | F116: =IF(EA!$J$48>0,"X","") -> X | G116: =EA!$J$48 ->  | H116: 29 | L116: Option 1 | M116: EA05O1 | N116: =IF(EA!$J$52>0,"X","") -> X | O116: 21 points | P116: EA05O1P21 | Q116: =IF(EA!$J$52=21,"X","") -> 
A117: LEED v4 BD+C: Homes | B117: EA | C117: C | D117: Annual energy use | E117: EA105 | F117: =IF(EA!$J$48>0,"X","") -> X | G117: =EA!$J$48 ->  | H117: 29 | L117: Option 1 | M117: EA05O1 | N117: =IF(EA!$J$52>0,"X","") -> X | O117: 22 points | P117: EA05O1P22 | Q117: =IF(EA!$J$52=22,"X","") -> 
A118: LEED v4 BD+C: Homes | B118: EA | C118: C | D118: Annual energy use | E118: EA105 | F118: =IF(EA!$J$48>0,"X","") -> X | G118: =EA!$J$48 ->  | H118: 29 | L118: Option 1 | M118: EA05O1 | N118: =IF(EA!$J$52>0,"X","") -> X | O118: 23 points | P118: EA05O1P23 | Q118: =IF(EA!$J$52=23,"X","") -> 
A119: LEED v4 BD+C: Homes | B119: EA | C119: C | D119: Annual energy use | E119: EA105 | F119: =IF(EA!$J$48>0,"X","") -> X | G119: =EA!$J$48 ->  | H119: 29 | L119: Option 1 | M119: EA05O1 | N119: =IF(EA!$J$52>0,"X","") -> X | O119: 24 points | P119: EA05O1P24 | Q119: =IF(EA!$J$52=24,"X","") -> 
A120: LEED v4 BD+C: Homes | B120: EA | C120: C | D120: Annual energy use | E120: EA105 | F120: =IF(EA!$J$48>0,"X","") -> X | G120: =EA!$J$48 ->  | H120: 29 | L120: Option 1 | M120: EA05O1 | N120: =IF(EA!$J$52>0,"X","") -> X | O120: 25 points | P120: EA05O1P25 | Q120: =IF(EA!$J$52=25,"X","") -> 
A121: LEED v4 BD+C: Homes | B121: EA | C121: C | D121: Annual energy use | E121: EA105 | F121: =IF(EA!$J$48>0,"X","") -> X | G121: =EA!$J$48 ->  | H121: 29 | L121: Option 1 | M121: EA05O1 | N121: =IF(EA!$J$52>0,"X","") -> X | O121: 26 points | P121: EA05O1P26 | Q121: =IF(EA!$J$52=26,"X","") -> 
A122: LEED v4 BD+C: Homes | B122: EA | C122: C | D122: Annual energy use | E122: EA105 | F122: =IF(EA!$J$48>0,"X","") -> X | G122: =EA!$J$48 ->  | H122: 29 | L122: Option 1 | M122: EA05O1 | N122: =IF(EA!$J$52>0,"X","") -> X | O122: 27 points | P122: EA05O1P27 | Q122: =IF(EA!$J$52=27,"X","") -> 
A123: LEED v4 BD+C: Homes | B123: EA | C123: C | D123: Annual energy use | E123: EA105 | F123: =IF(EA!$J$48>0,"X","") -> X | G123: =EA!$J$48 ->  | H123: 29 | L123: Option 1 | M123: EA05O1 | N123: =IF(EA!$J$52>0,"X","") -> X | O123: 28 points | P123: EA05O1P28 | Q123: =IF(EA!$J$52=28,"X","") -> 
A124: LEED v4 BD+C: Homes | B124: EA | C124: C | D124: Annual energy use | E124: EA105 | F124: =IF(EA!$J$48>0,"X","") -> X | G124: =EA!$J$48 ->  | H124: 29 | L124: Option 1 | M124: EA05O1 | N124: =IF(EA!$J$52>0,"X","") -> X | O124: 29 points | P124: EA05O1P29 | Q124: =IF(EA!$J$52=29,"X","") -> 
A125: LEED v4 BD+C: Homes | B125: EA | C125: C | D125: Annual energy use | E125: EA105 | F125: =IF(EA!$J$48>0,"X","") -> X | G125: =EA!$J$48 ->  | H125: 29 | L125: Option 2 | M125: EA05O2 | N125: =IF(EA!$J$61>0,"X","") -> X
A126: LEED v4 BD+C: Homes | B126: EA | C126: C | D126: Annual energy use | E126: EA105 | F126: =IF(EA!$J$48>0,"X","") -> X | G126: =EA!$J$48 ->  | H126: 29 | L126: Option 2 | M126: EA05O2 | N126: =IF(EA!$J$61>0,"X","") -> X | O126: 0.5 points | P126: EA05O2P1 | Q126: =IF(EA!$J$61=0.5,"X","") -> 
A127: LEED v4 BD+C: Homes | B127: EA | C127: C | D127: Annual energy use | E127: EA105 | F127: =IF(EA!$J$48>0,"X","") -> X | G127: =EA!$J$48 ->  | H127: 29 | L127: Option 2 | M127: EA05O2 | N127: =IF(EA!$J$61>0,"X","") -> X | O127: 1 point | P127: EA05O2P2 | Q127: =IF(EA!$J$61=1,"X","") -> 
A128: LEED v4 BD+C: Homes | B128: EA | C128: C | D128: Annual energy use | E128: EA105 | F128: =IF(EA!$J$48>0,"X","") -> X | G128: =EA!$J$48 ->  | H128: 29 | L128: Option 2 | M128: EA05O2 | N128: =IF(EA!$J$61>0,"X","") -> X | O128: 1.5 points | P128: EA05O2P3 | Q128: =IF(EA!$J$61=1.5,"X","") -> 
A129: LEED v4 BD+C: Homes | B129: EA | C129: C | D129: Annual energy use | E129: EA105 | F129: =IF(EA!$J$48>0,"X","") -> X | G129: =EA!$J$48 ->  | H129: 29 | L129: Option 2 | M129: EA05O2 | N129: =IF(EA!$J$61>0,"X","") -> X | O129: 2 points | P129: EA05O2P4 | Q129: =IF(EA!$J$61=2,"X","") -> 
A130: LEED v4 BD+C: Homes | B130: EA | C130: C | D130: Annual energy use | E130: EA105 | F130: =IF(EA!$J$48>0,"X","") -> X | G130: =EA!$J$48 ->  | H130: 29 | L130: Option 2 | M130: EA05O2 | N130: =IF(EA!$J$61>0,"X","") -> X | O130: 2.5 points | P130: EA05O2P5 | Q130: =IF(EA!$J$61=2.5,"X","") -> 
A131: LEED v4 BD+C: Homes | B131: EA | C131: C | D131: Annual energy use | E131: EA105 | F131: =IF(EA!$J$48>0,"X","") -> X | G131: =EA!$J$48 ->  | H131: 29 | L131: Option 2 | M131: EA05O2 | N131: =IF(EA!$J$61>0,"X","") -> X | O131: 3 points | P131: EA05O2P6 | Q131: =IF(EA!$J$61=3,"X","") -> 
A132: LEED v4 BD+C: Homes | B132: EA | C132: C | D132: Annual energy use | E132: EA105 | F132: =IF(EA!$J$48>0,"X","") -> X | G132: =EA!$J$48 ->  | H132: 29 | L132: Option 2 | M132: EA05O2 | N132: =IF(EA!$J$61>0,"X","") -> X | O132: 3.5 points | P132: EA05O2P7 | Q132: =IF(EA!$J$61=3.5,"X","") -> 
A133: LEED v4 BD+C: Homes | B133: EA | C133: C | D133: Annual energy use | E133: EA105 | F133: =IF(EA!$J$48>0,"X","") -> X | G133: =EA!$J$48 ->  | H133: 29 | L133: Option 2 | M133: EA05O2 | N133: =IF(EA!$J$61>0,"X","") -> X | O133: 4 points | P133: EA05O2P8 | Q133: =IF(EA!$J$61=4,"X","") -> 
A134: LEED v4 BD+C: Homes | B134: EA | C134: C | D134: Annual energy use | E134: EA105 | F134: =IF(EA!$J$48>0,"X","") -> X | G134: =EA!$J$48 ->  | H134: 29 | L134: Option 2 | M134: EA05O2 | N134: =IF(EA!$J$61>0,"X","") -> X | O134: 4.5 points | P134: EA05O2P9 | Q134: =IF(EA!$J$61=4.5,"X","") -> 
A135: LEED v4 BD+C: Homes | B135: EA | C135: C | D135: Annual energy use | E135: EA105 | F135: =IF(EA!$J$48>0,"X","") -> X | G135: =EA!$J$48 ->  | H135: 29 | L135: Option 2 | M135: EA05O2 | N135: =IF(EA!$J$61>0,"X","") -> X | O135: 5 points | P135: EA05O2P10 | Q135: =IF(EA!$J$61=5,"X","") -> 
A136: LEED v4 BD+C: Homes | B136: EA | C136: C | D136: Annual energy use | E136: EA105 | F136: =IF(EA!$J$48>0,"X","") -> X | G136: =EA!$J$48 ->  | H136: 29 | L136: Option 2 | M136: EA05O2 | N136: =IF(EA!$J$61>0,"X","") -> X | O136: 5.5 points | P136: EA05O2P11 | Q136: =IF(EA!$J$61=5.5,"X","") -> 
A137: LEED v4 BD+C: Homes | B137: EA | C137: C | D137: Annual energy use | E137: EA105 | F137: =IF(EA!$J$48>0,"X","") -> X | G137: =EA!$J$48 ->  | H137: 29 | L137: Option 2 | M137: EA05O2 | N137: =IF(EA!$J$61>0,"X","") -> X | O137: 6 points | P137: EA05O2P12 | Q137: =IF(EA!$J$61=6,"X","") -> 
A138: LEED v4 BD+C: Homes | B138: EA | C138: C | D138: Annual energy use | E138: EA105 | F138: =IF(EA!$J$48>0,"X","") -> X | G138: =EA!$J$48 ->  | H138: 29 | L138: Option 2 | M138: EA05O2 | N138: =IF(EA!$J$61>0,"X","") -> X | O138: 6.5 points | P138: EA05O2P13 | Q138: =IF(EA!$J$61=6.5,"X","") -> 
A139: LEED v4 BD+C: Homes | B139: EA | C139: C | D139: Annual energy use | E139: EA105 | F139: =IF(EA!$J$48>0,"X","") -> X | G139: =EA!$J$48 ->  | H139: 29 | L139: Option 2 | M139: EA05O2 | N139: =IF(EA!$J$61>0,"X","") -> X | O139: 7 points | P139: EA05O2P14 | Q139: =IF(EA!$J$61=7,"X","") -> 
A140: LEED v4 BD+C: Homes | B140: EA | C140: C | D140: Annual energy use | E140: EA105 | F140: =IF(EA!$J$48>0,"X","") -> X | G140: =EA!$J$48 ->  | H140: 29 | L140: Option 2 | M140: EA05O2 | N140: =IF(EA!$J$61>0,"X","") -> X | O140: 7.5 points | P140: EA05O2P15 | Q140: =IF(EA!$J$61=7.5,"X","") -> 
A141: LEED v4 BD+C: Homes | B141: EA | C141: C | D141: Annual energy use | E141: EA105 | F141: =IF(EA!$J$48>0,"X","") -> X | G141: =EA!$J$48 ->  | H141: 29 | L141: Option 2 | M141: EA05O2 | N141: =IF(EA!$J$61>0,"X","") -> X | O141: 8 points | P141: EA05O2P16 | Q141: =IF(EA!$J$61=8,"X","") -> 
A142: LEED v4 BD+C: Homes | B142: EA | C142: C | D142: Annual energy use | E142: EA105 | F142: =IF(EA!$J$48>0,"X","") -> X | G142: =EA!$J$48 ->  | H142: 29 | L142: Option 2 | M142: EA05O2 | N142: =IF(EA!$J$61>0,"X","") -> X | O142: 8.5 points | P142: EA05O2P17 | Q142: =IF(EA!$J$61=8.5,"X","") -> 
A143: LEED v4 BD+C: Homes | B143: EA | C143: C | D143: Annual energy use | E143: EA105 | F143: =IF(EA!$J$48>0,"X","") -> X | G143: =EA!$J$48 ->  | H143: 29 | L143: Option 2 | M143: EA05O2 | N143: =IF(EA!$J$61>0,"X","") -> X | O143: 9 points | P143: EA05O2P18 | Q143: =IF(EA!$J$61=9,"X","") -> 
A144: LEED v4 BD+C: Homes | B144: EA | C144: C | D144: Annual energy use | E144: EA105 | F144: =IF(EA!$J$48>0,"X","") -> X | G144: =EA!$J$48 ->  | H144: 29 | L144: Option 2 | M144: EA05O2 | N144: =IF(EA!$J$61>0,"X","") -> X | O144: 9.5 points | P144: EA05O2P19 | Q144: =IF(EA!$J$61=9.5,"X","") -> 
A145: LEED v4 BD+C: Homes | B145: EA | C145: C | D145: Annual energy use | E145: EA105 | F145: =IF(EA!$J$48>0,"X","") -> X | G145: =EA!$J$48 ->  | H145: 29 | L145: Option 2 | M145: EA05O2 | N145: =IF(EA!$J$61>0,"X","") -> X | O145: 10 points | P145: EA05O2P20 | Q145: =IF(EA!$J$61=10,"X","") -> 
A146: LEED v4 BD+C: Homes | B146: EA | C146: C | D146: Annual energy use | E146: EA105 | F146: =IF(EA!$J$48>0,"X","") -> X | G146: =EA!$J$48 ->  | H146: 29 | L146: Option 2 | M146: EA05O2 | N146: =IF(EA!$J$61>0,"X","") -> X | O146: 10.5 points | P146: EA05O2P21 | Q146: =IF(EA!$J$61=10.5,"X","") -> 
A147: LEED v4 BD+C: Homes | B147: EA | C147: C | D147: Annual energy use | E147: EA105 | F147: =IF(EA!$J$48>0,"X","") -> X | G147: =EA!$J$48 ->  | H147: 29 | L147: Option 2 | M147: EA05O2 | N147: =IF(EA!$J$61>0,"X","") -> X | O147: 11 points | P147: EA05O2P22 | Q147: =IF(EA!$J$61=11,"X","") -> 
A148: LEED v4 BD+C: Homes | B148: EA | C148: C | D148: Annual energy use | E148: EA105 | F148: =IF(EA!$J$48>0,"X","") -> X | G148: =EA!$J$48 ->  | H148: 29 | L148: Option 2 | M148: EA05O2 | N148: =IF(EA!$J$61>0,"X","") -> X | O148: 11.5 points | P148: EA05O2P23 | Q148: =IF(EA!$J$61=11.5,"X","") -> 
A149: LEED v4 BD+C: Homes | B149: EA | C149: C | D149: Annual energy use | E149: EA105 | F149: =IF(EA!$J$48>0,"X","") -> X | G149: =EA!$J$48 ->  | H149: 29 | L149: Option 2 | M149: EA05O2 | N149: =IF(EA!$J$61>0,"X","") -> X | O149: 12 points | P149: EA05O2P24 | Q149: =IF(EA!$J$61=12,"X","") -> 
A150: LEED v4 BD+C: Homes | B150: EA | C150: C | D150: Annual energy use | E150: EA105 | F150: =IF(EA!$J$48>0,"X","") -> X | G150: =EA!$J$48 ->  | H150: 29 | L150: Option 2 | M150: EA05O2 | N150: =IF(EA!$J$61>0,"X","") -> X | O150: 12.5 points | P150: EA05O2P25 | Q150: =IF(EA!$J$61=12.5,"X","") -> 
A151: LEED v4 BD+C: Homes | B151: EA | C151: C | D151: Annual energy use | E151: EA105 | F151: =IF(EA!$J$48>0,"X","") -> X | G151: =EA!$J$48 ->  | H151: 29 | L151: Option 2 | M151: EA05O2 | N151: =IF(EA!$J$61>0,"X","") -> X | O151: 13 points | P151: EA05O2P26 | Q151: =IF(EA!$J$61=13,"X","") -> 
A152: LEED v4 BD+C: Homes | B152: EA | C152: C | D152: Annual energy use | E152: EA105 | F152: =IF(EA!$J$48>0,"X","") -> X | G152: =EA!$J$48 ->  | H152: 29 | L152: Option 2 | M152: EA05O2 | N152: =IF(EA!$J$61>0,"X","") -> X | O152: 13.5 points | P152: EA05O2P27 | Q152: =IF(EA!$J$61=13.5,"X","") -> 
A153: LEED v4 BD+C: Homes | B153: EA | C153: C | D153: Annual energy use | E153: EA105 | F153: =IF(EA!$J$48>0,"X","") -> X | G153: =EA!$J$48 ->  | H153: 29 | L153: Option 2 | M153: EA05O2 | N153: =IF(EA!$J$61>0,"X","") -> X | O153: 14 points | P153: EA05O2P28 | Q153: =IF(EA!$J$61=14,"X","") -> 
A154: LEED v4 BD+C: Homes | B154: EA | C154: C | D154: Annual energy use | E154: EA105 | F154: =IF(EA!$J$48>0,"X","") -> X | G154: =EA!$J$48 ->  | H154: 29 | L154: Option 2 | M154: EA05O2 | N154: =IF(EA!$J$61>0,"X","") -> X | O154: 14.5 points | P154: EA05O2P29 | Q154: =IF(EA!$J$61=14.5,"X","") -> 
A155: LEED v4 BD+C: Homes | B155: EA | C155: C | D155: Annual energy use | E155: EA105 | F155: =IF(EA!$J$48>0,"X","") -> X | G155: =EA!$J$48 ->  | H155: 29 | L155: Option 2 | M155: EA05O2 | N155: =IF(EA!$J$61>0,"X","") -> X | O155: 15 points | P155: EA05O2P30 | Q155: =IF(EA!$J$61=15,"X","") -> 
A156: LEED v4 BD+C: Homes | B156: EA | C156: C | D156: Annual energy use | E156: EA105 | F156: =IF(EA!$J$48>0,"X","") -> X | G156: =EA!$J$48 ->  | H156: 29 | L156: Option 2 | M156: EA05O2 | N156: =IF(EA!$J$61>0,"X","") -> X | O156: 15.5 points | P156: EA05O2P31 | Q156: =IF(EA!$J$61=15.5,"X","") -> 
A157: LEED v4 BD+C: Homes | B157: EA | C157: C | D157: Annual energy use | E157: EA105 | F157: =IF(EA!$J$48>0,"X","") -> X | G157: =EA!$J$48 ->  | H157: 29 | L157: Option 2 | M157: EA05O2 | N157: =IF(EA!$J$61>0,"X","") -> X | O157: 16 points | P157: EA05O2P32 | Q157: =IF(EA!$J$61=16,"X","") -> 
A158: LEED v4 BD+C: Homes | B158: EA | C158: C | D158: Annual energy use | E158: EA105 | F158: =IF(EA!$J$48>0,"X","") -> X | G158: =EA!$J$48 ->  | H158: 29 | L158: Option 2 | M158: EA05O2 | N158: =IF(EA!$J$61>0,"X","") -> X | O158: 16.5 points | P158: EA05O2P33 | Q158: =IF(EA!$J$61=16.5,"X","") -> 
A159: LEED v4 BD+C: Homes | B159: EA | C159: C | D159: Annual energy use | E159: EA105 | F159: =IF(EA!$J$48>0,"X","") -> X | G159: =EA!$J$48 ->  | H159: 29 | L159: Option 2 | M159: EA05O2 | N159: =IF(EA!$J$61>0,"X","") -> X | O159: 17 points | P159: EA05O2P34 | Q159: =IF(EA!$J$61=17,"X","") -> 
A160: LEED v4 BD+C: Homes | B160: EA | C160: C | D160: Annual energy use | E160: EA105 | F160: =IF(EA!$J$48>0,"X","") -> X | G160: =EA!$J$48 ->  | H160: 29 | L160: Option 2 | M160: EA05O2 | N160: =IF(EA!$J$61>0,"X","") -> X | O160: 17.5 points | P160: EA05O2P35 | Q160: =IF(EA!$J$61=17.5,"X","") -> 
A161: LEED v4 BD+C: Homes | B161: EA | C161: C | D161: Annual energy use | E161: EA105 | F161: =IF(EA!$J$48>0,"X","") -> X | G161: =EA!$J$48 ->  | H161: 29 | L161: Option 2 | M161: EA05O2 | N161: =IF(EA!$J$61>0,"X","") -> X | O161: 18 points | P161: EA05O2P36 | Q161: =IF(EA!$J$61=18,"X","") -> 
A162: LEED v4 BD+C: Homes | B162: EA | C162: C | D162: Annual energy use | E162: EA105 | F162: =IF(EA!$J$48>0,"X","") -> X | G162: =EA!$J$48 ->  | H162: 29 | L162: Option 2 | M162: EA05O2 | N162: =IF(EA!$J$61>0,"X","") -> X | O162: 18.5 points | P162: EA05O2P37 | Q162: =IF(EA!$J$61=18.5,"X","") -> 
A163: LEED v4 BD+C: Homes | B163: EA | C163: C | D163: Annual energy use | E163: EA105 | F163: =IF(EA!$J$48>0,"X","") -> X | G163: =EA!$J$48 ->  | H163: 29 | L163: Option 2 | M163: EA05O2 | N163: =IF(EA!$J$61>0,"X","") -> X | O163: 19 points | P163: EA05O2P38 | Q163: =IF(EA!$J$61=19,"X","") -> 
A164: LEED v4 BD+C: Homes | B164: EA | C164: C | D164: Annual energy use | E164: EA105 | F164: =IF(EA!$J$48>0,"X","") -> X | G164: =EA!$J$48 ->  | H164: 29 | L164: Option 2 | M164: EA05O2 | N164: =IF(EA!$J$61>0,"X","") -> X | O164: 19.5 points | P164: EA05O2P39 | Q164: =IF(EA!$J$61=19.5,"X","") -> 
A165: LEED v4 BD+C: Homes | B165: EA | C165: C | D165: Annual energy use | E165: EA105 | F165: =IF(EA!$J$48>0,"X","") -> X | G165: =EA!$J$48 ->  | H165: 29 | L165: Option 2 | M165: EA05O2 | N165: =IF(EA!$J$61>0,"X","") -> X | O165: 20 points | P165: EA05O2P40 | Q165: =IF(EA!$J$61=20,"X","") -> 
A166: LEED v4 BD+C: Homes | B166: EA | C166: C | D166: Annual energy use | E166: EA105 | F166: =IF(EA!$J$48>0,"X","") -> X | G166: =EA!$J$48 ->  | H166: 29 | L166: Option 2 | M166: EA05O2 | N166: =IF(EA!$J$61>0,"X","") -> X | O166: 20.5 points | P166: EA05O2P41 | Q166: =IF(EA!$J$61=20.5,"X","") -> 
A167: LEED v4 BD+C: Homes | B167: EA | C167: C | D167: Annual energy use | E167: EA105 | F167: =IF(EA!$J$48>0,"X","") -> X | G167: =EA!$J$48 ->  | H167: 29 | L167: Option 2 | M167: EA05O2 | N167: =IF(EA!$J$61>0,"X","") -> X | O167: 21 points | P167: EA05O2P42 | Q167: =IF(EA!$J$61=21,"X","") -> 
A168: LEED v4 BD+C: Homes | B168: EA | C168: C | D168: Annual energy use | E168: EA105 | F168: =IF(EA!$J$48>0,"X","") -> X | G168: =EA!$J$48 ->  | H168: 29 | L168: Option 2 | M168: EA05O2 | N168: =IF(EA!$J$61>0,"X","") -> X | O168: 21.5 points | P168: EA05O2P43 | Q168: =IF(EA!$J$61=21.5,"X","") -> 
A169: LEED v4 BD+C: Homes | B169: EA | C169: C | D169: Annual energy use | E169: EA105 | F169: =IF(EA!$J$48>0,"X","") -> X | G169: =EA!$J$48 ->  | H169: 29 | L169: Option 2 | M169: EA05O2 | N169: =IF(EA!$J$61>0,"X","") -> X | O169: 22 points | P169: EA05O2P44 | Q169: =IF(EA!$J$61=22,"X","") -> 
A170: LEED v4 BD+C: Homes | B170: EA | C170: C | D170: Annual energy use | E170: EA105 | F170: =IF(EA!$J$48>0,"X","") -> X | G170: =EA!$J$48 ->  | H170: 29 | L170: Option 2 | M170: EA05O2 | N170: =IF(EA!$J$61>0,"X","") -> X | O170: 22.5 points | P170: EA05O2P45 | Q170: =IF(EA!$J$61=22.5,"X","") -> 
A171: LEED v4 BD+C: Homes | B171: EA | C171: C | D171: Annual energy use | E171: EA105 | F171: =IF(EA!$J$48>0,"X","") -> X | G171: =EA!$J$48 ->  | H171: 29 | L171: Option 2 | M171: EA05O2 | N171: =IF(EA!$J$61>0,"X","") -> X | O171: 23 points | P171: EA05O2P46 | Q171: =IF(EA!$J$61=23,"X","") -> 
A172: LEED v4 BD+C: Homes | B172: EA | C172: C | D172: Annual energy use | E172: EA105 | F172: =IF(EA!$J$48>0,"X","") -> X | G172: =EA!$J$48 ->  | H172: 29 | L172: Option 2 | M172: EA05O2 | N172: =IF(EA!$J$61>0,"X","") -> X | O172: 23.5 points | P172: EA05O2P47 | Q172: =IF(EA!$J$61=23.5,"X","") -> 
A173: LEED v4 BD+C: Homes | B173: EA | C173: C | D173: Annual energy use | E173: EA105 | F173: =IF(EA!$J$48>0,"X","") -> X | G173: =EA!$J$48 ->  | H173: 29 | L173: Option 2 | M173: EA05O2 | N173: =IF(EA!$J$61>0,"X","") -> X | O173: 24 points | P173: EA05O2P48 | Q173: =IF(EA!$J$61=24,"X","") -> 
A174: LEED v4 BD+C: Homes | B174: EA | C174: C | D174: Annual energy use | E174: EA105 | F174: =IF(EA!$J$48>0,"X","") -> X | G174: =EA!$J$48 ->  | H174: 29 | L174: Option 2 | M174: EA05O2 | N174: =IF(EA!$J$61>0,"X","") -> X | O174: 24.5 points | P174: EA05O2P49 | Q174: =IF(EA!$J$61=24.5,"X","") -> 
A175: LEED v4 BD+C: Homes | B175: EA | C175: C | D175: Annual energy use | E175: EA105 | F175: =IF(EA!$J$48>0,"X","") -> X | G175: =EA!$J$48 ->  | H175: 29 | L175: Option 2 | M175: EA05O2 | N175: =IF(EA!$J$61>0,"X","") -> X | O175: 25 points | P175: EA05O2P50 | Q175: =IF(EA!$J$61=25,"X","") -> 
A176: LEED v4 BD+C: Homes | B176: EA | C176: C | D176: Annual energy use | E176: EA105 | F176: =IF(EA!$J$48>0,"X","") -> X | G176: =EA!$J$48 ->  | H176: 29 | L176: Option 2 | M176: EA05O2 | N176: =IF(EA!$J$61>0,"X","") -> X | O176: 25.5 points | P176: EA05O2P51 | Q176: =IF(EA!$J$61=25.5,"X","") -> 
A177: LEED v4 BD+C: Homes | B177: EA | C177: C | D177: Annual energy use | E177: EA105 | F177: =IF(EA!$J$48>0,"X","") -> X | G177: =EA!$J$48 ->  | H177: 29 | L177: Option 2 | M177: EA05O2 | N177: =IF(EA!$J$61>0,"X","") -> X | O177: 26 points | P177: EA05O2P52 | Q177: =IF(EA!$J$61=26,"X","") -> 
A178: LEED v4 BD+C: Homes | B178: EA | C178: C | D178: Annual energy use | E178: EA105 | F178: =IF(EA!$J$48>0,"X","") -> X | G178: =EA!$J$48 ->  | H178: 29 | L178: Option 2 | M178: EA05O2 | N178: =IF(EA!$J$61>0,"X","") -> X | O178: 26.5 points | P178: EA05O2P53 | Q178: =IF(EA!$J$61=26.5,"X","") -> 
A179: LEED v4 BD+C: Homes | B179: EA | C179: C | D179: Annual energy use | E179: EA105 | F179: =IF(EA!$J$48>0,"X","") -> X | G179: =EA!$J$48 ->  | H179: 29 | L179: Option 2 | M179: EA05O2 | N179: =IF(EA!$J$61>0,"X","") -> X | O179: 27 points | P179: EA05O2P54 | Q179: =IF(EA!$J$61=27,"X","") -> 
A180: LEED v4 BD+C: Homes | B180: EA | C180: C | D180: Annual energy use | E180: EA105 | F180: =IF(EA!$J$48>0,"X","") -> X | G180: =EA!$J$48 ->  | H180: 29 | L180: Option 2 | M180: EA05O2 | N180: =IF(EA!$J$61>0,"X","") -> X | O180: 27.5 points | P180: EA05O2P55 | Q180: =IF(EA!$J$61=27.5,"X","") -> 
A181: LEED v4 BD+C: Homes | B181: EA | C181: C | D181: Annual energy use | E181: EA105 | F181: =IF(EA!$J$48>0,"X","") -> X | G181: =EA!$J$48 ->  | H181: 29 | L181: Option 2 | M181: EA05O2 | N181: =IF(EA!$J$61>0,"X","") -> X | O181: 28 points | P181: EA05O2P56 | Q181: =IF(EA!$J$61=28,"X","") -> 
A182: LEED v4 BD+C: Homes | B182: EA | C182: C | D182: Annual energy use | E182: EA105 | F182: =IF(EA!$J$48>0,"X","") -> X | G182: =EA!$J$48 ->  | H182: 29 | L182: Option 2 | M182: EA05O2 | N182: =IF(EA!$J$61>0,"X","") -> X | O182: 28.5 points | P182: EA05O2P57 | Q182: =IF(EA!$J$61=28.5,"X","") -> 
A183: LEED v4 BD+C: Homes | B183: EA | C183: C | D183: Annual energy use | E183: EA105 | F183: =IF(EA!$J$48>0,"X","") -> X | G183: =EA!$J$48 ->  | H183: 29 | L183: Option 2 | M183: EA05O2 | N183: =IF(EA!$J$61>0,"X","") -> X | O183: 29 points | P183: EA05O2P58 | Q183: =IF(EA!$J$61>=29,"X","") -> X
A184: LEED v4 BD+C: Homes | B184: EA | C184: C | D184: Efficient hot water distribution system | E184: EA106 | F184: =IF(EA!$J$86>0,"X","") ->  | G184: =EA!$J$86 -> 0 | H184: 5 | L184: Option 1 | M184: EA06O1 | N184: =IF(EA!$J$89>0,"X","") -> 
A185: LEED v4 BD+C: Homes | B185: EA | C185: C | D185: Efficient hot water distribution system | E185: EA106 | F185: =IF(EA!$J$86>0,"X","") ->  | G185: =EA!$J$86 -> 0 | H185: 5 | L185: Option 1 | M185: EA06O1 | N185: =IF(EA!$J$89>0,"X","") ->  | O185: Path 1 | P185: EA06O1P1 | Q185: =IF(EA!$J$107>0,"X","") -> 
A186: LEED v4 BD+C: Homes | B186: EA | C186: C | D186: Efficient hot water distribution system | E186: EA106 | F186: =IF(EA!$J$86>0,"X","") ->  | G186: =EA!$J$86 -> 0 | H186: 5 | L186: Option 1 | M186: EA06O1 | N186: =IF(EA!$J$89>0,"X","") ->  | O186: Path 2 | P186: EA06O1P2 | Q186: =IF(EA!$J$117>0,"X","") -> 
A187: LEED v4 BD+C: Homes | B187: EA | C187: C | D187: Efficient hot water distribution system | E187: EA106 | F187: =IF(EA!$J$86>0,"X","") ->  | G187: =EA!$J$86 -> 0 | H187: 5 | L187: Option 2 | M187: EA06O2 | N187: =IF(EA!$J$123>0,"X","") -> 
A188: LEED v4 BD+C: Homes | B188: EA | C188: C | D188: Efficient hot water distribution system | E188: EA106 | F188: =IF(EA!$J$86>0,"X","") ->  | G188: =EA!$J$86 -> 0 | H188: 5 | L188: Option 2 | M188: EA06O2 | N188: =IF(EA!$J$123>0,"X","") ->  | O188: Case 1 | P188: EA06O2P1 | Q188: =IF(EA!$J$142>0,"X","") -> 
A189: LEED v4 BD+C: Homes | B189: EA | C189: C | D189: Efficient hot water distribution system | E189: EA106 | F189: =IF(EA!$J$86>0,"X","") ->  | G189: =EA!$J$86 -> 0 | H189: 5 | L189: Option 2 | M189: EA06O2 | N189: =IF(EA!$J$123>0,"X","") ->  | O189: Case 2 | P189: EA06O2P2 | Q189: =IF(EA!$J$150>0,"X","") -> 
A190: LEED v4 BD+C: Homes | B190: EA | C190: C | D190: Efficient hot water distribution system | E190: EA106 | F190: =IF(EA!$J$86>0,"X","") ->  | G190: =EA!$J$86 -> 0 | H190: 5 | L190: Option 3 | M190: EA06O3 | N190: =IF(EA!$J$159>0,"X","") -> 
A191: LEED v4 BD+C: Homes | B191: EA | C191: C | D191: Advanced utility tracking | E191: EA108 | F191: =IF(EA!#REF!>0,"X","") ->  | G191: =EA!#REF! ->  | H191: 2 | L191: Case 1, Option 1 | M191: EA08O1 | N191: =IF(EA!#REF!>0,"X","") -> 
A192: LEED v4 BD+C: Homes | B192: EA | C192: C | D192: Advanced utility tracking | E192: EA108 | F192: =IF(EA!#REF!>0,"X","") ->  | G192: =EA!#REF! ->  | H192: 2 | L192: Case 1, Option 2 | M192: EA08O2 | N192: =IF(EA!#REF!>0,"X","") -> 
A193: LEED v4 BD+C: Homes | B193: EA | C193: C | D193: Advanced utility tracking | E193: EA108 | F193: =IF(EA!#REF!>0,"X","") ->  | G193: =EA!#REF! ->  | H193: 2 | L193: Case 2, Option 1 | M193: EA08O3 | N193: =IF(EA!#REF!>0,"X","") -> 
A194: LEED v4 BD+C: Homes | B194: EA | C194: C | D194: Advanced utility tracking | E194: EA108 | F194: =IF(EA!#REF!>0,"X","") ->  | G194: =EA!#REF! ->  | H194: 2 | L194: Case 2, Option 2 | M194: EA08O4 | N194: =IF(EA!#REF!>0,"X","") -> 
A195: LEED v4 BD+C: Homes | B195: EA | C195: C | D195: Advanced utility tracking | E195: EA108 | F195: =IF(EA!#REF!>0,"X","") ->  | G195: =EA!#REF! ->  | H195: 2 | L195: Case 2, Option 2 | M195: EA08O4 | N195: =IF(EA!#REF!>0,"X","") ->  | O195: Path 1 | P195: EA08O4P1 | Q195: =IF(EA!#REF!>0,"X","") -> 
A196: LEED v4 BD+C: Homes | B196: EA | C196: C | D196: Advanced utility tracking | E196: EA108 | F196: =IF(EA!#REF!>0,"X","") ->  | G196: =EA!#REF! ->  | H196: 2 | L196: Case 2, Option 2 | M196: EA08O4 | N196: =IF(EA!#REF!>0,"X","") ->  | O196: Path 2 | P196: EA08O4P2 | Q196: =IF(EA!#REF!>0,"X","") -> 
A197: LEED v4 BD+C: Homes | B197: EA | C197: C | D197: Active solar-ready design | E197: EA109 | F197: =IF(EA!#REF!>0,"X","") ->  | G197: =EA!#REF! ->  | H197: 1 | L197: Option 1 | M197: EA09O1 | N197: =IF(EA!#REF!>0,"X","") -> 
A198: LEED v4 BD+C: Homes | B198: EA | C198: C | D198: Active solar-ready design | E198: EA109 | F198: =IF(EA!#REF!>0,"X","") ->  | G198: =EA!#REF! ->  | H198: 1 | L198: Option 2 | M198: EA09O2 | N198: =IF(EA!#REF!>0,"X","") -> 
A199: LEED v4 BD+C: Homes | B199: EA | C199: C | D199: HVAC start-up credentialing | E199: EA110 | F199: =IF(EA!$J$166>0,"X","") ->  | G199: =EA!$J$166 -> 0 | H199: 1
A200: LEED v4 BD+C: Homes | B200: EA | C200: P | D200: Home Size | E200: EA111 | F200: x | G200: =EA!#REF! ->  | H200: 38 | I200: Prerequisite | J200: EA11T1 | K200: =IF(G200=0,"X","") -> 
... 418 more rows
